Workbook

Sheet Irrigation Settings (hidden)
A2: controller port | C2: Irrigation Head Location | E2: Minutes | F2: frequency | G2: TIME | O2: area delivery | Q2: total water/use | V2: total orchard water | Y2: total main water | AB2: total annex water
O3: gal / min | Q3: total gal | V3: gallons | Y3: gallons | AB3: gallons
A4: #1 | C4: Orchard Trees & middle garden beds | E4: 20 | F4: Sun - Sat | G4: 00:30:00 | L4: 8 bubbler heads (1.25g/min) | O4: =1.25*8 -> 10 | Q4: =E4*O4 -> 200 | V4: =Q4 -> 200
A6: #2 | C6: Orchard back beds O9-O12 | E6: 20 | F6: Sun - Sat | G6: next | L6: 10 sprinkler heads 1.25 g/m) | O6: =1.25*10 -> 12.5 | Q6: =E6*O6 -> 250 | V6: =Q6 -> 250
A8: #3 | C8: Orchard Grapes | E8: 20 | F8: Sun - Sat | G8: next | L8: 4 sprinkler heads (1.25 g/m) | O8: =4*1.25 -> 5 | Q8: =E8*O8 -> 100 | V8: =Q8 -> 100
H9: 1hr
A10: #4
A12: #5 | C12: Herb & Outside Main Garden | E12: 10 | F12: Sun - Sat | G12: next | L12: 3 sprinkler heads (2.5g/m) | O12: =3*2.5 -> 7.5 | Q12: =E12*O12 -> 75 | Y12: =Q12 -> 75
Y13: =Q13 -> 
A14: #6 | C14: Main Garden | E14: 20 | F14: Sun - Sat | G14: next | L14: 20 sprinkler heads (2.5g/m) | O14: =20*2.5 -> 50 | Q14: =E14*O14 -> 1000 | Y14: =Q14 -> 1000
H15: 1/2 hr | Y15: =Q15 -> 
A16: #7
A18: #8 | C18: Annex | E18: 11 | F18: Sun - Sat | G18: next | L18: 3 sprinkler heads (2.5g/m) | O18: =3*2.5 -> 7.5 | Q18: =E18*O18 -> 82.5 | AB18: =Q18 -> 82.5
A20: #9 | C20: Playground trees | E20: 10 | F20: Sun - Sat | G20: next | L20: 6 sprinkler heads (2.5g/m) | O20: =6*2.5 -> 15 | Q20: =E20*O20 -> 150 | Y20: =Q20 -> 150
H21: 21 min | L21: 9 sprinkler heads (1.5g/m) trees | O21: =6*1.5 -> 9 | Q21: set by school / maintenance room controller
L22: 54 sprinkler heads main garden | Q22: =SUM(Q4:Q20) -> 1857.5 | R22: total per use | V22: =SUM(V4:V21) -> 550 | Y22: =SUM(Y12:Y20) -> 1225 | AB22: =SUM(AB18:AB21) -> 82.5 | AD22: =SUM(V22:AB22) -> 1857.5
M23: controller controlled | R23: =Q22*R29 -> $43.06 | S23: cost / use
H24: Gallons | I24: interval | K24: gallons | L24: interval | V24: Cost Cutting Options
H25: =Q22*7 -> 13002.5 | I25: 7 day week | K25: =Q22*3 -> 5572.5 | L25: 3 day week | V25: =V22/AD22 -> 30% | Y25: =Y22/AD22 -> 66% | AB25: =AB22/AD22 -> 4% | AD25: =SUM(V25:AC25) -> 100%
V26: =$I$32*V25 -> $3,415.50 | Y26: =$I$32*Y25 -> $7,607.25 | AB26: =$I$32*AB25 -> $512.33 | AD26: =SUM(V26:AB26) -> $11,535.08
H27: =H25*4.5 -> 58511.25 | I27: monthly 7 day per wk | K27: =K25*4.5 -> 25076.25 | L27: monthly 3 day per wk
E29: monthly fee | H29: =0.023 * H27 -> $1,345.76 | K29: =0.023 * K27 -> $576.75 | M29: cost based on $0.023 per gallon /w sewage fee | R29: =255/11000 -> 0.02318181818
E30: yearly fee | H30: =H29*12 -> $16,149.11 | K30: =K29*12 -> $6,921.05
E32: estimated water costs | H32: =0.5*H30 -> $8,074.55 | I32: =0.5*(H30)+0.5*(K30) -> $11,535.08 | K32: =0.5*K30 -> $3,460.52 | M32: 6mos 7d/w + 6mos 3d/w

Sheet Annex
BG23: sprinkler head
BG26: needed sprinkler head

Sheet Orchard Layout
H29: shut off valve for orchard up by sidewalk and big stone
H30: #1 | I30: trees and center nozzles
H31: #2 | I31: grape vines
H32: #3 | I32: wooded perimeter

Sheet "Main" Garden Layout
CA20: Water supply from school

Sheet 2023-2024
J1: =((SUBTOTAL(9,J4:J1053))+SUBTOTAL(9,K4:K1053)/16) -> 1563.72
A2: Basic Information | J2: Total weight (lbs) | L2: Fertilize | O2: plant | Q2: Air | R2: Rain (inches) | T2: Compost
A3: date | B3: am/pm | C3: Teacher | D3: team leader | E3: team # | F3: Volunt. Lead | G3: Task | H3: Produce | I3: location | J3: lbs | K3: oz | L3: fert used | M3: bed location | N3: Next Application | O3: notes | P3: apply fert | Q3: oF | R3: shed | S3: garden | T3: bin #1 | U3: bin #2 | V3: bin #3 | W3: notes | X3: action | Y3: notes
A4: 2023-08-01 | D4: volunteers | G4: harvest | H4: grapes | I4: M4 | J4: 23 | K4: 0 | L4: =IF(G4="Fertilize",GOTO L4,"") ->  | M4: =IF(G4="Fertilize",GOTO M4,"") ->  | N4: =IF(G4="fertilize",GOTO N4,"") ->  | O4: =IF(G4="Plant",O4,"") ->  | P4: =IF(G4="Plant", A4+14,"") ->  | Q4: =IF(G4="compost",GOTO Q4,"") ->  | R4: =IF(G4="compost",GOTO R4,"") ->  | S4: =IF(G4="compost",GOTO S4,"") ->  | T4: =IF(G4="compost",GOTO T4,"") ->  | U4: =IF(G4="compost",GOTO U4,"") ->  | V4: =IF(G4="compost",GOTO V4,"") ->  | W4: =IF(G4="compost",GOTO W4,"") ->  | X4: =IF(G4="Maintenance, garden",GOTO X4,IF(G4="Table",GOTO X4,IF(G4="maintenance, project",GOTO X4,""))) ->  | Y4: =IF(G4="Maintenance, garden",GOTO Y4,IF(G4="Table",GOTO Y4,IF(G4="maintenance, project",GOTO Y4,""))) -> 
A5: 2023-08-01 | D5: volunteers | G5: harvest | H5: okra | I5: Main, orchard | J5: 4 | K5: 3 | L5: =IF(G5="Fertilize",GOTO L5,"") ->  | M5: =IF(G5="Fertilize",GOTO M5,"") ->  | N5: =IF(G5="fertilize",GOTO N5,"") ->  | O5: =IF(G5="Plant",O5,"") ->  | P5: =IF(G5="Plant", A5+14,"") ->  | Q5: =IF(G5="compost",GOTO Q5,"") ->  | R5: =IF(G5="compost",GOTO R5,"") ->  | S5: =IF(G5="compost",GOTO S5,"") ->  | T5: =IF(G5="compost",GOTO T5,"") ->  | U5: =IF(G5="compost",GOTO U5,"") ->  | V5: =IF(G5="compost",GOTO V5,"") ->  | W5: =IF(G5="compost",GOTO W5,"") ->  | X5: =IF(G5="Maintenance, garden",GOTO X5,IF(G5="Table",GOTO X5,IF(G5="maintenance, project",GOTO X5,""))) ->  | Y5: =IF(G5="Maintenance, garden",GOTO Y5,IF(G5="Table",GOTO Y5,IF(G5="maintenance, project",GOTO Y5,""))) -> 
A6: 2023-08-01 | D6: volunteers | G6: harvest | H6: cucumbers | I6: O15, M6 | J6: 4 | K6: 10 | L6: =IF(G6="Fertilize",GOTO L6,"") ->  | M6: =IF(G6="Fertilize",GOTO M6,"") ->  | N6: =IF(G6="fertilize",GOTO N6,"") ->  | P6: =IF(G53="Plant", A6+14,"") -> 2023-08-15 | Q6: =IF(G6="compost",GOTO Q6,"") ->  | R6: =IF(G6="compost",GOTO R6,"") ->  | S6: =IF(G6="compost",GOTO S6,"") ->  | T6: =IF(G6="compost",GOTO T6,"") ->  | U6: =IF(G6="compost",GOTO U6,"") ->  | V6: =IF(G6="compost",GOTO V6,"") ->  | W6: =IF(G6="compost",GOTO W6,"") ->  | X6: =IF(G6="Maintenance, garden",GOTO X6,IF(G6="Table",GOTO X6,IF(G6="maintenance, project",GOTO X6,""))) ->  | Y6: =IF(G6="Maintenance, garden",GOTO Y6,IF(G6="Table",GOTO Y6,IF(G6="maintenance, project",GOTO Y6,""))) -> 
A7: 2023-08-01 | D7: volunteers | G7: harvest | H7: beans, yard long | I7: M7,M3 | J7: 4 | K7: 0 | L7: =IF(G7="Fertilize",GOTO L7,"") ->  | M7: =IF(G7="Fertilize",GOTO M7,"") ->  | N7: =IF(G7="fertilize",GOTO N7,"") ->  | P7: =IF(G7="Plant", A7+14,"") ->  | Q7: =IF(G7="compost",GOTO Q7,"") ->  | R7: =IF(G7="compost",GOTO R7,"") ->  | S7: =IF(G7="compost",GOTO S7,"") ->  | T7: =IF(G7="compost",GOTO T7,"") ->  | U7: =IF(G7="compost",GOTO U7,"") ->  | V7: =IF(G7="compost",GOTO V7,"") ->  | W7: =IF(G7="compost",GOTO W7,"") ->  | X7: =IF(G7="Maintenance, garden",GOTO X7,IF(G7="Table",GOTO X7,IF(G7="maintenance, project",GOTO X7,""))) ->  | Y7: =IF(G7="Maintenance, garden",GOTO Y7,IF(G7="Table",GOTO Y7,IF(G7="maintenance, project",GOTO Y7,""))) -> 
A8: 2023-08-01 | D8: volunteers | G8: harvest | H8: tomatoes | I8: back of shed | J8: 0 | K8: 3 | L8: =IF(G8="Fertilize",GOTO L8,"") ->  | M8: =IF(G8="Fertilize",GOTO M8,"") ->  | N8: =IF(G8="fertilize",GOTO N8,"") ->  | Q8: =IF(G8="compost",GOTO Q8,"") ->  | R8: =IF(G8="compost",GOTO R8,"") ->  | S8: =IF(G8="compost",GOTO S8,"") ->  | T8: =IF(G8="compost",GOTO T8,"") ->  | U8: =IF(G8="compost",GOTO U8,"") ->  | V8: =IF(G8="compost",GOTO V8,"") ->  | W8: =IF(G8="compost",GOTO W8,"") ->  | X8: =IF(G8="Maintenance, garden",GOTO X8,IF(G8="Table",GOTO X8,IF(G8="maintenance, project",GOTO X8,""))) ->  | Y8: =IF(G8="Maintenance, garden",GOTO Y8,IF(G8="Table",GOTO Y8,IF(G8="maintenance, project",GOTO Y8,""))) -> 
A9: 2023-08-01 | D9: volunteers | G9: harvest | H9: squash | I9: M14 | J9: 0 | K9: 4 | L9: =IF(G9="Fertilize",GOTO L9,"") ->  | M9: =IF(G9="Fertilize",GOTO M9,"") ->  | N9: =IF(G9="fertilize",GOTO N9,"") ->  | Q9: =IF(G9="compost",GOTO Q9,"") ->  | R9: =IF(G9="compost",GOTO R9,"") ->  | S9: =IF(G9="compost",GOTO S9,"") ->  | T9: =IF(G9="compost",GOTO T9,"") ->  | U9: =IF(G9="compost",GOTO U9,"") ->  | V9: =IF(G9="compost",GOTO V9,"") ->  | W9: =IF(G9="compost",GOTO W9,"") ->  | X9: =IF(G9="Maintenance, garden",GOTO X9,IF(G9="Table",GOTO X9,IF(G9="maintenance, project",GOTO X9,""))) ->  | Y9: =IF(G9="Maintenance, garden",GOTO Y9,IF(G9="Table",GOTO Y9,IF(G9="maintenance, project",GOTO Y9,""))) -> 
A10: 2023-08-01 | D10: volunteers | G10: maintenance, garden | I10: outside East parking lot | J10: =IF(G10="Harvest",GOTO J10,"") ->  | K10: =IF(G10="Harvest",GOTO K10,"") ->  | L10: =IF(G10="Fertilize",GOTO L10,"") ->  | M10: =IF(G10="Fertilize",GOTO M10,"") ->  | N10: =IF(G10="fertilize",GOTO N10,"") ->  | Q10: =IF(G10="compost",GOTO Q10,"") ->  | R10: =IF(G10="compost",GOTO R10,"") ->  | S10: =IF(G10="compost",GOTO S10,"") ->  | T10: =IF(G10="compost",GOTO T10,"") ->  | U10: =IF(G10="compost",GOTO U10,"") ->  | V10: =IF(G10="compost",GOTO V10,"") ->  | W10: =IF(G10="compost",GOTO W10,"") ->  | X10: reconnected electric lines | Y10: vandalism lines - lines were pulled apart
A11: 2023-08-03 | D11: volunteers | G11: harvest | H11: eggplant | I11: M10 | J11: 7 | K11: 2 | L11: =IF(G11="Fertilize",GOTO L11,"") ->  | M11: =IF(G11="Fertilize",GOTO M11,"") ->  | N11: =IF(G11="fertilize",GOTO N11,"") ->  | Q11: =IF(G11="compost",GOTO Q11,"") ->  | R11: =IF(G11="compost",GOTO R11,"") ->  | S11: =IF(G11="compost",GOTO S11,"") ->  | T11: =IF(G11="compost",GOTO T11,"") ->  | U11: =IF(G11="compost",GOTO U11,"") ->  | V11: =IF(G11="compost",GOTO V11,"") ->  | W11: =IF(G11="compost",GOTO W11,"") ->  | X11: =IF(G11="Maintenance, garden",GOTO X11,IF(G11="Table",GOTO X11,IF(G11="maintenance, project",GOTO X11,""))) ->  | Y11: =IF(G11="Maintenance, garden",GOTO Y11,IF(G11="Table",GOTO Y11,IF(G11="maintenance, project",GOTO Y11,""))) -> 
A12: 2023-08-03 | D12: volunteers | G12: harvest | H12: beans, yard long | I12: M7 | J12: 4 | K12: 0 | L12: =IF(G12="Fertilize",GOTO L12,"") ->  | M12: =IF(G12="Fertilize",GOTO M12,"") ->  | N12: =IF(G12="fertilize",GOTO N12,"") ->  | Q12: =IF(G12="compost",GOTO Q12,"") ->  | R12: =IF(G12="compost",GOTO R12,"") ->  | S12: =IF(G12="compost",GOTO S12,"") ->  | T12: =IF(G12="compost",GOTO T12,"") ->  | U12: =IF(G12="compost",GOTO U12,"") ->  | V12: =IF(G12="compost",GOTO V12,"") ->  | W12: =IF(G12="compost",GOTO W12,"") ->  | X12: =IF(G12="Maintenance, garden",GOTO X12,IF(G12="Table",GOTO X12,IF(G12="maintenance, project",GOTO X12,""))) ->  | Y12: =IF(G12="Maintenance, garden",GOTO Y12,IF(G12="Table",GOTO Y12,IF(G12="maintenance, project",GOTO Y12,""))) -> 
A13: 2023-08-03 | D13: volunteers | G13: harvest | H13: cucumbers | I13: m6,O15 | J13: 4 | K13: 3 | L13: =IF(G13="Fertilize",GOTO L13,"") ->  | M13: =IF(G13="Fertilize",GOTO M13,"") ->  | N13: =IF(G13="fertilize",GOTO N13,"") ->  | Q13: =IF(G13="compost",GOTO Q13,"") ->  | R13: =IF(G13="compost",GOTO R13,"") ->  | S13: =IF(G13="compost",GOTO S13,"") ->  | T13: =IF(G13="compost",GOTO T13,"") ->  | U13: =IF(G13="compost",GOTO U13,"") ->  | V13: =IF(G13="compost",GOTO V13,"") ->  | W13: =IF(G13="compost",GOTO W13,"") ->  | X13: =IF(G13="Maintenance, garden",GOTO X13,IF(G13="Table",GOTO X13,IF(G13="maintenance, project",GOTO X13,""))) ->  | Y13: =IF(G13="Maintenance, garden",GOTO Y13,IF(G13="Table",GOTO Y13,IF(G13="maintenance, project",GOTO Y13,""))) -> 
A14: 2023-08-03 | D14: volunteers | G14: harvest | H14: okra | I14: O17,11,12,M11 | J14: 4 | K14: 1 | L14: =IF(G14="Fertilize",GOTO L14,"") ->  | M14: =IF(G14="Fertilize",GOTO M14,"") ->  | N14: =IF(G14="fertilize",GOTO N14,"") ->  | Q14: =IF(G14="compost",GOTO Q14,"") ->  | R14: =IF(G14="compost",GOTO R14,"") ->  | S14: =IF(G14="compost",GOTO S14,"") ->  | T14: =IF(G14="compost",GOTO T14,"") ->  | U14: =IF(G14="compost",GOTO U14,"") ->  | V14: =IF(G14="compost",GOTO V14,"") ->  | W14: =IF(G14="compost",GOTO W14,"") ->  | X14: =IF(G14="Maintenance, garden",GOTO X14,IF(G14="Table",GOTO X14,IF(G14="maintenance, project",GOTO X14,""))) ->  | Y14: =IF(G14="Maintenance, garden",GOTO Y14,IF(G14="Table",GOTO Y14,IF(G14="maintenance, project",GOTO Y14,""))) -> 
A15: 2023-08-03 | D15: volunteers | G15: harvest | H15: peppers, serrano | I15: O28 | J15: 0 | K15: 8 | L15: =IF(G15="Fertilize",GOTO L15,"") ->  | M15: =IF(G15="Fertilize",GOTO M15,"") ->  | N15: =IF(G15="fertilize",GOTO N15,"") ->  | Q15: =IF(G15="compost",GOTO Q15,"") ->  | R15: =IF(G15="compost",GOTO R15,"") ->  | S15: =IF(G15="compost",GOTO S15,"") ->  | T15: =IF(G15="compost",GOTO T15,"") ->  | U15: =IF(G15="compost",GOTO U15,"") ->  | V15: =IF(G15="compost",GOTO V15,"") ->  | W15: =IF(G15="compost",GOTO W15,"") ->  | X15: =IF(G15="Maintenance, garden",GOTO X15,IF(G15="Table",GOTO X15,IF(G15="maintenance, project",GOTO X15,""))) ->  | Y15: =IF(G15="Maintenance, garden",GOTO Y15,IF(G15="Table",GOTO Y15,IF(G15="maintenance, project",GOTO Y15,""))) -> 
A16: 2023-08-03 | D16: volunteers | G16: harvest | H16: grapes | I16: M4 | J16: 4 | K16: 13 | L16: =IF(G16="Fertilize",GOTO L16,"") ->  | M16: =IF(G16="Fertilize",GOTO M16,"") ->  | N16: =IF(G16="fertilize",GOTO N16,"") ->  | Q16: =IF(G16="compost",GOTO Q16,"") ->  | R16: =IF(G16="compost",GOTO R16,"") ->  | S16: =IF(G16="compost",GOTO S16,"") ->  | T16: =IF(G16="compost",GOTO T16,"") ->  | U16: =IF(G16="compost",GOTO U16,"") ->  | V16: =IF(G16="compost",GOTO V16,"") ->  | W16: =IF(G16="compost",GOTO W16,"") ->  | X16: =IF(G16="Maintenance, garden",GOTO X16,IF(G16="Table",GOTO X16,IF(G16="maintenance, project",GOTO X16,""))) ->  | Y16: =IF(G16="Maintenance, garden",GOTO Y16,IF(G16="Table",GOTO Y16,IF(G16="maintenance, project",GOTO Y16,""))) -> 
A17: 2023-08-03 | D17: volunteers | G17: maintenance, project | H17: =IF(A17="","",IF(G17="maintenance, garden","",IF(G17="maintenance, project","",IF(G17="compost","",GOTO I17)))) ->  | I17: main shed area | J17: =IF(G17="Harvest",GOTO J17,"") ->  | K17: =IF(G17="Harvest",GOTO K17,"") ->  | L17: =IF(G17="Fertilize",GOTO L17,"") ->  | M17: =IF(G17="Fertilize",A17+14,"") ->  | N17: =IF(G17="fertilize",GOTO N17,"") ->  | Q17: =IF(G17="compost",GOTO Q17,"") ->  | R17: =IF(G17="compost",GOTO R17,"") ->  | S17: =IF(G17="compost",GOTO S17,"") ->  | T17: =IF(G17="compost",GOTO T17,"") ->  | U17: =IF(G17="compost",GOTO U17,"") ->  | V17: =IF(G17="compost",GOTO V17,"") ->  | W17: =IF(G17="compost",GOTO W17,"") ->  | X17: fill herb bed with soil, add humates | Y17: still need to be topped off with compost
A18: 2023-08-05 | D18: volunteers | G18: harvest | H18: cucumbers | I18: O15, M6 | J18: 3 | K18: 8 | L18: =IF(G18="Fertilize",GOTO L18,"") ->  | N18: =IF(G18="fertilize",GOTO N18,"") ->  | Q18: =IF(G18="compost",GOTO Q18,"") ->  | R18: =IF(G18="compost",GOTO R18,"") ->  | S18: =IF(G18="compost",GOTO S18,"") ->  | T18: =IF(G18="compost",GOTO T18,"") ->  | U18: =IF(G18="compost",GOTO U18,"") ->  | V18: =IF(G18="compost",GOTO V18,"") ->  | W18: =IF(G18="compost",GOTO W18,"") ->  | X18: =IF(G18="maintenance, garden",GOTO X18,IF(G18="Table",GOTO X18,IF(G18="maintenance, project",GOTO X18,""))) ->  | Y18: =IF(G18="Maintenance, garden",GOTO Y18,IF(G18="Table",GOTO Y18,IF(G18="maintenance, project",GOTO Y18,""))) -> 
A19: 2023-08-05 | D19: volunteers | G19: harvest | H19: grapes | I19: M4 | J19: 4 | K19: 7 | L19: =IF(G19="Fertilize",GOTO L19,"") ->  | N19: =IF(G19="fertilize",GOTO N19,"") ->  | Q19: =IF(G19="compost",GOTO Q19,"") ->  | R19: =IF(G19="compost",GOTO R19,"") ->  | S19: =IF(G19="compost",GOTO S19,"") ->  | T19: =IF(G19="compost",GOTO T19,"") ->  | U19: =IF(G19="compost",GOTO U19,"") ->  | V19: =IF(G19="compost",GOTO V19,"") ->  | W19: =IF(G19="compost",GOTO W19,"") ->  | X19: =IF(G19="maintenance, garden",GOTO X19,IF(G19="Table",GOTO X19,IF(G19="maintenance, project",GOTO X19,""))) ->  | Y19: =IF(G19="Maintenance, garden",GOTO Y19,IF(G19="Table",GOTO Y19,IF(G19="maintenance, project",GOTO Y19,""))) -> 
A20: 2023-08-05 | D20: volunteers | G20: harvest | H20: squash | I20: M14 | J20: 1 | K20: 7 | L20: =IF(G20="Fertilize",GOTO L20,"") ->  | N20: =IF(G20="fertilize",GOTO N20,"") ->  | Q20: =IF(G20="compost",GOTO Q20,"") ->  | R20: =IF(G20="compost",GOTO R20,"") ->  | S20: =IF(G20="compost",GOTO S20,"") ->  | T20: =IF(G20="compost",GOTO T20,"") ->  | U20: =IF(G20="compost",GOTO U20,"") ->  | V20: =IF(G20="compost",GOTO V20,"") ->  | W20: =IF(G20="compost",GOTO W20,"") ->  | X20: =IF(G20="maintenance, garden",GOTO X20,IF(G20="Table",GOTO X20,IF(G20="maintenance, project",GOTO X20,""))) ->  | Y20: =IF(G20="Maintenance, garden",GOTO Y20,IF(G20="Table",GOTO Y20,IF(G20="maintenance, project",GOTO Y20,""))) -> 
A21: 2023-08-05 | D21: volunteers | G21: harvest | H21: okra | I21: M11,O11,12,17 | J21: 1 | K21: 13 | L21: =IF(G21="Fertilize",GOTO L21,"") ->  | N21: =IF(G21="fertilize",GOTO N21,"") ->  | Q21: =IF(G21="compost",GOTO Q21,"") ->  | R21: =IF(G21="compost",GOTO R21,"") ->  | S21: =IF(G21="compost",GOTO S21,"") ->  | T21: =IF(G21="compost",GOTO T21,"") ->  | U21: =IF(G21="compost",GOTO U21,"") ->  | V21: =IF(G21="compost",GOTO V21,"") ->  | W21: =IF(G21="compost",GOTO W21,"") ->  | X21: =IF(G21="maintenance, garden",GOTO X21,IF(G21="Table",GOTO X21,IF(G21="maintenance, project",GOTO X21,""))) ->  | Y21: =IF(G21="Maintenance, garden",GOTO Y21,IF(G21="Table",GOTO Y21,IF(G21="maintenance, project",GOTO Y21,""))) -> 
A22: 2023-08-05 | D22: volunteers | G22: harvest | H22: beans, yard long | I22: M7 | J22: 2 | K22: 15 | L22: =IF(G22="Fertilize",GOTO L22,"") ->  | N22: =IF(G22="fertilize",GOTO N22,"") ->  | Q22: =IF(G22="compost",GOTO Q22,"") ->  | R22: =IF(G22="compost",GOTO R22,"") ->  | S22: =IF(G22="compost",GOTO S22,"") ->  | T22: =IF(G22="compost",GOTO T22,"") ->  | U22: =IF(G22="compost",GOTO U22,"") ->  | V22: =IF(G22="compost",GOTO V22,"") ->  | W22: =IF(G22="compost",GOTO W22,"") ->  | X22: =IF(G22="maintenance, garden",GOTO X22,IF(G22="Table",GOTO X22,IF(G22="maintenance, project",GOTO X22,""))) ->  | Y22: =IF(G22="Maintenance, garden",GOTO Y22,IF(G22="Table",GOTO Y22,IF(G22="maintenance, project",GOTO Y22,""))) -> 
A23: 2023-08-05 | D23: volunteers | G23: maintenance, project | H23: =IF(A23="","",IF(G23="maintenance, garden","",IF(G23="maintenance, project","",IF(G23="compost","",GOTO I23)))) ->  | I23: Main, Annex | J23: =IF(G23="Harvest",GOTO J23,"") ->  | K23: =IF(G23="Harvest",GOTO K23,"") ->  | L23: =IF(G23="Fertilize",GOTO L23,"") ->  | N23: =IF(G23="fertilize",GOTO N23,"") ->  | Q23: =IF(G23="compost",GOTO Q23,"") ->  | R23: =IF(G23="compost",GOTO R23,"") ->  | S23: =IF(G23="compost",GOTO S23,"") ->  | T23: =IF(G23="compost",GOTO T23,"") ->  | U23: =IF(G23="compost",GOTO U23,"") ->  | V23: =IF(G23="compost",GOTO V23,"") ->  | W23: =IF(G23="compost",GOTO W23,"") ->  | X23: treated benches, wood work areas with wood preservative | Y23: Thompson's - benches, Echo - work areas
A24: 2023-08-08 | D24: volunteers | G24: harvest | H24: okra | I24: M11,O11,12,17 | J24: 3 | K24: 12 | L24: =IF(G24="Fertilize",GOTO L24,"") ->  | N24: =IF(G24="fertilize",GOTO N24,"") ->  | Q24: =IF(G24="compost",GOTO Q24,"") ->  | R24: =IF(G24="compost",GOTO R24,"") ->  | S24: =IF(G24="compost",GOTO S24,"") ->  | T24: =IF(G24="compost",GOTO T24,"") ->  | U24: =IF(G24="compost",GOTO U24,"") ->  | V24: =IF(G24="compost",GOTO V24,"") ->  | W24: =IF(G24="compost",GOTO W24,"") ->  | X24: =IF(G24="maintenance, garden",GOTO X24,IF(G24="Table",GOTO X24,IF(G24="maintenance, project",GOTO X24,""))) ->  | Y24: =IF(G24="Maintenance, garden",GOTO Y24,IF(G24="Table",GOTO Y24,IF(G24="maintenance, project",GOTO Y24,""))) -> 
A25: 2023-08-08 | D25: volunteers | G25: harvest | H25: peppers, serrano | I25: O28 | J25: 0 | K25: 6 | L25: =IF(G25="Fertilize",GOTO L25,"") ->  | N25: =IF(G25="fertilize",GOTO N25,"") ->  | Q25: =IF(G25="compost",GOTO Q25,"") ->  | R25: =IF(G25="compost",GOTO R25,"") ->  | S25: =IF(G25="compost",GOTO S25,"") ->  | T25: =IF(G25="compost",GOTO T25,"") ->  | U25: =IF(G25="compost",GOTO U25,"") ->  | V25: =IF(G25="compost",GOTO V25,"") ->  | W25: =IF(G25="compost",GOTO W25,"") ->  | X25: =IF(G25="maintenance, garden",GOTO X25,IF(G25="Table",GOTO X25,IF(G25="maintenance, project",GOTO X25,""))) ->  | Y25: =IF(G25="Maintenance, garden",GOTO Y25,IF(G25="Table",GOTO Y25,IF(G25="maintenance, project",GOTO Y25,""))) -> 
A26: 2023-08-08 | D26: volunteers | G26: harvest | H26: eggplant | I26: M10 | J26: 2 | K26: 9 | L26: =IF(G26="Fertilize",GOTO L26,"") ->  | N26: =IF(G26="fertilize",GOTO N26,"") ->  | Q26: =IF(G26="compost",GOTO Q26,"") ->  | R26: =IF(G26="compost",GOTO R26,"") ->  | S26: =IF(G26="compost",GOTO S26,"") ->  | T26: =IF(G26="compost",GOTO T26,"") ->  | U26: =IF(G26="compost",GOTO U26,"") ->  | V26: =IF(G26="compost",GOTO V26,"") ->  | W26: =IF(G26="compost",GOTO W26,"") ->  | X26: =IF(G26="maintenance, garden",GOTO X26,IF(G26="Table",GOTO X26,IF(G26="maintenance, project",GOTO X26,""))) ->  | Y26: =IF(G26="Maintenance, garden",GOTO Y26,IF(G26="Table",GOTO Y26,IF(G26="maintenance, project",GOTO Y26,""))) -> 
A27: 2023-08-08 | D27: volunteers | G27: harvest | H27: beans, yard long | I27: M7 | J27: 1 | K27: 0 | L27: =IF(G27="Fertilize",GOTO L27,"") ->  | N27: =IF(G27="fertilize",GOTO N27,"") ->  | Q27: =IF(G27="compost",GOTO Q27,"") ->  | R27: =IF(G27="compost",GOTO R27,"") ->  | S27: =IF(G27="compost",GOTO S27,"") ->  | T27: =IF(G27="compost",GOTO T27,"") ->  | U27: =IF(G27="compost",GOTO U27,"") ->  | V27: =IF(G27="compost",GOTO V27,"") ->  | W27: =IF(G27="compost",GOTO W27,"") ->  | X27: =IF(G27="maintenance, garden",GOTO X27,IF(G27="Table",GOTO X27,IF(G27="maintenance, project",GOTO X27,""))) ->  | Y27: =IF(G27="Maintenance, garden",GOTO Y27,IF(G27="Table",GOTO Y27,IF(G27="maintenance, project",GOTO Y27,""))) -> 
A28: 2023-08-08 | D28: volunteers | G28: harvest | H28: grapes | I28: M4 | J28: 9 | K28: 12 | L28: =IF(G28="Fertilize",GOTO L28,"") ->  | N28: =IF(G28="fertilize",GOTO N28,"") ->  | Q28: =IF(G28="compost",GOTO Q28,"") ->  | R28: =IF(G28="compost",GOTO R28,"") ->  | S28: =IF(G28="compost",GOTO S28,"") ->  | T28: =IF(G28="compost",GOTO T28,"") ->  | U28: =IF(G28="compost",GOTO U28,"") ->  | V28: =IF(G28="compost",GOTO V28,"") ->  | W28: =IF(G28="compost",GOTO W28,"") ->  | X28: =IF(G28="maintenance, garden",GOTO X28,IF(G28="Table",GOTO X28,IF(G28="maintenance, project",GOTO X28,""))) ->  | Y28: =IF(G28="Maintenance, garden",GOTO Y28,IF(G28="Table",GOTO Y28,IF(G28="maintenance, project",GOTO Y28,""))) -> 
A29: 2023-08-08 | D29: volunteers | G29: harvest | H29: cucumbers | I29: O15, M6 | J29: 1 | K29: 9 | L29: =IF(G29="Fertilize",GOTO L29,"") ->  | N29: =IF(G29="fertilize",GOTO N29,"") ->  | Q29: =IF(G29="compost",GOTO Q29,"") ->  | R29: =IF(G29="compost",GOTO R29,"") ->  | S29: =IF(G29="compost",GOTO S29,"") ->  | T29: =IF(G29="compost",GOTO T29,"") ->  | U29: =IF(G29="compost",GOTO U29,"") ->  | V29: =IF(G29="compost",GOTO V29,"") ->  | W29: =IF(G29="compost",GOTO W29,"") ->  | X29: =IF(G29="maintenance, garden",GOTO X29,IF(G29="Table",GOTO X29,IF(G29="maintenance, project",GOTO X29,""))) ->  | Y29: =IF(G29="Maintenance, garden",GOTO Y29,IF(G29="Table",GOTO Y29,IF(G29="maintenance, project",GOTO Y29,""))) -> 
A30: 2023-08-08 | D30: volunteers | G30: harvest | H30: squash | I30: M14 | J30: 0 | K30: 7 | L30: =IF(G30="Fertilize",GOTO L30,"") ->  | N30: =IF(G30="fertilize",GOTO N30,"") ->  | Q30: =IF(G30="compost",GOTO Q30,"") ->  | R30: =IF(G30="compost",GOTO R30,"") ->  | S30: =IF(G30="compost",GOTO S30,"") ->  | T30: =IF(G30="compost",GOTO T30,"") ->  | U30: =IF(G30="compost",GOTO U30,"") ->  | V30: =IF(G30="compost",GOTO V30,"") ->  | W30: =IF(G30="compost",GOTO W30,"") ->  | X30: =IF(G30="maintenance, garden",GOTO X30,IF(G30="Table",GOTO X30,IF(G30="maintenance, project",GOTO X30,""))) ->  | Y30: =IF(G30="Maintenance, garden",GOTO Y30,IF(G30="Table",GOTO Y30,IF(G30="maintenance, project",GOTO Y30,""))) -> 
A31: 2023-08-08 | D31: volunteers | G31: maintenance, project | H31: =IF(A31="","",IF(G31="maintenance, garden","",IF(G31="maintenance, project","",IF(G31="compost","",GOTO I31)))) ->  | I31: arbor trees along athletic field | J31: =IF(G31="Harvest",GOTO J31,"") ->  | K31: =IF(G31="Harvest",GOTO K31,"") ->  | L31: =IF(G31="Fertilize",GOTO L31,"") ->  | N31: =IF(G31="fertilize",GOTO N31,"") ->  | Q31: =IF(G31="compost",GOTO Q31,"") ->  | R31: =IF(G31="compost",GOTO R31,"") ->  | S31: =IF(G31="compost",GOTO S31,"") ->  | T31: =IF(G31="compost",GOTO T31,"") ->  | U31: =IF(G31="compost",GOTO U31,"") ->  | V31: =IF(G31="compost",GOTO V31,"") ->  | W31: =IF(G31="compost",GOTO W31,"") ->  | X31: install landscape timbers to protect trees | Y31: 4 X 4 timbers + mulch
A32: 2023-08-10 | D32: volunteers | G32: harvest | H32: okra | I32: M11,O11,12,17 | J32: 3 | K32: 0 | L32: =IF(G32="Fertilize",GOTO L32,"") ->  | N32: =IF(G32="fertilize",GOTO N32,"") ->  | Q32: =IF(G32="compost",GOTO Q32,"") ->  | R32: =IF(G32="compost",GOTO R32,"") ->  | S32: =IF(G32="compost",GOTO S32,"") ->  | T32: =IF(G32="compost",GOTO T32,"") ->  | U32: =IF(G32="compost",GOTO U32,"") ->  | V32: =IF(G32="compost",GOTO V32,"") ->  | W32: =IF(G32="compost",GOTO W32,"") ->  | X32: =IF(G32="maintenance, garden",GOTO X32,IF(G32="Table",GOTO X32,IF(G32="maintenance, project",GOTO X32,""))) ->  | Y32: =IF(G32="Maintenance, garden",GOTO Y32,IF(G32="Table",GOTO Y32,IF(G32="maintenance, project",GOTO Y32,""))) -> 
A33: 2023-08-10 | D33: volunteers | G33: harvest | H33: eggplant | I33: M10 | J33: 4 | K33: 7 | L33: =IF(G33="Fertilize",GOTO L33,"") ->  | N33: =IF(G33="fertilize",GOTO N33,"") ->  | Q33: =IF(G33="compost",GOTO Q33,"") ->  | R33: =IF(G33="compost",GOTO R33,"") ->  | S33: =IF(G33="compost",GOTO S33,"") ->  | T33: =IF(G33="compost",GOTO T33,"") ->  | U33: =IF(G33="compost",GOTO U33,"") ->  | V33: =IF(G33="compost",GOTO V33,"") ->  | W33: =IF(G33="compost",GOTO W33,"") ->  | X33: =IF(G33="maintenance, garden",GOTO X33,IF(G33="Table",GOTO X33,IF(G33="maintenance, project",GOTO X33,""))) ->  | Y33: =IF(G33="Maintenance, garden",GOTO Y33,IF(G33="Table",GOTO Y33,IF(G33="maintenance, project",GOTO Y33,""))) -> 
A34: 2023-08-10 | D34: volunteers | G34: harvest | H34: squash | I34: M14 | J34: 1 | K34: 5 | L34: =IF(G34="Fertilize",GOTO L34,"") ->  | N34: =IF(G34="fertilize",GOTO N34,"") ->  | Q34: =IF(G34="compost",GOTO Q34,"") ->  | R34: =IF(G34="compost",GOTO R34,"") ->  | S34: =IF(G34="compost",GOTO S34,"") ->  | T34: =IF(G34="compost",GOTO T34,"") ->  | U34: =IF(G34="compost",GOTO U34,"") ->  | V34: =IF(G34="compost",GOTO V34,"") ->  | W34: =IF(G34="compost",GOTO W34,"") ->  | X34: =IF(G34="maintenance, garden",GOTO X34,IF(G34="Table",GOTO X34,IF(G34="maintenance, project",GOTO X34,""))) ->  | Y34: =IF(G34="Maintenance, garden",GOTO Y34,IF(G34="Table",GOTO Y34,IF(G34="maintenance, project",GOTO Y34,""))) -> 
A35: 2023-08-10 | D35: volunteers | G35: harvest | H35: peppers, serrano | I35: O28 | J35: 0 | K35: 5 | L35: =IF(G35="Fertilize",GOTO L35,"") ->  | N35: =IF(G35="fertilize",GOTO N35,"") ->  | Q35: =IF(G35="compost",GOTO Q35,"") ->  | R35: =IF(G35="compost",GOTO R35,"") ->  | S35: =IF(G35="compost",GOTO S35,"") ->  | T35: =IF(G35="compost",GOTO T35,"") ->  | U35: =IF(G35="compost",GOTO U35,"") ->  | V35: =IF(G35="compost",GOTO V35,"") ->  | W35: =IF(G35="compost",GOTO W35,"") ->  | X35: =IF(G35="maintenance, garden",GOTO X35,IF(G35="Table",GOTO X35,IF(G35="maintenance, project",GOTO X35,""))) ->  | Y35: =IF(G35="Maintenance, garden",GOTO Y35,IF(G35="Table",GOTO Y35,IF(G35="maintenance, project",GOTO Y35,""))) -> 
A36: 2023-08-10 | D36: volunteers | G36: harvest | H36: tomatoes | I36: orchard | J36: 0 | K36: 6 | L36: =IF(G36="Fertilize",GOTO L36,"") ->  | N36: =IF(G36="fertilize",GOTO N36,"") ->  | Q36: =IF(G36="compost",GOTO Q36,"") ->  | R36: =IF(G36="compost",GOTO R36,"") ->  | S36: =IF(G36="compost",GOTO S36,"") ->  | T36: =IF(G36="compost",GOTO T36,"") ->  | U36: =IF(G36="compost",GOTO U36,"") ->  | V36: =IF(G36="compost",GOTO V36,"") ->  | W36: =IF(G36="compost",GOTO W36,"") ->  | X36: =IF(G36="maintenance, garden",GOTO X36,IF(G36="Table",GOTO X36,IF(G36="maintenance, project",GOTO X36,""))) ->  | Y36: =IF(G36="Maintenance, garden",GOTO Y36,IF(G36="Table",GOTO Y36,IF(G36="maintenance, project",GOTO Y36,""))) -> 
A37: 2023-08-10 | D37: volunteers | G37: harvest | H37: cucumbers | I37: O15, M6 | J37: 2 | K37: 8 | L37: =IF(G37="Fertilize",GOTO L37,"") ->  | N37: =IF(G37="fertilize",GOTO N37,"") ->  | Q37: =IF(G37="compost",GOTO Q37,"") ->  | R37: =IF(G37="compost",GOTO R37,"") ->  | S37: =IF(G37="compost",GOTO S37,"") ->  | T37: =IF(G37="compost",GOTO T37,"") ->  | U37: =IF(G37="compost",GOTO U37,"") ->  | V37: =IF(G37="compost",GOTO V37,"") ->  | W37: =IF(G37="compost",GOTO W37,"") ->  | X37: =IF(G37="maintenance, garden",GOTO X37,IF(G37="Table",GOTO X37,IF(G37="maintenance, project",GOTO X37,""))) ->  | Y37: =IF(G37="Maintenance, garden",GOTO Y37,IF(G37="Table",GOTO Y37,IF(G37="maintenance, project",GOTO Y37,""))) -> 
A38: 2023-08-10 | D38: volunteers | G38: harvest | H38: beans, yard long | I38: M7 | J38: 2 | K38: 0 | L38: =IF(G38="Fertilize",GOTO L38,"") ->  | N38: =IF(G38="fertilize",GOTO N38,"") ->  | Q38: =IF(G38="compost",GOTO Q38,"") ->  | R38: =IF(G38="compost",GOTO R38,"") ->  | S38: =IF(G38="compost",GOTO S38,"") ->  | T38: =IF(G38="compost",GOTO T38,"") ->  | U38: =IF(G38="compost",GOTO U38,"") ->  | V38: =IF(G38="compost",GOTO V38,"") ->  | W38: =IF(G38="compost",GOTO W38,"") ->  | X38: =IF(G38="maintenance, garden",GOTO X38,IF(G38="Table",GOTO X38,IF(G38="maintenance, project",GOTO X38,""))) ->  | Y38: =IF(G38="Maintenance, garden",GOTO Y38,IF(G38="Table",GOTO Y38,IF(G38="maintenance, project",GOTO Y38,""))) -> 
A39: 2023-08-10 | D39: volunteers | G39: maintenance, project | H39: =IF(A39="","",IF(G39="maintenance, garden","",IF(G39="maintenance, project","",IF(G39="compost","",GOTO I39)))) ->  | I39: arbor trees along athletic field | J39: =IF(G39="Harvest",GOTO J39,"") ->  | K39: =IF(G39="Harvest",GOTO K39,"") ->  | L39: =IF(G39="Fertilize",GOTO L39,"") ->  | N39: =IF(G39="fertilize",GOTO N39,"") ->  | Q39: =IF(G39="compost",GOTO Q39,"") ->  | R39: =IF(G39="compost",GOTO R39,"") ->  | S39: =IF(G39="compost",GOTO S39,"") ->  | T39: =IF(G39="compost",GOTO T39,"") ->  | U39: =IF(G39="compost",GOTO U39,"") ->  | V39: =IF(G39="compost",GOTO V39,"") ->  | W39: =IF(G39="compost",GOTO W39,"") ->  | X39: install landscape timbers to protect trees | Y39: 4 X 4 timbers + mulch
A40: 2023-08-12 | D40: volunteers | G40: harvest | H40: okra | I40: M11,O11,12,17 | J40: 1 | K40: 0 | L40: =IF(G40="Fertilize",GOTO L40,"") ->  | N40: =IF(G40="fertilize",GOTO N40,"") ->  | Q40: =IF(G40="compost",GOTO Q40,"") ->  | R40: =IF(G40="compost",GOTO R40,"") ->  | S40: =IF(G40="compost",GOTO S40,"") ->  | T40: =IF(G40="compost",GOTO T40,"") ->  | U40: =IF(G40="compost",GOTO U40,"") ->  | V40: =IF(G40="compost",GOTO V40,"") ->  | W40: =IF(G40="compost",GOTO W40,"") ->  | X40: =IF(G40="maintenance, garden",GOTO X40,IF(G40="Table",GOTO X40,IF(G40="maintenance, project",GOTO X40,""))) ->  | Y40: =IF(G40="Maintenance, garden",GOTO Y40,IF(G40="Table",GOTO Y40,IF(G40="maintenance, project",GOTO Y40,""))) -> 
A41: 2023-08-12 | D41: volunteers | G41: harvest | H41: cucumbers | I41: O15, M6 | J41: 1 | K41: 6 | L41: =IF(G41="Fertilize",GOTO L41,"") ->  | N41: =IF(G41="fertilize",GOTO N41,"") ->  | Q41: =IF(G41="compost",GOTO Q41,"") ->  | R41: =IF(G41="compost",GOTO R41,"") ->  | S41: =IF(G41="compost",GOTO S41,"") ->  | T41: =IF(G41="compost",GOTO T41,"") ->  | U41: =IF(G41="compost",GOTO U41,"") ->  | V41: =IF(G41="compost",GOTO V41,"") ->  | W41: =IF(G41="compost",GOTO W41,"") ->  | X41: =IF(G41="maintenance, garden",GOTO X41,IF(G41="Table",GOTO X41,IF(G41="maintenance, project",GOTO X41,""))) ->  | Y41: =IF(G41="Maintenance, garden",GOTO Y41,IF(G41="Table",GOTO Y41,IF(G41="maintenance, project",GOTO Y41,""))) -> 
A42: 2023-08-12 | D42: volunteers | G42: harvest | H42: eggplant | I42: M10 | J42: 0 | K42: 15 | L42: =IF(G42="Fertilize",GOTO L42,"") ->  | N42: =IF(G42="fertilize",GOTO N42,"") ->  | Q42: =IF(G42="compost",GOTO Q42,"") ->  | R42: =IF(G42="compost",GOTO R42,"") ->  | S42: =IF(G42="compost",GOTO S42,"") ->  | T42: =IF(G42="compost",GOTO T42,"") ->  | U42: =IF(G42="compost",GOTO U42,"") ->  | V42: =IF(G42="compost",GOTO V42,"") ->  | W42: =IF(G42="compost",GOTO W42,"") ->  | X42: =IF(G42="maintenance, garden",GOTO X42,IF(G42="Table",GOTO X42,IF(G42="maintenance, project",GOTO X42,""))) ->  | Y42: =IF(G42="Maintenance, garden",GOTO Y42,IF(G42="Table",GOTO Y42,IF(G42="maintenance, project",GOTO Y42,""))) -> 
A43: 2023-08-12 | D43: volunteers | G43: harvest | H43: beans, yard long | I43: M7,M3 | J43: 1 | K43: 14 | L43: =IF(G43="Fertilize",GOTO L43,"") ->  | N43: =IF(G43="fertilize",GOTO N43,"") ->  | Q43: =IF(G43="compost",GOTO Q43,"") ->  | R43: =IF(G43="compost",GOTO R43,"") ->  | S43: =IF(G43="compost",GOTO S43,"") ->  | T43: =IF(G43="compost",GOTO T43,"") ->  | U43: =IF(G43="compost",GOTO U43,"") ->  | V43: =IF(G43="compost",GOTO V43,"") ->  | W43: =IF(G43="compost",GOTO W43,"") ->  | X43: =IF(G43="maintenance, garden",GOTO X43,IF(G43="Table",GOTO X43,IF(G43="maintenance, project",GOTO X43,""))) ->  | Y43: =IF(G43="Maintenance, garden",GOTO Y43,IF(G43="Table",GOTO Y43,IF(G43="maintenance, project",GOTO Y43,""))) -> 
A44: 2023-08-12 | D44: volunteers | G44: harvest | H44: peppers, serrano | I44: O28 | J44: 0 | K44: 8 | L44: =IF(G44="Fertilize",GOTO L44,"") ->  | N44: =IF(G44="fertilize",GOTO N44,"") ->  | Q44: =IF(G44="compost",GOTO Q44,"") ->  | R44: =IF(G44="compost",GOTO R44,"") ->  | S44: =IF(G44="compost",GOTO S44,"") ->  | T44: =IF(G44="compost",GOTO T44,"") ->  | U44: =IF(G44="compost",GOTO U44,"") ->  | V44: =IF(G44="compost",GOTO V44,"") ->  | W44: =IF(G44="compost",GOTO W44,"") ->  | X44: =IF(G44="maintenance, garden",GOTO X44,IF(G44="Table",GOTO X44,IF(G44="maintenance, project",GOTO X44,""))) ->  | Y44: =IF(G44="Maintenance, garden",GOTO Y44,IF(G44="Table",GOTO Y44,IF(G44="maintenance, project",GOTO Y44,""))) -> 
A45: 2023-08-12 | D45: volunteers | G45: harvest | H45: grapes | I45: M4 | J45: 4 | K45: 7 | L45: =IF(G45="Fertilize",GOTO L45,"") ->  | N45: =IF(G45="fertilize",GOTO N45,"") ->  | Q45: =IF(G45="compost",GOTO Q45,"") ->  | R45: =IF(G45="compost",GOTO R45,"") ->  | S45: =IF(G45="compost",GOTO S45,"") ->  | T45: =IF(G45="compost",GOTO T45,"") ->  | U45: =IF(G45="compost",GOTO U45,"") ->  | V45: =IF(G45="compost",GOTO V45,"") ->  | W45: =IF(G45="compost",GOTO W45,"") ->  | X45: =IF(G45="maintenance, garden",GOTO X45,IF(G45="Table",GOTO X45,IF(G45="maintenance, project",GOTO X45,""))) ->  | Y45: =IF(G45="Maintenance, garden",GOTO Y45,IF(G45="Table",GOTO Y45,IF(G45="maintenance, project",GOTO Y45,""))) -> 
A46: 2023-08-12 | D46: volunteers | G46: maintenance, project | H46: =IF(A46="","",IF(G46="maintenance, garden","",IF(G46="maintenance, project","",IF(G46="compost","",GOTO I46)))) ->  | I46: arbor trees along athletic field | J46: =IF(G46="Harvest",GOTO J46,"") ->  | K46: =IF(G46="Harvest",GOTO K46,"") ->  | L46: =IF(G46="Fertilize",GOTO L46,"") ->  | N46: =IF(G46="fertilize",GOTO N46,"") ->  | Q46: =IF(G46="compost",GOTO Q46,"") ->  | R46: =IF(G46="compost",GOTO R46,"") ->  | S46: =IF(G46="compost",GOTO S46,"") ->  | T46: =IF(G46="compost",GOTO T46,"") ->  | U46: =IF(G46="compost",GOTO U46,"") ->  | V46: =IF(G46="compost",GOTO V46,"") ->  | W46: =IF(G46="compost",GOTO W46,"") ->  | X46: install landscape timbers to protect trees | Y46: finished 6 trees
A47: 2023-08-15 | D47: volunteers | G47: harvest | H47: okra | I47: M11, O11,12,17 | J47: 3 | K47: 15 | L47: =IF(G47="Fertilize",GOTO L47,"") ->  | N47: =IF(G47="fertilize",GOTO N47,"") ->  | Q47: =IF(G47="compost",GOTO Q47,"") ->  | R47: =IF(G47="compost",GOTO R47,"") ->  | S47: =IF(G47="compost",GOTO S47,"") ->  | T47: =IF(G47="compost",GOTO T47,"") ->  | U47: =IF(G47="compost",GOTO U47,"") ->  | V47: =IF(G47="compost",GOTO V47,"") ->  | W47: =IF(G47="compost",GOTO W47,"") ->  | X47: =IF(G47="maintenance, garden",GOTO X47,IF(G47="Table",GOTO X47,IF(G47="maintenance, project",GOTO X47,""))) ->  | Y47: =IF(G47="Maintenance, garden",GOTO Y47,IF(G47="Table",GOTO Y47,IF(G47="maintenance, project",GOTO Y47,""))) -> 
A48: 2023-08-15 | D48: volunteers | G48: harvest | H48: beans, yard long | I48: M7,M3 | J48: 0 | K48: 14 | L48: =IF(G48="Fertilize",GOTO L48,"") ->  | N48: =IF(G48="fertilize",GOTO N48,"") ->  | Q48: =IF(G48="compost",GOTO Q48,"") ->  | R48: =IF(G48="compost",GOTO R48,"") ->  | S48: =IF(G48="compost",GOTO S48,"") ->  | T48: =IF(G48="compost",GOTO T48,"") ->  | U48: =IF(G48="compost",GOTO U48,"") ->  | V48: =IF(G48="compost",GOTO V48,"") ->  | W48: =IF(G48="compost",GOTO W48,"") ->  | X48: =IF(G48="maintenance, garden",GOTO X48,IF(G48="Table",GOTO X48,IF(G48="maintenance, project",GOTO X48,""))) ->  | Y48: =IF(G48="Maintenance, garden",GOTO Y48,IF(G48="Table",GOTO Y48,IF(G48="maintenance, project",GOTO Y48,""))) -> 
A49: 2023-08-15 | D49: volunteers | G49: harvest | H49: cucumbers | I49: O15, M6 | J49: 0 | K49: 4 | L49: =IF(G49="Fertilize",GOTO L49,"") ->  | M49: =IF(G49="Fertilize",A49+14,"") ->  | N49: =IF(G49="fertilize",GOTO N49,"") ->  | Q49: =IF(G49="compost",GOTO Q49,"") ->  | R49: =IF(G49="compost",GOTO R49,"") ->  | S49: =IF(G49="compost",GOTO S49,"") ->  | T49: =IF(G49="compost",GOTO T49,"") ->  | U49: =IF(G49="compost",GOTO U49,"") ->  | V49: =IF(G49="compost",GOTO V49,"") ->  | W49: =IF(G49="compost",GOTO W49,"") ->  | X49: =IF(G49="maintenance, garden",GOTO X49,IF(G49="Table",GOTO X49,IF(G49="maintenance, project",GOTO X49,""))) ->  | Y49: =IF(G49="Maintenance, garden",GOTO Y49,IF(G49="Table",GOTO Y49,IF(G49="maintenance, project",GOTO Y49,""))) -> 
A50: 2023-08-15 | D50: volunteers | G50: harvest | H50: grapes | I50: M4 | J50: 5 | K50: 15 | L50: =IF(G50="Fertilize",GOTO L50,"") ->  | N50: =IF(G50="fertilize",GOTO N50,"") ->  | Q50: =IF(G50="compost",GOTO Q50,"") ->  | R50: =IF(G50="compost",GOTO R50,"") ->  | S50: =IF(G50="compost",GOTO S50,"") ->  | T50: =IF(G50="compost",GOTO T50,"") ->  | U50: =IF(G50="compost",GOTO U50,"") ->  | V50: =IF(G50="compost",GOTO V50,"") ->  | W50: =IF(G50="compost",GOTO W50,"") ->  | X50: =IF(G50="maintenance, garden",GOTO X50,IF(G50="Table",GOTO X50,IF(G50="maintenance, project",GOTO X50,""))) ->  | Y50: =IF(G50="Maintenance, garden",GOTO Y50,IF(G50="Table",GOTO Y50,IF(G50="maintenance, project",GOTO Y50,""))) -> 
A51: 2023-08-15 | D51: volunteers | G51: maintenance, project | H51: =IF(A51="","",IF(G51="maintenance, garden","",IF(G51="maintenance, project","",IF(G51="compost","",GOTO I51)))) ->  | I51: arbor trees along athletic field | J51: =IF(G51="Harvest",GOTO J51,"") ->  | K51: =IF(G51="Harvest",GOTO K51,"") ->  | L51: =IF(G51="Fertilize",GOTO L51,"") ->  | N51: =IF(G51="fertilize",GOTO N51,"") ->  | R51: =IF(G51="compost",GOTO R51,"") ->  | S51: =IF(G51="compost",GOTO S51,"") ->  | T51: =IF(G51="compost",GOTO T51,"") ->  | U51: =IF(G51="compost",GOTO U51,"") ->  | V51: =IF(G51="compost",GOTO V51,"") ->  | W51: =IF(G51="compost",GOTO W51,"") ->  | X51: installed mushroom water sprinklers on all | Y51: mulched all trees
A52: 2023-08-17 | D52: volunteers | G52: plant | H52: carrots, danver | I52: M13a | J52: =IF(G52="Harvest",GOTO J52,"") ->  | K52: =IF(G52="Harvest",GOTO K52,"") ->  | L52: =IF(G52="Fertilize",GOTO L52,"") ->  | N52: =IF(G52="fertilize",GOTO N52,"") ->  | O52: planted one row next to trellis | P52: 2023-08-31 | Q52: =IF(G52="compost",GOTO Q52,"") ->  | R52: =IF(G52="compost",GOTO R52,"") ->  | S52: =IF(G52="compost",GOTO S52,"") ->  | T52: =IF(G52="compost",GOTO T52,"") ->  | U52: =IF(G52="compost",GOTO U52,"") ->  | V52: =IF(G52="compost",GOTO V52,"") ->  | W52: =IF(G52="compost",GOTO W52,"") ->  | X52: =IF(G52="maintenance, garden",GOTO X52,IF(G52="Table",GOTO X52,IF(G52="maintenance, project",GOTO X52,""))) ->  | Y52: =IF(G52="Maintenance, garden",GOTO Y52,IF(G52="Table",GOTO Y52,IF(G52="maintenance, project",GOTO Y52,""))) -> 
A53: 2023-08-17 | D53: volunteers | G53: plant | H53: turnips, hakurei | I53: M13b | J53: =IF(G53="Harvest",GOTO J53,"") ->  | K53: =IF(G53="Harvest",GOTO K53,"") ->  | L53: =IF(G53="Fertilize",GOTO L53,"") ->  | N53: =IF(G53="fertilize",GOTO N53,"") ->  | O53: planted one row next to trellis | P53: 2023-08-31 | Q53: =IF(G53="compost",GOTO Q53,"") ->  | R53: =IF(G53="compost",GOTO R53,"") ->  | S53: =IF(G53="compost",GOTO S53,"") ->  | T53: =IF(G53="compost",GOTO T53,"") ->  | U53: =IF(G53="compost",GOTO U53,"") ->  | V53: =IF(G53="compost",GOTO V53,"") ->  | W53: =IF(G53="compost",GOTO W53,"") ->  | X53: =IF(G53="maintenance, garden",GOTO X53,IF(G53="Table",GOTO X53,IF(G53="maintenance, project",GOTO X53,""))) ->  | Y53: =IF(G53="Maintenance, garden",GOTO Y53,IF(G53="Table",GOTO Y53,IF(G53="maintenance, project",GOTO Y53,""))) -> 
A54: 2023-08-17 | D54: volunteers | G54: maintenance, garden | H54: =IF(A54="","",IF(G54="maintenance, garden","",IF(G54="maintenance, project","",IF(G54="compost","",GOTO I54)))) ->  | I54: M5a/b | J54: =IF(G54="Harvest",GOTO J54,"") ->  | K54: =IF(G54="Harvest",GOTO K54,"") ->  | L54: =IF(G54="Fertilize",GOTO L54,"") ->  | N54: =IF(G54="fertilize",GOTO N54,"") ->  | O54: =IF(G54="Plant",O54,"") ->  | Q54: =IF(G54="compost",GOTO Q54,"") ->  | R54: =IF(G54="compost",GOTO R54,"") ->  | S54: =IF(G54="compost",GOTO S54,"") ->  | T54: =IF(G54="compost",GOTO T54,"") ->  | U54: =IF(G54="compost",GOTO U54,"") ->  | V54: =IF(G54="compost",GOTO V54,"") ->  | W54: =IF(G54="compost",GOTO W54,"") ->  | X54: removed old tomato plants and added compost | Y54: added compost as mulch
A55: 2023-08-17 | D55: volunteers | G55: maintenance, garden | H55: =IF(A55="","",IF(G55="maintenance, garden","",IF(G55="maintenance, project","",IF(G55="compost","",GOTO I55)))) ->  | I55: M14a/b | J55: =IF(G55="Harvest",GOTO J55,"") ->  | K55: =IF(G55="Harvest",GOTO K55,"") ->  | L55: =IF(G55="Fertilize",GOTO L55,"") ->  | N55: =IF(G55="fertilize",GOTO N55,"") ->  | Q55: =IF(G55="compost",GOTO Q55,"") ->  | R55: =IF(G55="compost",GOTO R55,"") ->  | S55: =IF(G55="compost",GOTO S55,"") ->  | T55: =IF(G55="compost",GOTO T55,"") ->  | U55: =IF(G55="compost",GOTO U55,"") ->  | V55: =IF(G55="compost",GOTO V55,"") ->  | W55: =IF(G55="compost",GOTO W55,"") ->  | X55: removed some squash plants and added compost as mulch | Y55: cut plants off, no digging (no dig garden)
A56: 2023-08-17 | D56: volunteers | G56: harvest | H56: okra | I56: M11,O11,12,17 | J56: 1 | K56: 14 | L56: =IF(G56="Fertilize",GOTO L56,"") ->  | N56: =IF(G56="fertilize",GOTO N56,"") ->  | Q56: =IF(G56="compost",GOTO Q56,"") ->  | R56: =IF(G56="compost",GOTO R56,"") ->  | S56: =IF(G56="compost",GOTO S56,"") ->  | T56: =IF(G56="compost",GOTO T56,"") ->  | U56: =IF(G56="compost",GOTO U56,"") ->  | V56: =IF(G56="compost",GOTO V56,"") ->  | W56: =IF(G56="compost",GOTO W56,"") ->  | X56: =IF(G56="maintenance, garden",GOTO X56,IF(G56="Table",GOTO X56,IF(G56="maintenance, project",GOTO X56,""))) ->  | Y56: =IF(G56="Maintenance, garden",GOTO Y56,IF(G56="Table",GOTO Y56,IF(G56="maintenance, project",GOTO Y56,""))) -> 
A57: 2023-08-17 | D57: volunteers | G57: harvest | H57: eggplant | I57: M10 | J57: 2 | K57: 0 | L57: =IF(G57="Fertilize",GOTO L57,"") ->  | N57: =IF(G57="fertilize",GOTO N57,"") ->  | Q57: =IF(G57="compost",GOTO Q57,"") ->  | R57: =IF(G57="compost",GOTO R57,"") ->  | S57: =IF(G57="compost",GOTO S57,"") ->  | T57: =IF(G57="compost",GOTO T57,"") ->  | U57: =IF(G57="compost",GOTO U57,"") ->  | V57: =IF(G57="compost",GOTO V57,"") ->  | W57: =IF(G57="compost",GOTO W57,"") ->  | X57: =IF(G57="maintenance, garden",GOTO X57,IF(G57="Table",GOTO X57,IF(G57="maintenance, project",GOTO X57,""))) ->  | Y57: =IF(G57="Maintenance, garden",GOTO Y57,IF(G57="Table",GOTO Y57,IF(G57="maintenance, project",GOTO Y57,""))) -> 
A58: 2023-08-17 | D58: volunteers | G58: harvest | H58: squash, summer | I58: M14 | J58: 0 | K58: 5 | L58: =IF(G58="Fertilize",GOTO L58,"") ->  | N58: =IF(G58="fertilize",GOTO N58,"") ->  | Q58: =IF(G58="compost",GOTO Q58,"") ->  | R58: =IF(G58="compost",GOTO R58,"") ->  | S58: =IF(G58="compost",GOTO S58,"") ->  | T58: =IF(G58="compost",GOTO T58,"") ->  | U58: =IF(G58="compost",GOTO U58,"") ->  | V58: =IF(G58="compost",GOTO V58,"") ->  | W58: =IF(G58="compost",GOTO W58,"") ->  | X58: =IF(G58="maintenance, garden",GOTO X58,IF(G58="Table",GOTO X58,IF(G58="maintenance, project",GOTO X58,""))) ->  | Y58: =IF(G58="Maintenance, garden",GOTO Y58,IF(G58="Table",GOTO Y58,IF(G58="maintenance, project",GOTO Y58,""))) -> 
A59: 2023-08-17 | D59: volunteers | G59: harvest | H59: cucumbers | I59: m6,O15 | J59: 0 | K59: 3 | L59: =IF(G59="Fertilize",GOTO L59,"") ->  | N59: =IF(G59="fertilize",GOTO N59,"") ->  | Q59: =IF(G59="compost",GOTO Q59,"") ->  | R59: =IF(G59="compost",GOTO R59,"") ->  | S59: =IF(G59="compost",GOTO S59,"") ->  | T59: =IF(G59="compost",GOTO T59,"") ->  | U59: =IF(G59="compost",GOTO U59,"") ->  | V59: =IF(G59="compost",GOTO V59,"") ->  | W59: =IF(G59="compost",GOTO W59,"") ->  | X59: =IF(G59="maintenance, garden",GOTO X59,IF(G59="Table",GOTO X59,IF(G59="maintenance, project",GOTO X59,""))) ->  | Y59: =IF(G59="Maintenance, garden",GOTO Y59,IF(G59="Table",GOTO Y59,IF(G59="maintenance, project",GOTO Y59,""))) -> 
A60: 2023-08-17 | D60: volunteers | G60: harvest | H60: beans, yard long | I60: M7 | J60: 0 | K60: 3 | L60: =IF(G60="Fertilize",GOTO L60,"") ->  | N60: =IF(G60="fertilize",GOTO N60,"") ->  | Q60: =IF(G60="compost",GOTO Q60,"") ->  | R60: =IF(G60="compost",GOTO R60,"") ->  | S60: =IF(G60="compost",GOTO S60,"") ->  | T60: =IF(G60="compost",GOTO T60,"") ->  | U60: =IF(G60="compost",GOTO U60,"") ->  | V60: =IF(G60="compost",GOTO V60,"") ->  | W60: =IF(G60="compost",GOTO W60,"") ->  | X60: =IF(G60="maintenance, garden",GOTO X60,IF(G60="Table",GOTO X60,IF(G60="maintenance, project",GOTO X60,""))) ->  | Y60: =IF(G60="Maintenance, garden",GOTO Y60,IF(G60="Table",GOTO Y60,IF(G60="maintenance, project",GOTO Y60,""))) -> 
A61: 2023-08-17 | D61: volunteers | G61: harvest | H61: grapes | I61: M4 | J61: 5 | K61: 10 | L61: =IF(G61="Fertilize",GOTO L61,"") ->  | N61: =IF(G61="fertilize",GOTO N61,"") ->  | Q61: =IF(G61="compost",GOTO Q61,"") ->  | R61: =IF(G61="compost",GOTO R61,"") ->  | S61: =IF(G61="compost",GOTO S61,"") ->  | T61: =IF(G61="compost",GOTO T61,"") ->  | U61: =IF(G61="compost",GOTO U61,"") ->  | V61: =IF(G61="compost",GOTO V61,"") ->  | W61: =IF(G61="compost",GOTO W61,"") ->  | X61: =IF(G61="maintenance, garden",GOTO X61,IF(G61="Table",GOTO X61,IF(G61="maintenance, project",GOTO X61,""))) ->  | Y61: =IF(G61="Maintenance, garden",GOTO Y61,IF(G61="Table",GOTO Y61,IF(G61="maintenance, project",GOTO Y61,""))) -> 
A62: 2023-08-19 | D62: volunteers | G62: harvest | H62: grapes | I62: M4 | J62: 2 | K62: 6 | L62: =IF(G62="Fertilize",GOTO L62,"") ->  | N62: =IF(G62="fertilize",GOTO N62,"") ->  | Q62: =IF(G62="compost",GOTO Q62,"") ->  | R62: =IF(G62="compost",GOTO R62,"") ->  | S62: =IF(G62="compost",GOTO S62,"") ->  | T62: =IF(G62="compost",GOTO T62,"") ->  | U62: =IF(G62="compost",GOTO U62,"") ->  | V62: =IF(G62="compost",GOTO V62,"") ->  | W62: =IF(G62="compost",GOTO W62,"") ->  | X62: =IF(G62="maintenance, garden",GOTO X62,IF(G62="Table",GOTO X62,IF(G62="maintenance, project",GOTO X62,""))) ->  | Y62: =IF(G62="Maintenance, garden",GOTO Y62,IF(G62="Table",GOTO Y62,IF(G62="maintenance, project",GOTO Y62,""))) -> 
A63: 2023-08-19 | D63: volunteers | G63: harvest | H63: squash, summer | I63: M14 | J63: 0 | K63: 5 | L63: =IF(G63="Fertilize",GOTO L63,"") ->  | N63: =IF(G63="fertilize",GOTO N63,"") ->  | Q63: =IF(G63="compost",GOTO Q63,"") ->  | R63: =IF(G63="compost",GOTO R63,"") ->  | S63: =IF(G63="compost",GOTO S63,"") ->  | T63: =IF(G63="compost",GOTO T63,"") ->  | U63: =IF(G63="compost",GOTO U63,"") ->  | V63: =IF(G63="compost",GOTO V63,"") ->  | W63: =IF(G63="compost",GOTO W63,"") ->  | X63: =IF(G63="maintenance, garden",GOTO X63,IF(G63="Table",GOTO X63,IF(G63="maintenance, project",GOTO X63,""))) ->  | Y63: =IF(G63="Maintenance, garden",GOTO Y63,IF(G63="Table",GOTO Y63,IF(G63="maintenance, project",GOTO Y63,""))) -> 
A64: 2023-08-19 | D64: volunteers | G64: harvest | H64: okra | I64: M11,O11,12,17 | J64: 1 | K64: 15 | L64: =IF(G64="Fertilize",GOTO L64,"") ->  | N64: =IF(G64="fertilize",GOTO N64,"") ->  | Q64: =IF(G64="compost",GOTO Q64,"") ->  | R64: =IF(G64="compost",GOTO R64,"") ->  | S64: =IF(G64="compost",GOTO S64,"") ->  | T64: =IF(G64="compost",GOTO T64,"") ->  | U64: =IF(G64="compost",GOTO U64,"") ->  | V64: =IF(G64="compost",GOTO V64,"") ->  | W64: =IF(G64="compost",GOTO W64,"") ->  | X64: =IF(G64="maintenance, garden",GOTO X64,IF(G64="Table",GOTO X64,IF(G64="maintenance, project",GOTO X64,""))) ->  | Y64: =IF(G64="Maintenance, garden",GOTO Y64,IF(G64="Table",GOTO Y64,IF(G64="maintenance, project",GOTO Y64,""))) -> 
A65: 2023-08-19 | D65: volunteers | G65: harvest | H65: cucumbers | I65: O15, M6 | J65: 0 | K65: 2 | L65: =IF(G65="Fertilize",GOTO L65,"") ->  | N65: =IF(G65="fertilize",GOTO N65,"") ->  | Q65: =IF(G65="compost",GOTO Q65,"") ->  | R65: =IF(G65="compost",GOTO R65,"") ->  | S65: =IF(G65="compost",GOTO S65,"") ->  | T65: =IF(G65="compost",GOTO T65,"") ->  | U65: =IF(G65="compost",GOTO U65,"") ->  | V65: =IF(G65="compost",GOTO V65,"") ->  | W65: =IF(G65="compost",GOTO W65,"") ->  | X65: =IF(G65="maintenance, garden",GOTO X65,IF(G65="Table",GOTO X65,IF(G65="maintenance, project",GOTO X65,""))) ->  | Y65: =IF(G65="Maintenance, garden",GOTO Y65,IF(G65="Table",GOTO Y65,IF(G65="maintenance, project",GOTO Y65,""))) -> 
A66: 2023-08-19 | D66: volunteers | G66: harvest | H66: beans, yard long | I66: M7,M3 | J66: 2 | K66: 0 | L66: =IF(G66="Fertilize",GOTO L66,"") ->  | N66: =IF(G66="fertilize",GOTO N66,"") ->  | Q66: =IF(G66="compost",GOTO Q66,"") ->  | R66: =IF(G66="compost",GOTO R66,"") ->  | S66: =IF(G66="compost",GOTO S66,"") ->  | T66: =IF(G66="compost",GOTO T66,"") ->  | U66: =IF(G66="compost",GOTO U66,"") ->  | V66: =IF(G66="compost",GOTO V66,"") ->  | W66: =IF(G66="compost",GOTO W66,"") ->  | X66: =IF(G66="maintenance, garden",GOTO X66,IF(G66="Table",GOTO X66,IF(G66="maintenance, project",GOTO X66,""))) ->  | Y66: =IF(G66="Maintenance, garden",GOTO Y66,IF(G66="Table",GOTO Y66,IF(G66="maintenance, project",GOTO Y66,""))) -> 
A67: 2023-08-19 | D67: volunteers | G67: harvest | H67: peppers, serrano | I67: O28 | J67: 2 | K67: 10 | L67: =IF(G67="Fertilize",GOTO L67,"") ->  | N67: =IF(G67="fertilize",GOTO N67,"") ->  | Q67: =IF(G67="compost",GOTO Q67,"") ->  | R67: =IF(G67="compost",GOTO R67,"") ->  | S67: =IF(G67="compost",GOTO S67,"") ->  | T67: =IF(G67="compost",GOTO T67,"") ->  | U67: =IF(G67="compost",GOTO U67,"") ->  | V67: =IF(G67="compost",GOTO V67,"") ->  | W67: =IF(G67="compost",GOTO W67,"") ->  | X67: =IF(G67="maintenance, garden",GOTO X67,IF(G67="Table",GOTO X67,IF(G67="maintenance, project",GOTO X67,""))) ->  | Y67: =IF(G67="Maintenance, garden",GOTO Y67,IF(G67="Table",GOTO Y67,IF(G67="maintenance, project",GOTO Y67,""))) -> 
A68: 2023-08-19 | D68: volunteers | G68: plant | H68: herbs | I68: 3 tier bed | J68: =IF(G68="Harvest",GOTO J68,"") ->  | K68: =IF(G68="Harvest",GOTO K68,"") ->  | L68: =IF(G68="Fertilize",GOTO L68,"") ->  | N68: =IF(G68="fertilize",GOTO N68,"") ->  | O68: moved all herbs from prior bed to new bed | P68: 2023-09-02 | Q68: =IF(G68="compost",GOTO Q68,"") ->  | R68: =IF(G68="compost",GOTO R68,"") ->  | S68: =IF(G68="compost",GOTO S68,"") ->  | T68: =IF(G68="compost",GOTO T68,"") ->  | U68: =IF(G68="compost",GOTO U68,"") ->  | V68: =IF(G68="compost",GOTO V68,"") ->  | W68: =IF(G68="compost",GOTO W68,"") ->  | X68: =IF(G68="maintenance, garden",GOTO X68,IF(G68="Table",GOTO X68,IF(G68="maintenance, project",GOTO X68,""))) ->  | Y68: =IF(G68="Maintenance, garden",GOTO Y68,IF(G68="Table",GOTO Y68,IF(G68="maintenance, project",GOTO Y68,""))) -> 
A69: 2023-08-22 | D69: volunteers | G69: harvest | H69: grapes | I69: M4 | J69: 1 | K69: 6 | L69: =IF(G69="Fertilize",GOTO L69,"") ->  | N69: =IF(G69="fertilize",GOTO N69,"") ->  | O69: =IF(G69="Plant",O69,"") ->  | Q69: =IF(G69="compost",GOTO Q69,"") ->  | R69: =IF(G69="compost",GOTO R69,"") ->  | S69: =IF(G69="compost",GOTO S69,"") ->  | T69: =IF(G69="compost",GOTO T69,"") ->  | U69: =IF(G69="compost",GOTO U69,"") ->  | V69: =IF(G69="compost",GOTO V69,"") ->  | W69: =IF(G69="compost",GOTO W69,"") ->  | X69: =IF(G69="maintenance, garden",GOTO X69,IF(G69="Table",GOTO X69,IF(G69="maintenance, project",GOTO X69,""))) ->  | Y69: =IF(G69="Maintenance, garden",GOTO Y69,IF(G69="Table",GOTO Y69,IF(G69="maintenance, project",GOTO Y69,""))) -> 
A70: 2023-08-22 | D70: volunteers | G70: harvest | H70: okra | I70: M11,O11,12,17 | J70: 3 | K70: 10 | L70: =IF(G70="Fertilize",GOTO L70,"") ->  | N70: =IF(G70="fertilize",GOTO N70,"") ->  | Q70: =IF(G70="compost",GOTO Q70,"") ->  | R70: =IF(G70="compost",GOTO R70,"") ->  | S70: =IF(G70="compost",GOTO S70,"") ->  | T70: =IF(G70="compost",GOTO T70,"") ->  | U70: =IF(G70="compost",GOTO U70,"") ->  | V70: =IF(G70="compost",GOTO V70,"") ->  | W70: =IF(G70="compost",GOTO W70,"") ->  | X70: =IF(G70="maintenance, garden",GOTO X70,IF(G70="Table",GOTO X70,IF(G70="maintenance, project",GOTO X70,""))) ->  | Y70: =IF(G70="Maintenance, garden",GOTO Y70,IF(G70="Table",GOTO Y70,IF(G70="maintenance, project",GOTO Y70,""))) -> 
A71: 2023-08-22 | D71: volunteers | G71: harvest | H71: beans, yard long | I71: M7,M3 | J71: 1 | K71: 7 | L71: =IF(G71="Fertilize",GOTO L71,"") ->  | N71: =IF(G71="fertilize",GOTO N71,"") ->  | P71: =IF(G71="Plant", A71+14,"") ->  | Q71: =IF(G71="compost",GOTO Q71,"") ->  | R71: =IF(G71="compost",GOTO R71,"") ->  | S71: =IF(G71="compost",GOTO S71,"") ->  | T71: =IF(G71="compost",GOTO T71,"") ->  | U71: =IF(G71="compost",GOTO U71,"") ->  | V71: =IF(G71="compost",GOTO V71,"") ->  | W71: =IF(G71="compost",GOTO W71,"") ->  | X71: =IF(G71="maintenance, garden",GOTO X71,IF(G71="Table",GOTO X71,IF(G71="maintenance, project",GOTO X71,""))) ->  | Y71: =IF(G71="Maintenance, garden",GOTO Y71,IF(G71="Table",GOTO Y71,IF(G71="maintenance, project",GOTO Y71,""))) -> 
A72: 2023-08-22 | D72: volunteers | G72: harvest | H72: peppers, serrano | I72: O28 | J72: 0 | K72: 4 | L72: =IF(G72="Fertilize",GOTO L72,"") ->  | N72: =IF(G72="fertilize",GOTO N72,"") ->  | Q72: =IF(G72="compost",GOTO Q72,"") ->  | R72: =IF(G72="compost",GOTO R72,"") ->  | S72: =IF(G72="compost",GOTO S72,"") ->  | T72: =IF(G72="compost",GOTO T72,"") ->  | U72: =IF(G72="compost",GOTO U72,"") ->  | V72: =IF(G72="compost",GOTO V72,"") ->  | W72: =IF(G72="compost",GOTO W72,"") ->  | X72: =IF(G72="maintenance, garden",GOTO X72,IF(G72="Table",GOTO X72,IF(G72="maintenance, project",GOTO X72,""))) ->  | Y72: =IF(G72="Maintenance, garden",GOTO Y72,IF(G72="Table",GOTO Y72,IF(G72="maintenance, project",GOTO Y72,""))) -> 
A73: 2023-08-22 | D73: volunteers | G73: harvest | H73: eggplant | I73: M10 | J73: 1 | K73: 7 | L73: =IF(G73="Fertilize",GOTO L73,"") ->  | N73: =IF(G73="fertilize",GOTO N73,"") ->  | Q73: =IF(G73="compost",GOTO Q73,"") ->  | R73: =IF(G73="compost",GOTO R73,"") ->  | S73: =IF(G73="compost",GOTO S73,"") ->  | T73: =IF(G73="compost",GOTO T73,"") ->  | U73: =IF(G73="compost",GOTO U73,"") ->  | V73: =IF(G73="compost",GOTO V73,"") ->  | W73: =IF(G73="compost",GOTO W73,"") ->  | X73: =IF(G73="maintenance, garden",GOTO X73,IF(G73="Table",GOTO X73,IF(G73="maintenance, project",GOTO X73,""))) ->  | Y73: =IF(G73="Maintenance, garden",GOTO Y73,IF(G73="Table",GOTO Y73,IF(G73="maintenance, project",GOTO Y73,""))) -> 
A74: 2023-08-22 | D74: volunteers | G74: harvest | H74: squash, summer | I74: M14 | J74: 0 | K74: 4 | L74: =IF(G74="Fertilize",GOTO L74,"") ->  | N74: =IF(G74="fertilize",GOTO N74,"") ->  | Q74: =IF(G74="compost",GOTO Q74,"") ->  | R74: =IF(G74="compost",GOTO R74,"") ->  | S74: =IF(G74="compost",GOTO S74,"") ->  | T74: =IF(G74="compost",GOTO T74,"") ->  | U74: =IF(G74="compost",GOTO U74,"") ->  | V74: =IF(G74="compost",GOTO V74,"") ->  | W74: =IF(G74="compost",GOTO W74,"") ->  | X74: =IF(G74="maintenance, garden",GOTO X74,IF(G74="Table",GOTO X74,IF(G74="maintenance, project",GOTO X74,""))) ->  | Y74: =IF(G74="Maintenance, garden",GOTO Y74,IF(G74="Table",GOTO Y74,IF(G74="maintenance, project",GOTO Y74,""))) -> 
A75: 2023-08-22 | D75: volunteers | G75: maintenance, project | H75: =IF(A75="","",IF(G75="maintenance, garden","",IF(G75="maintenance, project","",IF(G75="compost","",GOTO I75)))) ->  | I75: compost bins | J75: =IF(G75="Harvest",GOTO J75,"") ->  | K75: =IF(G75="Harvest",GOTO K75,"") ->  | L75: =IF(G75="Fertilize",GOTO L75,"") ->  | N75: =IF(G75="fertilize",GOTO N75,"") ->  | Q75: =IF(G75="compost",GOTO Q75,"") ->  | R75: =IF(G75="compost",GOTO R75,"") ->  | S75: =IF(G75="compost",GOTO S75,"") ->  | T75: =IF(G75="compost",GOTO T75,"") ->  | U75: =IF(G75="compost",GOTO U75,"") ->  | V75: =IF(G75="compost",GOTO V75,"") ->  | W75: =IF(G75="compost",GOTO W75,"") ->  | X75: replacing broken boards and adding new wire | Y75: dismantle and rebuild
A76: 2023-08-24 | D76: volunteers | G76: harvest | H76: okra | I76: M11, O11,12,17 | J76: 3 | K76: 12 | L76: =IF(G76="Fertilize",GOTO L76,"") ->  | N76: =IF(G76="fertilize",GOTO N76,"") ->  | Q76: =IF(G76="compost",GOTO Q76,"") ->  | R76: =IF(G76="compost",GOTO R76,"") ->  | S76: =IF(G76="compost",GOTO S76,"") ->  | T76: =IF(G76="compost",GOTO T76,"") ->  | U76: =IF(G76="compost",GOTO U76,"") ->  | V76: =IF(G76="compost",GOTO V76,"") ->  | W76: =IF(G76="compost",GOTO W76,"") ->  | X76: =IF(G76="maintenance, garden",GOTO X76,IF(G76="Table",GOTO X76,IF(G76="maintenance, project",GOTO X76,""))) ->  | Y76: =IF(G76="Maintenance, garden",GOTO Y76,IF(G76="Table",GOTO Y76,IF(G76="maintenance, project",GOTO Y76,""))) -> 
A77: 2023-08-24 | D77: volunteers | G77: harvest | H77: beans, yard long | I77: M7,M3 | J77: 1 | K77: 9 | L77: =IF(G77="Fertilize",GOTO L77,"") ->  | N77: =IF(G77="fertilize",GOTO N77,"") ->  | Q77: =IF(G77="compost",GOTO Q77,"") ->  | R77: =IF(G77="compost",GOTO R77,"") ->  | S77: =IF(G77="compost",GOTO S77,"") ->  | T77: =IF(G77="compost",GOTO T77,"") ->  | U77: =IF(G77="compost",GOTO U77,"") ->  | V77: =IF(G77="compost",GOTO V77,"") ->  | W77: =IF(G77="compost",GOTO W77,"") ->  | X77: =IF(G77="maintenance, garden",GOTO X77,IF(G77="Table",GOTO X77,IF(G77="maintenance, project",GOTO X77,""))) ->  | Y77: =IF(G77="Maintenance, garden",GOTO Y77,IF(G77="Table",GOTO Y77,IF(G77="maintenance, project",GOTO Y77,""))) -> 
A78: 2023-08-24 | D78: volunteers | G78: harvest | H78: peppers, serrano | I78: O28 | J78: 0 | K78: 1 | L78: =IF(G78="Fertilize",GOTO L78,"") ->  | N78: =IF(G78="fertilize",GOTO N78,"") ->  | Q78: =IF(G78="compost",GOTO Q78,"") ->  | R78: =IF(G78="compost",GOTO R78,"") ->  | S78: =IF(G78="compost",GOTO S78,"") ->  | T78: =IF(G78="compost",GOTO T78,"") ->  | U78: =IF(G78="compost",GOTO U78,"") ->  | V78: =IF(G78="compost",GOTO V78,"") ->  | W78: =IF(G78="compost",GOTO W78,"") ->  | X78: =IF(G78="maintenance, garden",GOTO X78,IF(G78="Table",GOTO X78,IF(G78="maintenance, project",GOTO X78,""))) ->  | Y78: =IF(G78="Maintenance, garden",GOTO Y78,IF(G78="Table",GOTO Y78,IF(G78="maintenance, project",GOTO Y78,""))) -> 
A79: 2023-08-24 | D79: volunteers | G79: maintenance, project | I79: compost bins | L79: =IF(G79="Fertilize",GOTO L79,"") ->  | N79: =IF(G79="fertilize",GOTO N79,"") ->  | Q79: =IF(G79="compost",GOTO Q79,"") ->  | R79: =IF(G79="compost",GOTO R79,"") ->  | S79: =IF(G79="compost",GOTO S79,"") ->  | T79: =IF(G79="compost",GOTO T79,"") ->  | U79: =IF(G79="compost",GOTO U79,"") ->  | V79: =IF(G79="compost",GOTO V79,"") ->  | W79: =IF(G79="compost",GOTO W79,"") ->  | X79: replacing broken boards and adding new wire | Y79: dismantle and rebuild
A80: 2023-08-24 | D80: volunteers | G80: maintenance, project | I80: compost bins | L80: =IF(G80="Fertilize",GOTO L80,"") ->  | N80: =IF(G80="fertilize",GOTO N80,"") ->  | Q80: =IF(G80="compost",GOTO Q80,"") ->  | R80: =IF(G80="compost",GOTO R80,"") ->  | S80: =IF(G80="compost",GOTO S80,"") ->  | T80: =IF(G80="compost",GOTO T80,"") ->  | U80: =IF(G80="compost",GOTO U80,"") ->  | V80: =IF(G80="compost",GOTO V80,"") ->  | W80: =IF(G80="compost",GOTO W80,"") ->  | X80: replacing broken boards and adding new wire | Y80: dismantle and rebuild
A81: 2023-08-24 | D81: volunteers | G81: maintenance, garden | I81: shed | J81: =IF(G81="Harvest",GOTO J81,"") ->  | K81: =IF(G81="Harvest",GOTO K81,"") ->  | L81: =IF(G81="Fertilize",GOTO L81,"") ->  | M81: =IF(G81="Fertilize",A81+14,"") ->  | N81: =IF(G81="fertilize",GOTO N81,"") ->  | Q81: =IF(G81="compost",GOTO Q81,"") ->  | R81: =IF(G81="compost",GOTO R81,"") ->  | S81: =IF(G81="compost",GOTO S81,"") ->  | T81: =IF(G81="compost",GOTO T81,"") ->  | U81: =IF(G81="compost",GOTO U81,"") ->  | V81: =IF(G81="compost",GOTO V81,"") ->  | W81: =IF(G81="compost",GOTO W81,"") ->  | X81: replaced shed clock
A82: 2023-08-26 | D82: volunteers | G82: harvest | H82: cucumbers | I82: m6,O15 | J82: 0 | K82: 12 | L82: =IF(G82="Fertilize",GOTO L82,"") ->  | N82: =IF(G82="fertilize",GOTO N82,"") ->  | Q82: =IF(G82="compost",GOTO Q82,"") ->  | R82: =IF(G82="compost",GOTO R82,"") ->  | S82: =IF(G82="compost",GOTO S82,"") ->  | T82: =IF(G82="compost",GOTO T82,"") ->  | U82: =IF(G82="compost",GOTO U82,"") ->  | V82: =IF(G82="compost",GOTO V82,"") ->  | W82: =IF(G82="compost",GOTO W82,"") ->  | X82: =IF(G82="maintenance, garden",GOTO X82,IF(G82="Table",GOTO X82,IF(G82="maintenance, project",GOTO X82,""))) ->  | Y82: =IF(G82="Maintenance, garden",GOTO Y82,IF(G82="Table",GOTO Y82,IF(G82="maintenance, project",GOTO Y82,""))) -> 
A83: 2023-08-26 | D83: volunteers | G83: harvest | H83: beans, yard long | I83: M7 | J83: 1 | K83: 8 | L83: =IF(G83="Fertilize",GOTO L83,"") ->  | N83: =IF(G83="fertilize",GOTO N83,"") ->  | Q83: =IF(G83="compost",GOTO Q83,"") ->  | R83: =IF(G83="compost",GOTO R83,"") ->  | S83: =IF(G83="compost",GOTO S83,"") ->  | T83: =IF(G83="compost",GOTO T83,"") ->  | U83: =IF(G83="compost",GOTO U83,"") ->  | V83: =IF(G83="compost",GOTO V83,"") ->  | W83: =IF(G83="compost",GOTO W83,"") ->  | X83: =IF(G83="maintenance, garden",GOTO X83,IF(G83="Table",GOTO X83,IF(G83="maintenance, project",GOTO X83,""))) ->  | Y83: =IF(G83="Maintenance, garden",GOTO Y83,IF(G83="Table",GOTO Y83,IF(G83="maintenance, project",GOTO Y83,""))) -> 
A84: 2023-08-26 | D84: volunteers | G84: harvest | H84: okra | I84: M11,O11,12,17 | J84: 2 | K84: 10 | L84: =IF(G84="Fertilize",GOTO L84,"") ->  | N84: =IF(G84="fertilize",GOTO N84,"") ->  | Q84: =IF(G84="compost",GOTO Q84,"") ->  | R84: =IF(G84="compost",GOTO R84,"") ->  | S84: =IF(G84="compost",GOTO S84,"") ->  | T84: =IF(G84="compost",GOTO T84,"") ->  | U84: =IF(G84="compost",GOTO U84,"") ->  | V84: =IF(G84="compost",GOTO V84,"") ->  | W84: =IF(G84="compost",GOTO W84,"") ->  | X84: =IF(G84="maintenance, garden",GOTO X84,IF(G84="Table",GOTO X84,IF(G84="maintenance, project",GOTO X84,""))) ->  | Y84: =IF(G84="Maintenance, garden",GOTO Y84,IF(G84="Table",GOTO Y84,IF(G84="maintenance, project",GOTO Y84,""))) -> 
A85: 2023-08-26 | D85: volunteers | G85: harvest | H85: peppers, serrano | I85: O28 | J85: 0 | K85: 2 | L85: =IF(G85="Fertilize",GOTO L85,"") ->  | N85: =IF(G85="fertilize",GOTO N85,"") ->  | Q85: =IF(G85="compost",GOTO Q85,"") ->  | R85: =IF(G85="compost",GOTO R85,"") ->  | S85: =IF(G85="compost",GOTO S85,"") ->  | T85: =IF(G85="compost",GOTO T85,"") ->  | U85: =IF(G85="compost",GOTO U85,"") ->  | V85: =IF(G85="compost",GOTO V85,"") ->  | W85: =IF(G85="compost",GOTO W85,"") ->  | X85: =IF(G85="maintenance, garden",GOTO X85,IF(G85="Table",GOTO X85,IF(G85="maintenance, project",GOTO X85,""))) ->  | Y85: =IF(G85="Maintenance, garden",GOTO Y85,IF(G85="Table",GOTO Y85,IF(G85="maintenance, project",GOTO Y85,""))) -> 
A86: 2023-08-26 | D86: volunteers | G86: harvest | H86: squash, summer | I86: M14 | J86: 0 | K86: 4 | L86: =IF(G86="Fertilize",GOTO L86,"") ->  | N86: =IF(G86="fertilize",GOTO N86,"") ->  | Q86: =IF(G86="compost",GOTO Q86,"") ->  | R86: =IF(G86="compost",GOTO R86,"") ->  | S86: =IF(G86="compost",GOTO S86,"") ->  | T86: =IF(G86="compost",GOTO T86,"") ->  | U86: =IF(G86="compost",GOTO U86,"") ->  | V86: =IF(G86="compost",GOTO V86,"") ->  | W86: =IF(G86="compost",GOTO W86,"") ->  | X86: =IF(G86="maintenance, garden",GOTO X86,IF(G86="Table",GOTO X86,IF(G86="maintenance, project",GOTO X86,""))) ->  | Y86: =IF(G86="Maintenance, garden",GOTO Y86,IF(G86="Table",GOTO Y86,IF(G86="maintenance, project",GOTO Y86,""))) -> 
A87: 2023-08-26 | D87: volunteers | G87: harvest | H87: eggplant | I87: M10 | J87: 2 | K87: 12 | L87: =IF(G87="Fertilize",GOTO L87,"") ->  | N87: =IF(G87="fertilize",GOTO N87,"") ->  | Q87: =IF(G87="compost",GOTO Q87,"") ->  | R87: =IF(G87="compost",GOTO R87,"") ->  | S87: =IF(G87="compost",GOTO S87,"") ->  | T87: =IF(G87="compost",GOTO T87,"") ->  | U87: =IF(G87="compost",GOTO U87,"") ->  | V87: =IF(G87="compost",GOTO V87,"") ->  | W87: =IF(G87="compost",GOTO W87,"") ->  | X87: =IF(G87="maintenance, garden",GOTO X87,IF(G87="Table",GOTO X87,IF(G87="maintenance, project",GOTO X87,""))) ->  | Y87: =IF(G87="Maintenance, garden",GOTO Y87,IF(G87="Table",GOTO Y87,IF(G87="maintenance, project",GOTO Y87,""))) -> 
A88: 2023-08-26 | D88: volunteers | G88: harvest | H88: pear | I88: Orchard | J88: 0 | K88: 4 | L88: =IF(G88="Fertilize",GOTO L88,"") ->  | N88: =IF(G88="fertilize",GOTO N88,"") ->  | Q88: =IF(G88="compost",GOTO Q88,"") ->  | R88: =IF(G88="compost",GOTO R88,"") ->  | S88: =IF(G88="compost",GOTO S88,"") ->  | T88: =IF(G88="compost",GOTO T88,"") ->  | U88: =IF(G88="compost",GOTO U88,"") ->  | V88: =IF(G88="compost",GOTO V88,"") ->  | W88: =IF(G88="compost",GOTO W88,"") ->  | X88: =IF(G88="maintenance, garden",GOTO X88,IF(G88="Table",GOTO X88,IF(G88="maintenance, project",GOTO X88,""))) ->  | Y88: =IF(G88="Maintenance, garden",GOTO Y88,IF(G88="Table",GOTO Y88,IF(G88="maintenance, project",GOTO Y88,""))) -> 
A89: 2023-08-29 | D89: volunteers | G89: maintenance, project | H89: =IF(A89="","",IF(G89="maintenance, garden","",IF(G89="maintenance, project","",IF(G89="compost","",GOTO I89)))) ->  | I89: compost bins | J89: =IF(G89="Harvest",GOTO J89,"") ->  | K89: =IF(G89="Harvest",GOTO K89,"") ->  | L89: =IF(G89="Fertilize",GOTO L89,"") ->  | N89: =IF(G89="fertilize",GOTO N89,"") ->  | Q89: =IF(G89="compost",GOTO Q89,"") ->  | R89: =IF(G89="compost",GOTO R89,"") ->  | S89: =IF(G89="compost",GOTO S89,"") ->  | T89: =IF(G89="compost",GOTO T89,"") ->  | U89: =IF(G89="compost",GOTO U89,"") ->  | V89: =IF(G89="compost",GOTO V89,"") ->  | W89: =IF(G89="compost",GOTO W89,"") ->  | X89: project completed | Y89: final touchup completed
A90: 2023-08-29 | D90: volunteers | G90: maintenance, project | H90: =IF(A90="","",IF(G90="maintenance, garden","",IF(G90="maintenance, project","",IF(G90="compost","",GOTO I90)))) ->  | I90: 3 tier bed | J90: =IF(G90="Harvest",GOTO J90,"") ->  | K90: =IF(G90="Harvest",GOTO K90,"") ->  | L90: =IF(G90="Fertilize",GOTO L90,"") ->  | N90: =IF(G90="fertilize",GOTO N90,"") ->  | Q90: =IF(G90="compost",GOTO Q90,"") ->  | R90: =IF(G90="compost",GOTO R90,"") ->  | S90: =IF(G90="compost",GOTO S90,"") ->  | T90: =IF(G90="compost",GOTO T90,"") ->  | U90: =IF(G90="compost",GOTO U90,"") ->  | V90: =IF(G90="compost",GOTO V90,"") ->  | W90: =IF(G90="compost",GOTO W90,"") ->  | X90: disassembled single bed 3 tier herb | Y90: removed waste and cleaned up area
A91: 2023-08-29 | D91: volunteers | G91: maintenance, garden | H91: =IF(A91="","",IF(G91="maintenance, garden","",IF(G91="maintenance, project","",IF(G91="compost","",GOTO I91)))) ->  | I91: shed | J91: =IF(G91="Harvest",GOTO J91,"") ->  | K91: =IF(G91="Harvest",GOTO K91,"") ->  | L91: =IF(G91="Fertilize",GOTO L91,"") ->  | N91: =IF(G91="fertilize",GOTO N91,"") ->  | Q91: =IF(G91="compost",GOTO Q91,"") ->  | R91: =IF(G91="compost",GOTO R91,"") ->  | S91: =IF(G91="compost",GOTO S91,"") ->  | T91: =IF(G91="compost",GOTO T91,"") ->  | U91: =IF(G91="compost",GOTO U91,"") ->  | V91: =IF(G91="compost",GOTO V91,"") ->  | W91: =IF(G91="compost",GOTO W91,"") ->  | X91: cleaned up shed and removed excess materials | Y91: getting setup for this years" program
A92: 2023-08-29 | D92: volunteers | G92: maintenance, project | H92: =IF(A92="","",IF(G92="maintenance, garden","",IF(G92="maintenance, project","",IF(G92="compost","",GOTO I92)))) ->  | I92: arbor trees along athletic field | J92: =IF(G92="Harvest",GOTO J92,"") ->  | K92: =IF(G92="Harvest",GOTO K92,"") ->  | L92: =IF(G92="Fertilize",GOTO L92,"") ->  | N92: =IF(G92="fertilize",GOTO N92,"") ->  | Q92: =IF(G92="compost",GOTO Q92,"") ->  | R92: =IF(G92="compost",GOTO R92,"") ->  | S92: =IF(G92="compost",GOTO S92,"") ->  | T92: =IF(G92="compost",GOTO T92,"") ->  | U92: =IF(G92="compost",GOTO U92,"") ->  | V92: =IF(G92="compost",GOTO V92,"") ->  | W92: =IF(G92="compost",GOTO W92,"") ->  | X92: completed securing timbers in place around trees | Y92: One tree did not have holes to secure landscaping
A93: 2023-08-31 | D93: volunteers | G93: harvest | H93: beans, yard long | I93: M7,M3 | J93: 0 | K93: 8 | L93: =IF(G93="Fertilize",GOTO L93,"") ->  | N93: =IF(G93="fertilize",GOTO N93,"") ->  | Q93: =IF(G93="compost",GOTO Q93,"") ->  | R93: =IF(G93="compost",GOTO R93,"") ->  | S93: =IF(G93="compost",GOTO S93,"") ->  | T93: =IF(G93="compost",GOTO T93,"") ->  | U93: =IF(G93="compost",GOTO U93,"") ->  | V93: =IF(G93="compost",GOTO V93,"") ->  | W93: =IF(G93="compost",GOTO W93,"") ->  | X93: =IF(G93="maintenance, garden",GOTO X93,IF(G93="Table",GOTO X93,IF(G93="maintenance, project",GOTO X93,""))) ->  | Y93: =IF(G93="Maintenance, garden",GOTO Y93,IF(G93="Table",GOTO Y93,IF(G93="maintenance, project",GOTO Y93,""))) -> 
A94: 2023-08-31 | D94: volunteers | G94: harvest | H94: okra | I94: M11,O11,12,17 | J94: 2 | K94: 8 | L94: =IF(G94="Fertilize",GOTO L94,"") ->  | N94: =IF(G94="fertilize",GOTO N94,"") ->  | Q94: =IF(G94="compost",GOTO Q94,"") ->  | R94: =IF(G94="compost",GOTO R94,"") ->  | S94: =IF(G94="compost",GOTO S94,"") ->  | T94: =IF(G94="compost",GOTO T94,"") ->  | U94: =IF(G94="compost",GOTO U94,"") ->  | V94: =IF(G94="compost",GOTO V94,"") ->  | W94: =IF(G94="compost",GOTO W94,"") ->  | X94: =IF(G94="maintenance, garden",GOTO X94,IF(G94="Table",GOTO X94,IF(G94="maintenance, project",GOTO X94,""))) ->  | Y94: =IF(G94="Maintenance, garden",GOTO Y94,IF(G94="Table",GOTO Y94,IF(G94="maintenance, project",GOTO Y94,""))) -> 
A95: 2023-08-31 | D95: volunteers | G95: maintenance, project | H95: =IF(A95="","",IF(G95="maintenance, garden","",IF(G95="maintenance, project","",IF(G95="compost","",GOTO I95)))) ->  | I95: 3 tier bed | J95: =IF(G95="Harvest",GOTO J95,"") ->  | K95: =IF(G95="Harvest",GOTO K95,"") ->  | L95: =IF(G95="Fertilize",GOTO L95,"") ->  | N95: =IF(G95="fertilize",GOTO N95,"") ->  | Q95: =IF(G95="compost",GOTO Q95,"") ->  | R95: =IF(G95="compost",GOTO R95,"") ->  | S95: =IF(G95="compost",GOTO S95,"") ->  | T95: =IF(G95="compost",GOTO T95,"") ->  | U95: =IF(G95="compost",GOTO U95,"") ->  | V95: =IF(G95="compost",GOTO V95,"") ->  | W95: =IF(G95="compost",GOTO W95,"") ->  | X95: removed old bed | Y95: set pavers in footprint of old bed
A96: 2023-09-02 | D96: volunteers | G96: maintenance, project | H96: =IF(A96="","",IF(G96="maintenance, garden","",IF(G96="maintenance, project","",IF(G96="compost","",GOTO I96)))) ->  | I96: arbor trees along athletic field | J96: =IF(G96="Harvest",GOTO J96,"") ->  | K96: =IF(G96="Harvest",GOTO K96,"") ->  | L96: =IF(G96="Fertilize",GOTO L96,"") ->  | N96: =IF(G96="fertilize",GOTO N96,"") ->  | Q96: =IF(G96="compost",GOTO Q96,"") ->  | R96: =IF(G96="compost",GOTO R96,"") ->  | S96: =IF(G96="compost",GOTO S96,"") ->  | T96: =IF(G96="compost",GOTO T96,"") ->  | U96: =IF(G96="compost",GOTO U96,"") ->  | V96: =IF(G96="compost",GOTO V96,"") ->  | W96: =IF(G96="compost",GOTO W96,"") ->  | X96: finished anchoring landscape timbers | Y96: also around the front of compost bins
A97: 2023-09-05 | D97: volunteers | G97: harvest | H97: okra | I97: M11,O11,12,17 | J97: 5 | K97: 3 | L97: =IF(G97="Fertilize",GOTO L97,"") ->  | N97: =IF(G97="fertilize",GOTO N97,"") ->  | Q97: =IF(G97="compost",GOTO Q97,"") ->  | R97: =IF(G97="compost",GOTO R97,"") ->  | S97: =IF(G97="compost",GOTO S97,"") ->  | T97: =IF(G97="compost",GOTO T97,"") ->  | U97: =IF(G97="compost",GOTO U97,"") ->  | V97: =IF(G97="compost",GOTO V97,"") ->  | W97: =IF(G97="compost",GOTO W97,"") ->  | X97: =IF(G97="maintenance, garden",GOTO X97,IF(G97="Table",GOTO X97,IF(G97="maintenance, project",GOTO X97,""))) ->  | Y97: =IF(G97="Maintenance, garden",GOTO Y97,IF(G97="Table",GOTO Y97,IF(G97="maintenance, project",GOTO Y97,""))) -> 
A98: 2023-09-05 | D98: volunteers | G98: harvest | H98: eggplant | I98: M10 | J98: 1 | K98: 5 | L98: =IF(G98="Fertilize",GOTO L98,"") ->  | N98: =IF(G98="fertilize",GOTO N98,"") ->  | Q98: =IF(G98="compost",GOTO Q98,"") ->  | R98: =IF(G98="compost",GOTO R98,"") ->  | S98: =IF(G98="compost",GOTO S98,"") ->  | T98: =IF(G98="compost",GOTO T98,"") ->  | U98: =IF(G98="compost",GOTO U98,"") ->  | V98: =IF(G98="compost",GOTO V98,"") ->  | W98: =IF(G98="compost",GOTO W98,"") ->  | X98: =IF(G98="maintenance, garden",GOTO X98,IF(G98="Table",GOTO X98,IF(G98="maintenance, project",GOTO X98,""))) ->  | Y98: =IF(G98="Maintenance, garden",GOTO Y98,IF(G98="Table",GOTO Y98,IF(G98="maintenance, project",GOTO Y98,""))) -> 
A99: 2023-09-05 | D99: volunteers | G99: harvest | H99: beans, yard long | I99: M7,M3 | J99: 4 | K99: 5 | L99: =IF(G99="Fertilize",GOTO L99,"") ->  | N99: =IF(G99="fertilize",GOTO N99,"") ->  | Q99: =IF(G99="compost",GOTO Q99,"") ->  | R99: =IF(G99="compost",GOTO R99,"") ->  | S99: =IF(G99="compost",GOTO S99,"") ->  | T99: =IF(G99="compost",GOTO T99,"") ->  | U99: =IF(G99="compost",GOTO U99,"") ->  | V99: =IF(G99="compost",GOTO V99,"") ->  | W99: =IF(G99="compost",GOTO W99,"") ->  | X99: =IF(G99="maintenance, garden",GOTO X99,IF(G99="Table",GOTO X99,IF(G99="maintenance, project",GOTO X99,""))) ->  | Y99: =IF(G99="Maintenance, garden",GOTO Y99,IF(G99="Table",GOTO Y99,IF(G99="maintenance, project",GOTO Y99,""))) -> 
A100: 2023-09-07 | D100: volunteers | G100: maintenance, garden | H100: =IF(A100="","",IF(G100="maintenance, garden","",IF(G100="maintenance, project","",IF(G100="compost","",GOTO I100)))) ->  | I100: main, annex | J100: =IF(G100="Harvest",GOTO J100,"") ->  | K100: =IF(G100="Harvest",GOTO K100,"") ->  | L100: =IF(G100="Fertilize",GOTO L100,"") ->  | N100: =IF(G100="fertilize",GOTO N100,"") ->  | Q100: =IF(G100="compost",GOTO Q100,"") ->  | R100: =IF(G100="compost",GOTO R100,"") ->  | S100: =IF(G100="compost",GOTO S100,"") ->  | T100: =IF(G100="compost",GOTO T100,"") ->  | U100: =IF(G100="compost",GOTO U100,"") ->  | V100: =IF(G100="compost",GOTO V100,"") ->  | W100: =IF(G100="compost",GOTO W100,"") ->  | X100: started classes with orientation | Y100: visit stations to get acquainted
A101: 2023-09-07 | D101: volunteers | G101: harvest | H101: eggplant | I101: M10 | J101: 1 | K101: 5 | L101: =IF(G101="Fertilize",GOTO L101,"") ->  | N101: =IF(G101="fertilize",GOTO N101,"") ->  | Q101: =IF(G101="compost",GOTO Q101,"") ->  | R101: =IF(G101="compost",GOTO R101,"") ->  | S101: =IF(G101="compost",GOTO S101,"") ->  | T101: =IF(G101="compost",GOTO T101,"") ->  | U101: =IF(G101="compost",GOTO U101,"") ->  | V101: =IF(G101="compost",GOTO V101,"") ->  | W101: =IF(G101="compost",GOTO W101,"") ->  | X101: =IF(G101="maintenance, garden",GOTO X101,IF(G101="Table",GOTO X101,IF(G101="maintenance, project",GOTO X101,""))) ->  | Y101: =IF(G101="Maintenance, garden",GOTO Y101,IF(G101="Table",GOTO Y101,IF(G101="maintenance, project",GOTO Y101,""))) -> 
A102: 2023-09-07 | D102: volunteers | G102: harvest | H102: okra | I102: M11, O11,12,17 | J102: 1 | K102: 1 | L102: =IF(G102="Fertilize",GOTO L102,"") ->  | N102: =IF(G102="fertilize",GOTO N102,"") ->  | Q102: =IF(G102="compost",GOTO Q102,"") ->  | R102: =IF(G102="compost",GOTO R102,"") ->  | S102: =IF(G102="compost",GOTO S102,"") ->  | T102: =IF(G102="compost",GOTO T102,"") ->  | U102: =IF(G102="compost",GOTO U102,"") ->  | V102: =IF(G102="compost",GOTO V102,"") ->  | W102: =IF(G102="compost",GOTO W102,"") ->  | X102: =IF(G102="maintenance, garden",GOTO X102,IF(G102="Table",GOTO X102,IF(G102="maintenance, project",GOTO X102,""))) ->  | Y102: =IF(G102="Maintenance, garden",GOTO Y102,IF(G102="Table",GOTO Y102,IF(G102="maintenance, project",GOTO Y102,""))) -> 
A103: 2023-09-07 | D103: volunteers | G103: harvest | H103: beans, yard long | I103: M7,M3 | J103: 1 | K103: 11 | L103: =IF(G103="Fertilize",GOTO L103,"") ->  | N103: =IF(G103="fertilize",GOTO N103,"") ->  | Q103: =IF(G103="compost",GOTO Q103,"") ->  | R103: =IF(G103="compost",GOTO R103,"") ->  | S103: =IF(G103="compost",GOTO S103,"") ->  | T103: =IF(G103="compost",GOTO T103,"") ->  | U103: =IF(G103="compost",GOTO U103,"") ->  | V103: =IF(G103="compost",GOTO V103,"") ->  | W103: =IF(G103="compost",GOTO W103,"") ->  | X103: =IF(G103="maintenance, garden",GOTO X103,IF(G103="Table",GOTO X103,IF(G103="maintenance, project",GOTO X103,""))) ->  | Y103: =IF(G103="Maintenance, garden",GOTO Y103,IF(G103="Table",GOTO Y103,IF(G103="maintenance, project",GOTO Y103,""))) -> 
A104: 2023-09-12 | D104: volunteers | G104: harvest | H104: beans, yard long | I104: M7,M3 | J104: 4 | K104: 8 | L104: =IF(G104="Fertilize",GOTO L104,"") ->  | N104: =IF(G104="fertilize",GOTO N104,"") ->  | Q104: =IF(G104="compost",GOTO Q104,"") ->  | R104: =IF(G104="compost",GOTO R104,"") ->  | S104: =IF(G104="compost",GOTO S104,"") ->  | T104: =IF(G104="compost",GOTO T104,"") ->  | U104: =IF(G104="compost",GOTO U104,"") ->  | V104: =IF(G104="compost",GOTO V104,"") ->  | W104: =IF(G104="compost",GOTO W104,"") ->  | X104: =IF(G104="maintenance, garden",GOTO X104,IF(G104="Table",GOTO X104,IF(G104="maintenance, project",GOTO X104,""))) ->  | Y104: =IF(G104="Maintenance, garden",GOTO Y104,IF(G104="Table",GOTO Y104,IF(G104="maintenance, project",GOTO Y104,""))) -> 
A105: 2023-09-12 | D105: volunteers | G105: harvest | H105: eggplant | I105: M10 | J105: 1 | K105: 3 | L105: =IF(G105="Fertilize",GOTO L105,"") ->  | N105: =IF(G105="fertilize",GOTO N105,"") ->  | Q105: =IF(G105="compost",GOTO Q105,"") ->  | R105: =IF(G105="compost",GOTO R105,"") ->  | S105: =IF(G105="compost",GOTO S105,"") ->  | T105: =IF(G105="compost",GOTO T105,"") ->  | U105: =IF(G105="compost",GOTO U105,"") ->  | V105: =IF(G105="compost",GOTO V105,"") ->  | W105: =IF(G105="compost",GOTO W105,"") ->  | X105: =IF(G105="maintenance, garden",GOTO X105,IF(G105="Table",GOTO X105,IF(G105="maintenance, project",GOTO X105,""))) ->  | Y105: =IF(G105="Maintenance, garden",GOTO Y105,IF(G105="Table",GOTO Y105,IF(G105="maintenance, project",GOTO Y105,""))) -> 
A106: 2023-09-12 | D106: volunteers | G106: harvest | H106: okra | I106: M11, O11,12,17 | J106: 1 | K106: 12 | L106: =IF(G106="Fertilize",GOTO L106,"") ->  | N106: =IF(G106="fertilize",GOTO N106,"") ->  | Q106: =IF(G106="compost",GOTO Q106,"") ->  | R106: =IF(G106="compost",GOTO R106,"") ->  | S106: =IF(G106="compost",GOTO S106,"") ->  | T106: =IF(G106="compost",GOTO T106,"") ->  | U106: =IF(G106="compost",GOTO U106,"") ->  | V106: =IF(G106="compost",GOTO V106,"") ->  | W106: =IF(G106="compost",GOTO W106,"") ->  | X106: =IF(G106="maintenance, garden",GOTO X106,IF(G106="Table",GOTO X106,IF(G106="maintenance, project",GOTO X106,""))) ->  | Y106: =IF(G106="Maintenance, garden",GOTO Y106,IF(G106="Table",GOTO Y106,IF(G106="maintenance, project",GOTO Y106,""))) -> 
A107: 2023-09-12 | D107: volunteers | G107: maintenance, garden | H107: =IF(A107="","",IF(G107="maintenance, garden","",IF(G107="maintenance, project","",IF(G107="compost","",GOTO I107)))) ->  | I107: arbor trees along athletic field | J107: =IF(G107="Harvest",GOTO J107,"") ->  | K107: =IF(G107="Harvest",GOTO K107,"") ->  | L107: =IF(G107="Fertilize",GOTO L107,"") ->  | N107: =IF(G107="fertilize",GOTO N107,"") ->  | Q107: =IF(G107="compost",GOTO Q107,"") ->  | R107: =IF(G107="compost",GOTO R107,"") ->  | S107: =IF(G107="compost",GOTO S107,"") ->  | T107: =IF(G107="compost",GOTO T107,"") ->  | U107: =IF(G107="compost",GOTO U107,"") ->  | V107: =IF(G107="compost",GOTO V107,"") ->  | W107: =IF(G107="compost",GOTO W107,"") ->  | X107: repaired leak in waslewski maple tree irrigation | Y107: cut out and replaced a section of pipe
A108: 2023-09-12 | D108: volunteers | G108: maintenance, garden | H108: =IF(A108="","",IF(G108="maintenance, garden","",IF(G108="maintenance, project","",IF(G108="compost","",GOTO I108)))) ->  | I108: around compost area | J108: =IF(G108="Harvest",GOTO J108,"") ->  | K108: =IF(G108="Harvest",GOTO K108,"") ->  | L108: =IF(G108="Fertilize",GOTO L108,"") ->  | N108: =IF(G108="fertilize",GOTO N108,"") ->  | Q108: =IF(G108="compost",GOTO Q108,"") ->  | R108: =IF(G108="compost",GOTO R108,"") ->  | S108: =IF(G108="compost",GOTO S108,"") ->  | T108: =IF(G108="compost",GOTO T108,"") ->  | U108: =IF(G108="compost",GOTO U108,"") ->  | V108: =IF(G108="compost",GOTO V108,"") ->  | W108: =IF(G108="compost",GOTO W108,"") ->  | X108: leveled pavers around compost bins | Y108: raised pavers with sand
A109: 2023-09-14 | D109: volunteers | G109: maintenance, garden | H109: =IF(A109="","",IF(G109="maintenance, garden","",IF(G109="maintenance, project","",IF(G109="compost","",GOTO I109)))) ->  | I109: main, annex | J109: =IF(G109="Harvest",GOTO J109,"") ->  | K109: =IF(G109="Harvest",GOTO K109,"") ->  | L109: =IF(G109="Fertilize",GOTO L109,"") ->  | N109: =IF(G109="fertilize",GOTO N109,"") ->  | Q109: =IF(G109="compost",GOTO Q109,"") ->  | R109: =IF(G109="compost",GOTO R109,"") ->  | S109: =IF(G109="compost",GOTO S109,"") ->  | T109: =IF(G109="compost",GOTO T109,"") ->  | U109: =IF(G109="compost",GOTO U109,"") ->  | V109: =IF(G109="compost",GOTO V109,"") ->  | W109: =IF(G109="compost",GOTO W109,"") ->  | X109: started classes with orientation | Y109: visit stations to get acquainted
A110: 2023-09-19 | D110: volunteers | G110: harvest | H110: beans, yard long | I110: M7,M3 | J110: 4 | K110: 0 | L110: =IF(G110="Fertilize",GOTO L110,"") ->  | N110: =IF(G110="fertilize",GOTO N110,"") ->  | Q110: =IF(G110="compost",GOTO Q110,"") ->  | R110: =IF(G110="compost",GOTO R110,"") ->  | S110: =IF(G110="compost",GOTO S110,"") ->  | T110: =IF(G110="compost",GOTO T110,"") ->  | U110: =IF(G110="compost",GOTO U110,"") ->  | V110: =IF(G110="compost",GOTO V110,"") ->  | W110: =IF(G110="compost",GOTO W110,"") ->  | X110: =IF(G110="maintenance, garden",GOTO X110,IF(G110="Table",GOTO X110,IF(G110="maintenance, project",GOTO X110,""))) ->  | Y110: =IF(G110="Maintenance, garden",GOTO Y110,IF(G110="Table",GOTO Y110,IF(G110="maintenance, project",GOTO Y110,""))) -> 
A111: 2023-09-19 | D111: volunteers | G111: harvest | H111: okra | I111: M11, O11,12,17 | J111: 2 | K111: 0 | L111: =IF(G111="Fertilize",GOTO L111,"") ->  | N111: =IF(G111="fertilize",GOTO N111,"") ->  | Q111: =IF(G111="compost",GOTO Q111,"") ->  | R111: =IF(G111="compost",GOTO R111,"") ->  | S111: =IF(G111="compost",GOTO S111,"") ->  | T111: =IF(G111="compost",GOTO T111,"") ->  | U111: =IF(G111="compost",GOTO U111,"") ->  | V111: =IF(G111="compost",GOTO V111,"") ->  | W111: =IF(G111="compost",GOTO W111,"") ->  | X111: =IF(G111="maintenance, garden",GOTO X111,IF(G111="Table",GOTO X111,IF(G111="maintenance, project",GOTO X111,""))) ->  | Y111: =IF(G111="Maintenance, garden",GOTO Y111,IF(G111="Table",GOTO Y111,IF(G111="maintenance, project",GOTO Y111,""))) -> 
A112: 2023-09-19 | D112: volunteers | G112: harvest | H112: onions | I112: main | J112: 0 | K112: 6 | L112: =IF(G112="Fertilize",GOTO L112,"") ->  | N112: =IF(G112="fertilize",GOTO N112,"") ->  | Q112: =IF(G112="compost",GOTO Q112,"") ->  | R112: =IF(G112="compost",GOTO R112,"") ->  | S112: =IF(G112="compost",GOTO S112,"") ->  | T112: =IF(G112="compost",GOTO T112,"") ->  | U112: =IF(G112="compost",GOTO U112,"") ->  | V112: =IF(G112="compost",GOTO V112,"") ->  | W112: =IF(G112="compost",GOTO W112,"") ->  | X112: =IF(G112="maintenance, garden",GOTO X112,IF(G112="Table",GOTO X112,IF(G112="maintenance, project",GOTO X112,""))) ->  | Y112: =IF(G112="Maintenance, garden",GOTO Y112,IF(G112="Table",GOTO Y112,IF(G112="maintenance, project",GOTO Y112,""))) -> 
A113: 2023-09-19 | D113: volunteers | G113: harvest | H113: peppers, jalopena | I113: o28 | J113: 0 | K113: 1 | L113: =IF(G113="Fertilize",GOTO L113,"") ->  | N113: =IF(G113="fertilize",GOTO N113,"") ->  | Q113: =IF(G113="compost",GOTO Q113,"") ->  | R113: =IF(G113="compost",GOTO R113,"") ->  | S113: =IF(G113="compost",GOTO S113,"") ->  | T113: =IF(G113="compost",GOTO T113,"") ->  | U113: =IF(G113="compost",GOTO U113,"") ->  | V113: =IF(G113="compost",GOTO V113,"") ->  | W113: =IF(G113="compost",GOTO W113,"") ->  | X113: =IF(G113="maintenance, garden",GOTO X113,IF(G113="Table",GOTO X113,IF(G113="maintenance, project",GOTO X113,""))) ->  | Y113: =IF(G113="Maintenance, garden",GOTO Y113,IF(G113="Table",GOTO Y113,IF(G113="maintenance, project",GOTO Y113,""))) -> 
A114: 2023-09-21 | B114: AM | C114: A. Lopez | D114: Ceasar | E114: 4 | F114: SH,SA,Diane | G114: plant | H114: onions, multiplying | I114: M5,9 | J114: =IF(G114="Harvest",GOTO J114,"") ->  | K114: =IF(G114="Harvest",GOTO K114,"") ->  | L114: =IF(G114="Fertilize",GOTO L114,"") ->  | N114: =IF(G114="fertilize",GOTO N114,"") ->  | O114: prep bed 6-2-4 | P114: 2023-10-05 | Q114: =IF(G114="compost",GOTO Q114,"") ->  | R114: =IF(G114="compost",GOTO R114,"") ->  | S114: =IF(G114="compost",GOTO S114,"") ->  | T114: =IF(G114="compost",GOTO T114,"") ->  | U114: =IF(G114="compost",GOTO U114,"") ->  | V114: =IF(G114="compost",GOTO V114,"") ->  | W114: =IF(G114="compost",GOTO W114,"") ->  | X114: Loosen soil, remove plants, break apart, replant one | Y114: =IF(G114="Maintenance, garden",GOTO Y114,IF(G114="Table",GOTO Y114,IF(G114="maintenance, project",GOTO Y114,""))) -> 
A115: 2023-09-21 | B115: AM | C115: A. Lopez | D115: Emma | E115: 6 | F115: PB, PM, LM | G115: plant | H115: carrots, danver | I115: M13a | J115: =IF(G115="Harvest",GOTO J115,"") ->  | K115: =IF(G115="Harvest",GOTO K115,"") ->  | L115: =IF(G115="Fertilize",GOTO L115,"") ->  | N115: =IF(G115="fertilize",GOTO N115,"") ->  | O115: loosen soil, plant 2 rows | P115: 2023-10-05 | Q115: =IF(G115="compost",GOTO Q115,"") ->  | R115: =IF(G115="compost",GOTO R115,"") ->  | S115: =IF(G115="compost",GOTO S115,"") ->  | T115: =IF(G115="compost",GOTO T115,"") ->  | U115: =IF(G115="compost",GOTO U115,"") ->  | V115: =IF(G115="compost",GOTO V115,"") ->  | W115: =IF(G115="compost",GOTO W115,"") ->  | X115: =IF(G115="maintenance, garden",GOTO X115,IF(G115="Table",GOTO X115,IF(G115="maintenance, project",GOTO X115,""))) ->  | Y115: =IF(G115="Maintenance, garden",GOTO Y115,IF(G115="Table",GOTO Y115,IF(G115="maintenance, project",GOTO Y115,""))) -> 
A116: 2023-09-21 | B116: AM | C116: A. Lopez | D116: Christopher | E116: 5 | F116: JT, Diana | G116: plant | H116: peas, sugar snap | I116: M7a,b | J116: =IF(G116="Harvest",GOTO J116,"") ->  | K116: =IF(G116="Harvest",GOTO K116,"") ->  | L116: =IF(G116="Fertilize",GOTO L116,"") ->  | N116: =IF(G116="fertilize",GOTO N116,"") ->  | O116: plant sugars snaps close to trellis | P116: 2023-10-05 | Q116: =IF(G116="compost",GOTO Q116,"") ->  | R116: =IF(G116="compost",GOTO R116,"") ->  | S116: =IF(G116="compost",GOTO S116,"") ->  | T116: =IF(G116="compost",GOTO T116,"") ->  | U116: =IF(G116="compost",GOTO U116,"") ->  | V116: =IF(G116="compost",GOTO V116,"") ->  | W116: =IF(G116="compost",GOTO W116,"") ->  | X116: plant in no dig bed | Y116: prep'd with fertilizer and 2" mulch
A117: 2023-09-21 | B117: AM | C117: A. Lopez | D117: ? | E117: 3 | F117: SK, DC | G117: harvest | H117: peppers | I117: M9a,b | J117: 0 | K117: 4 | L117: =IF(G117="Fertilize",GOTO L117,"") ->  | N117: =IF(G117="fertilize",GOTO N117,"") ->  | O117: =IF(G117="Plant",O117,"") ->  | Q117: =IF(G117="compost",GOTO Q117,"") ->  | R117: =IF(G117="compost",GOTO R117,"") ->  | S117: =IF(G117="compost",GOTO S117,"") ->  | T117: =IF(G117="compost",GOTO T117,"") ->  | U117: =IF(G117="compost",GOTO U117,"") ->  | V117: =IF(G117="compost",GOTO V117,"") ->  | W117: =IF(G117="compost",GOTO W117,"") ->  | X117: =IF(G117="maintenance, garden",GOTO X117,IF(G117="Table",GOTO X117,IF(G117="maintenance, project",GOTO X117,""))) ->  | Y117: =IF(G117="Maintenance, garden",GOTO Y117,IF(G117="Table",GOTO Y117,IF(G117="maintenance, project",GOTO Y117,""))) -> 
A118: 2023-09-21 | B118: AM | C118: A. Lopez | D118: ? | E118: 3 | F118: SK, DC | G118: harvest | H118: eggplant | I118: M10 | J118: 5 | K118: 2 | L118: =IF(G118="Fertilize",GOTO L118,"") ->  | N118: =IF(G118="fertilize",GOTO N118,"") ->  | O118: =IF(G118="Plant",O118,"") ->  | Q118: =IF(G118="compost",GOTO Q118,"") ->  | R118: =IF(G118="compost",GOTO R118,"") ->  | S118: =IF(G118="compost",GOTO S118,"") ->  | T118: =IF(G118="compost",GOTO T118,"") ->  | U118: =IF(G118="compost",GOTO U118,"") ->  | V118: =IF(G118="compost",GOTO V118,"") ->  | W118: =IF(G118="compost",GOTO W118,"") ->  | X118: =IF(G118="maintenance, garden",GOTO X118,IF(G118="Table",GOTO X118,IF(G118="maintenance, project",GOTO X118,""))) ->  | Y118: =IF(G118="Maintenance, garden",GOTO Y118,IF(G118="Table",GOTO Y118,IF(G118="maintenance, project",GOTO Y118,""))) -> 
A119: 2023-09-21 | B119: AM | C119: A. Lopez | D119: Christopher | E119: 5 | F119: JT, Diana | G119: plant | H119: lettuce | I119: M7b | J119: =IF(G119="Harvest",GOTO J119,"") ->  | K119: =IF(G119="Harvest",GOTO K119,"") ->  | L119: =IF(G119="Fertilize",GOTO L119,"") ->  | N119: =IF(G119="fertilize",GOTO N119,"") ->  | O119: scatter plant lettuce | P119: 2023-10-05 | Q119: =IF(G119="compost",GOTO Q119,"") ->  | R119: =IF(G119="compost",GOTO R119,"") ->  | S119: =IF(G119="compost",GOTO S119,"") ->  | T119: =IF(G119="compost",GOTO T119,"") ->  | U119: =IF(G119="compost",GOTO U119,"") ->  | V119: =IF(G119="compost",GOTO V119,"") ->  | W119: =IF(G119="compost",GOTO W119,"") ->  | X119: scatter plant a source of lettuce plants | Y119: =IF(G119="Maintenance, garden",GOTO Y119,IF(G119="Table",GOTO Y119,IF(G119="maintenance, project",GOTO Y119,""))) -> 
A120: 2023-09-21 | B120: AM | C120: A. Lopez | D120: Bayron | E120: 2 | F120: AM, HO | G120: compost | H120: =IF(A120="","",IF(G120="maintenance, garden","",IF(G120="maintenance, project","",IF(G120="compost","",GOTO I120)))) ->  | I120: =IF(A120="","",IF(G120="compost","",GOTO I120)) ->  | J120: =IF(G120="Harvest",GOTO J120,"") ->  | K120: =IF(G120="Harvest",GOTO K120,"") ->  | L120: =IF(G120="Fertilize",GOTO L120,"") ->  | N120: =IF(G120="fertilize",GOTO N120,"") ->  | O120: =IF(G120="Plant",O120,"") ->  | Q120: 90 | S120: 1.1 | T120: 140 | U120: 85 | W120: No compost in #3 | X120: =IF(G120="maintenance, garden",GOTO X120,IF(G120="Table",GOTO X120,IF(G120="maintenance, project",GOTO X120,""))) ->  | Y120: =IF(G120="Maintenance, garden",GOTO Y120,IF(G120="Table",GOTO Y120,IF(G120="maintenance, project",GOTO Y120,""))) -> 
A121: 2023-09-21 | B121: AM | C121: A. Lopez | E121: 1 | F121: GO | G121: shed | J121: =IF(G121="Harvest",GOTO J121,"") ->  | K121: =IF(G121="Harvest",GOTO K121,"") ->  | L121: =IF(G121="Fertilize",GOTO L121,"") ->  | N121: =IF(G121="fertilize",GOTO N121,"") ->  | O121: =IF(G121="Plant",O121,"") ->  | Q121: =IF(G121="compost",GOTO Q121,"") ->  | R121: =IF(G121="compost",GOTO R121,"") ->  | S121: =IF(G121="compost",GOTO S121,"") ->  | T121: =IF(G121="compost",GOTO T121,"") ->  | U121: =IF(G121="compost",GOTO U121,"") ->  | V121: =IF(G121="compost",GOTO V121,"") ->  | W121: =IF(G121="compost",GOTO W121,"") ->  | X121: =IF(G121="maintenance, garden",GOTO X121,IF(G121="Table",GOTO X121,IF(G121="maintenance, project",GOTO X121,""))) ->  | Y121: =IF(G121="Maintenance, garden",GOTO Y121,IF(G121="Table",GOTO Y121,IF(G121="maintenance, project",GOTO Y121,""))) -> 
A122: 2023-09-21 | B122: PM | C122: A. Lopez | E122: 1 | F122: GO | G122: shed | J122: =IF(G122="Harvest",GOTO J122,"") ->  | K122: =IF(G122="Harvest",GOTO K122,"") ->  | L122: =IF(G122="Fertilize",GOTO L122,"") ->  | N122: =IF(G122="fertilize",GOTO N122,"") ->  | O122: =IF(G122="Plant",O122,"") ->  | Q122: =IF(G122="compost",GOTO Q122,"") ->  | R122: =IF(G122="compost",GOTO R122,"") ->  | S122: =IF(G122="compost",GOTO S122,"") ->  | T122: =IF(G122="compost",GOTO T122,"") ->  | U122: =IF(G122="compost",GOTO U122,"") ->  | V122: =IF(G122="compost",GOTO V122,"") ->  | W122: =IF(G122="compost",GOTO W122,"") ->  | X122: =IF(G122="maintenance, garden",GOTO X122,IF(G122="Table",GOTO X122,IF(G122="maintenance, project",GOTO X122,""))) ->  | Y122: =IF(G122="Maintenance, garden",GOTO Y122,IF(G122="Table",GOTO Y122,IF(G122="maintenance, project",GOTO Y122,""))) -> 
A123: 2023-09-21 | B123: PM | C123: A. Lopez | D123: ?? | E123: 2 | F123: SK, JT | G123: compost | J123: =IF(G123="Harvest",GOTO J123,"") ->  | K123: =IF(G123="Harvest",GOTO K123,"") ->  | L123: =IF(G123="Fertilize",GOTO L123,"") ->  | M123: =IF(G123="Fertilize",A123+14,"") ->  | N123: =IF(G123="fertilize",GOTO N123,"") ->  | O123: =IF(G123="Plant",O123,"") ->  | Q123: 99 | S123: 1.1 | T123: 132 | U123: 89 | W123: No compost in #3 | X123: =IF(G123="maintenance, garden",GOTO X123,IF(G123="Table",GOTO X123,IF(G123="maintenance, project",GOTO X123,""))) ->  | Y123: =IF(G123="Maintenance, garden",GOTO Y123,IF(G123="Table",GOTO Y123,IF(G123="maintenance, project",GOTO Y123,""))) -> 
A124: 2023-09-21 | B124: PM | C124: A. Lopez | D124: Vanessa | E124: 3 | F124: MW,DC | G124: harvest | H124: Okra | I124: M11 | J124: 1 | K124: 8 | L124: =IF(G124="Fertilize",GOTO L124,"") ->  | N124: =IF(G124="fertilize",GOTO N124,"") ->  | O124: =IF(G124="Plant",O124,"") ->  | Q124: =IF(G124="compost",GOTO Q124,"") ->  | R124: =IF(G124="compost",GOTO R124,"") ->  | S124: =IF(G124="compost",GOTO S124,"") ->  | T124: =IF(G124="compost",GOTO T124,"") ->  | U124: =IF(G124="compost",GOTO U124,"") ->  | V124: =IF(G124="compost",GOTO V124,"") ->  | W124: =IF(G124="compost",GOTO W124,"") ->  | X124: =IF(G124="maintenance, garden",GOTO X124,IF(G124="Table",GOTO X124,IF(G124="maintenance, project",GOTO X124,""))) ->  | Y124: =IF(G124="Maintenance, garden",GOTO Y124,IF(G124="Table",GOTO Y124,IF(G124="maintenance, project",GOTO Y124,""))) -> 
A125: 2023-09-21 | B125: PM | C125: A. Lopez | D125: Kaylie | E125: 4 | F125: PB, PM | G125: plant | H125: turnips, hakurei | I125: M13b | J125: =IF(G125="Harvest",GOTO J125,"") ->  | K125: =IF(G125="Harvest",GOTO K125,"") ->  | L125: =IF(G125="Fertilize",GOTO L125,"") ->  | N125: =IF(G125="fertilize",GOTO N125,"") ->  | O125: add 1 more row of turnips in bed | P125: 2023-10-05 | Q125: =IF(G125="compost",GOTO Q125,"") ->  | R125: =IF(G125="compost",GOTO R125,"") ->  | S125: =IF(G125="compost",GOTO S125,"") ->  | T125: =IF(G125="compost",GOTO T125,"") ->  | U125: =IF(G125="compost",GOTO U125,"") ->  | V125: =IF(G125="compost",GOTO V125,"") ->  | W125: =IF(G125="compost",GOTO W125,"") ->  | X125: =IF(G125="maintenance, garden",GOTO X125,IF(G125="Table",GOTO X125,IF(G125="maintenance, project",GOTO X125,""))) ->  | Y125: =IF(G125="Maintenance, garden",GOTO Y125,IF(G125="Table",GOTO Y125,IF(G125="maintenance, project",GOTO Y125,""))) -> 
A126: 2023-09-21 | B126: PM | C126: A. Lopez | D126: ?? | E126: 5 | F126: JB, DN | G126: plant | H126: tomatoes,thyme, oregano | I126: Herb beds | J126: =IF(G126="Harvest",GOTO J126,"") ->  | K126: =IF(G126="Harvest",GOTO K126,"") ->  | L126: =IF(G126="Fertilize",GOTO L126,"") ->  | N126: =IF(G126="fertilize",GOTO N126,"") ->  | O126: tomatoes,thyme, oregano, marigolds | P126: 2023-10-05 | Q126: =IF(G126="compost",GOTO Q126,"") ->  | R126: =IF(G126="compost",GOTO R126,"") ->  | S126: =IF(G126="compost",GOTO S126,"") ->  | T126: =IF(G126="compost",GOTO T126,"") ->  | U126: =IF(G126="compost",GOTO U126,"") ->  | V126: =IF(G126="compost",GOTO V126,"") ->  | W126: =IF(G126="compost",GOTO W126,"") ->  | X126: =IF(G126="maintenance, garden",GOTO X126,IF(G126="Table",GOTO X126,IF(G126="maintenance, project",GOTO X126,""))) ->  | Y126: =IF(G126="Maintenance, garden",GOTO Y126,IF(G126="Table",GOTO Y126,IF(G126="maintenance, project",GOTO Y126,""))) -> 
A127: 2023-09-21 | B127: PM | C127: A. Lopez | D127: Victoria | E127: 6 | F127: SH,SA | G127: harvest | H127: beans, yard long | I127: M16 | J127: 1 | K127: 8 | L127: =IF(G127="Fertilize",GOTO L127,"") ->  | N127: =IF(G127="fertilize",GOTO N127,"") ->  | O127: =IF(G127="Plant",O127,"") ->  | Q127: =IF(G127="compost",GOTO Q127,"") ->  | R127: =IF(G127="compost",GOTO R127,"") ->  | S127: =IF(G127="compost",GOTO S127,"") ->  | T127: =IF(G127="compost",GOTO T127,"") ->  | U127: =IF(G127="compost",GOTO U127,"") ->  | V127: =IF(G127="compost",GOTO V127,"") ->  | W127: =IF(G127="compost",GOTO W127,"") ->  | X127: =IF(G127="maintenance, garden",GOTO X127,IF(G127="Table",GOTO X127,IF(G127="maintenance, project",GOTO X127,""))) ->  | Y127: =IF(G127="Maintenance, garden",GOTO Y127,IF(G127="Table",GOTO Y127,IF(G127="maintenance, project",GOTO Y127,""))) -> 
A128: 2023-09-23 | C128: volunteers | G128: harvest | H128: okra | I128: M11, O11,12,17 | J128: 2 | K128: 4 | L128: =IF(G128="Fertilize",GOTO L128,"") ->  | N128: =IF(G128="fertilize",GOTO N128,"") ->  | Q128: =IF(G128="compost",GOTO Q128,"") ->  | R128: =IF(G128="compost",GOTO R128,"") ->  | S128: =IF(G128="compost",GOTO S128,"") ->  | T128: =IF(G128="compost",GOTO T128,"") ->  | U128: =IF(G128="compost",GOTO U128,"") ->  | V128: =IF(G128="compost",GOTO V128,"") ->  | W128: =IF(G128="compost",GOTO W128,"") ->  | X128: =IF(G128="maintenance, garden",GOTO X128,IF(G128="Table",GOTO X128,IF(G128="maintenance, project",GOTO X128,""))) ->  | Y128: =IF(G128="Maintenance, garden",GOTO Y128,IF(G128="Table",GOTO Y128,IF(G128="maintenance, project",GOTO Y128,""))) -> 
A129: 2023-09-23 | C129: volunteers | G129: harvest | H129: eggplant | I129: M10 | J129: 1 | K129: 0 | L129: =IF(G129="Fertilize",GOTO L129,"") ->  | N129: =IF(G129="fertilize",GOTO N129,"") ->  | Q129: =IF(G129="compost",GOTO Q129,"") ->  | R129: =IF(G129="compost",GOTO R129,"") ->  | S129: =IF(G129="compost",GOTO S129,"") ->  | T129: =IF(G129="compost",GOTO T129,"") ->  | U129: =IF(G129="compost",GOTO U129,"") ->  | V129: =IF(G129="compost",GOTO V129,"") ->  | W129: =IF(G129="compost",GOTO W129,"") ->  | X129: =IF(G129="maintenance, garden",GOTO X129,IF(G129="Table",GOTO X129,IF(G129="maintenance, project",GOTO X129,""))) ->  | Y129: =IF(G129="Maintenance, garden",GOTO Y129,IF(G129="Table",GOTO Y129,IF(G129="maintenance, project",GOTO Y129,""))) -> 
A130: 2023-09-23 | C130: volunteers | G130: harvest | H130: beans, yard long | I130: M16, M3 | J130: 1 | K130: 5 | L130: =IF(G130="Fertilize",GOTO L130,"") ->  | N130: =IF(G130="fertilize",GOTO N130,"") ->  | Q130: =IF(G130="compost",GOTO Q130,"") ->  | R130: =IF(G130="compost",GOTO R130,"") ->  | S130: =IF(G130="compost",GOTO S130,"") ->  | T130: =IF(G130="compost",GOTO T130,"") ->  | U130: =IF(G130="compost",GOTO U130,"") ->  | V130: =IF(G130="compost",GOTO V130,"") ->  | W130: =IF(G130="compost",GOTO W130,"") ->  | X130: =IF(G130="maintenance, garden",GOTO X130,IF(G130="Table",GOTO X130,IF(G130="maintenance, project",GOTO X130,""))) ->  | Y130: =IF(G130="Maintenance, garden",GOTO Y130,IF(G130="Table",GOTO Y130,IF(G130="maintenance, project",GOTO Y130,""))) -> 
A131: 2023-09-23 | C131: volunteers | G131: harvest | H131: turnips, hakurei | I131: M13b | J131: 0 | K131: 5 | L131: =IF(G131="Fertilize",GOTO L131,"") ->  | N131: =IF(G131="fertilize",GOTO N131,"") ->  | Q131: =IF(G131="compost",GOTO Q131,"") ->  | R131: =IF(G131="compost",GOTO R131,"") ->  | S131: =IF(G131="compost",GOTO S131,"") ->  | T131: =IF(G131="compost",GOTO T131,"") ->  | U131: =IF(G131="compost",GOTO U131,"") ->  | V131: =IF(G131="compost",GOTO V131,"") ->  | W131: =IF(G131="compost",GOTO W131,"") ->  | X131: =IF(G131="maintenance, garden",GOTO X131,IF(G131="Table",GOTO X131,IF(G131="maintenance, project",GOTO X131,""))) ->  | Y131: =IF(G131="Maintenance, garden",GOTO Y131,IF(G131="Table",GOTO Y131,IF(G131="maintenance, project",GOTO Y131,""))) -> 
A132: 2023-09-23 | C132: volunteers | G132: harvest | H132: onions, multiplying | I132: main | J132: 1 | K132: 10 | L132: =IF(G132="Fertilize",GOTO L132,"") ->  | N132: =IF(G132="fertilize",GOTO N132,"") ->  | Q132: =IF(G132="compost",GOTO Q132,"") ->  | R132: =IF(G132="compost",GOTO R132,"") ->  | S132: =IF(G132="compost",GOTO S132,"") ->  | T132: =IF(G132="compost",GOTO T132,"") ->  | U132: =IF(G132="compost",GOTO U132,"") ->  | V132: =IF(G132="compost",GOTO V132,"") ->  | W132: =IF(G132="compost",GOTO W132,"") ->  | X132: =IF(G132="maintenance, garden",GOTO X132,IF(G132="Table",GOTO X132,IF(G132="maintenance, project",GOTO X132,""))) ->  | Y132: =IF(G132="Maintenance, garden",GOTO Y132,IF(G132="Table",GOTO Y132,IF(G132="maintenance, project",GOTO Y132,""))) -> 
A133: 2023-09-26 | C133: volunteers | G133: fertilize | H133: peppers | I133: M9a,b | J133: =IF(G133="Harvest",GOTO J133,"") ->  | K133: =IF(G133="Harvest",GOTO K133,"") ->  | L133: max bloom | M133: M9 | N133: ?? | Q133: =IF(G133="compost",GOTO Q133,"") ->  | R133: =IF(G133="compost",GOTO R133,"") ->  | S133: =IF(G133="compost",GOTO S133,"") ->  | T133: =IF(G133="compost",GOTO T133,"") ->  | U133: =IF(G133="compost",GOTO U133,"") ->  | V133: =IF(G133="compost",GOTO V133,"") ->  | W133: =IF(G133="compost",GOTO W133,"") ->  | X133: added compost to beds for planting Thursday
A134: 2023-09-26 | D134: volunteers | G134: maintenance, project | H134: =IF(A134="","",IF(G134="maintenance, garden","",IF(G134="maintenance, project","",IF(G134="compost","",GOTO I134)))) ->  | I134: orchard shed | J134: =IF(G134="Harvest",GOTO J134,"") ->  | K134: =IF(G134="Harvest",GOTO K134,"") ->  | L134: =IF(G134="Fertilize",GOTO L134,"") ->  | M134: =IF(G134="Fertilize",A134+14,"") ->  | N134: =IF(G134="fertilize",GOTO N134,"") ->  | Q134: =IF(G134="compost",GOTO Q134,"") ->  | R134: =IF(G134="compost",GOTO R134,"") ->  | S134: =IF(G134="compost",GOTO S134,"") ->  | T134: =IF(G134="compost",GOTO T134,"") ->  | U134: =IF(G134="compost",GOTO U134,"") ->  | V134: =IF(G134="compost",GOTO V134,"") ->  | W134: =IF(G134="compost",GOTO W134,"") ->  | X134: finished replacing middle door to shed with blank plywood | Y134: fixed vandalized door
A135: 2023-09-26 | C135: volunteers | G135: maintenance, garden | H135: =IF(A135="","",IF(G135="maintenance, garden","",IF(G135="maintenance, project","",IF(G135="compost","",GOTO I135)))) ->  | I135: main | J135: =IF(G135="Harvest",GOTO J135,"") ->  | K135: =IF(G135="Harvest",GOTO K135,"") ->  | L135: =IF(G135="Fertilize",GOTO L135,"") ->  | N135: =IF(G135="fertilize",GOTO N135,"") ->  | P135: =IF(G135="Plant", A135+14,"") ->  | Q135: =IF(G135="compost",GOTO Q135,"") ->  | R135: =IF(G135="compost",GOTO R135,"") ->  | S135: =IF(G135="compost",GOTO S135,"") ->  | T135: =IF(G135="compost",GOTO T135,"") ->  | U135: =IF(G135="compost",GOTO U135,"") ->  | V135: =IF(G135="compost",GOTO V135,"") ->  | W135: =IF(G135="compost",GOTO W135,"") ->  | X135: added compost to beds for planting Thursday
A136: 2023-09-28 | B136: AM | C136: Hebert | D136: Brydon | E136: 3 | F136: SH/SA | G136: plant | H136: beets | I136: M6b | J136: =IF(G136="Harvest",GOTO J136,"") ->  | K136: =IF(G136="Harvest",GOTO K136,"") ->  | L136: =IF(G136="Fertilize",GOTO L136,"") ->  | N136: =IF(G136="fertilize",GOTO N136,"") ->  | O136: plant 4" apart 1/2" deep and water in | P136: 2023-10-12 | Q136: =IF(G136="compost",GOTO Q136,"") ->  | R136: =IF(G136="compost",GOTO R136,"") ->  | S136: =IF(G136="compost",GOTO S136,"") ->  | T136: =IF(G136="compost",GOTO T136,"") ->  | U136: =IF(G136="compost",GOTO U136,"") ->  | V136: =IF(G136="compost",GOTO V136,"") ->  | W136: =IF(G136="compost",GOTO W136,"") ->  | X136: =IF(G136="maintenance, garden",GOTO X136,IF(G136="Table",GOTO X136,IF(G136="maintenance, project",GOTO X136,""))) ->  | Y136: =IF(G136="Maintenance, garden",GOTO Y136,IF(G136="Table",GOTO Y136,IF(G136="maintenance, project",GOTO Y136,""))) -> 
A137: 2023-09-28 | B137: AM | C137: Hebert | D137: Diego | E137: 2 | F137: AM/Dc/HO | G137: compost | H137: =IF(A137="","",IF(G137="maintenance, garden","",IF(G137="maintenance, project","",IF(G137="compost","",GOTO I137)))) ->  | I137: =IF(A137="","",IF(G137="compost","",GOTO I137)) ->  | J137: =IF(G137="Harvest",GOTO J137,"") ->  | K137: =IF(G137="Harvest",GOTO K137,"") ->  | L137: =IF(G137="Fertilize",GOTO L137,"") ->  | N137: =IF(G137="fertilize",GOTO N137,"") ->  | O137: =IF(G137="Plant",O137,"") ->  | Q137: 91 | S137: 1 | T137: 132 | U137: 84 | V137: 82 | W137: move #2 to #3 | X137: =IF(G137="maintenance, garden",GOTO X137,IF(G137="Table",GOTO X137,IF(G137="maintenance, project",GOTO X137,""))) ->  | Y137: =IF(G137="Maintenance, garden",GOTO Y137,IF(G137="Table",GOTO Y137,IF(G137="maintenance, project",GOTO Y137,""))) -> 
A138: 2023-09-28 | B138: AM | C138: Hebert | D138: Byrdon | E138: 3 | F138: SH/SA | G138: plant | H138: onions, multiplying | I138: M6 holes | J138: =IF(G138="Harvest",GOTO J138,"") ->  | K138: =IF(G138="Harvest",GOTO K138,"") ->  | L138: =IF(G138="Fertilize",GOTO L138,"") ->  | N138: =IF(G138="fertilize",GOTO N138,"") ->  | O138: =IF(G138="Plant",O138,"") ->  | P138: 2023-10-12 | Q138: =IF(G138="compost",GOTO Q138,"") ->  | R138: =IF(G138="compost",GOTO R138,"") ->  | S138: =IF(G138="compost",GOTO S138,"") ->  | T138: =IF(G138="compost",GOTO T138,"") ->  | U138: =IF(G138="compost",GOTO U138,"") ->  | V138: =IF(G138="compost",GOTO V138,"") ->  | W138: =IF(G138="compost",GOTO W138,"") ->  | X138: =IF(G138="maintenance, garden",GOTO X138,IF(G138="Table",GOTO X138,IF(G138="maintenance, project",GOTO X138,""))) ->  | Y138: =IF(G138="Maintenance, garden",GOTO Y138,IF(G138="Table",GOTO Y138,IF(G138="maintenance, project",GOTO Y138,""))) -> 
A139: 2023-09-28 | B139: AM | C139: Hebert | D139: Tre'Shawn | E139: 4 | F139: PM | G139: harvest | H139: eggplant | I139: M10 | J139: 10 | K139: 15 | L139: =IF(G139="Fertilize",GOTO L139,"") ->  | N139: =IF(G139="fertilize",GOTO N139,"") ->  | O139: =IF(G139="Plant",O139,"") ->  | Q139: =IF(G139="compost",GOTO Q139,"") ->  | R139: =IF(G139="compost",GOTO R139,"") ->  | S139: =IF(G139="compost",GOTO S139,"") ->  | T139: =IF(G139="compost",GOTO T139,"") ->  | U139: =IF(G139="compost",GOTO U139,"") ->  | V139: =IF(G139="compost",GOTO V139,"") ->  | W139: =IF(G139="compost",GOTO W139,"") ->  | X139: =IF(G139="maintenance, garden",GOTO X139,IF(G139="Table",GOTO X139,IF(G139="maintenance, project",GOTO X139,""))) ->  | Y139: =IF(G139="Maintenance, garden",GOTO Y139,IF(G139="Table",GOTO Y139,IF(G139="maintenance, project",GOTO Y139,""))) -> 
A140: 2023-09-28 | B140: AM | C140: Hebert | D140: Tre'Shawn | E140: 4 | F140: PM | G140: harvest | H140: turnips, hakurei | I140: M13b | J140: 1 | K140: 2 | L140: =IF(G140="Fertilize",GOTO L140,"") ->  | N140: =IF(G140="fertilize",GOTO N140,"") ->  | O140: =IF(G140="Plant",O140,"") ->  | Q140: =IF(G140="compost",GOTO Q140,"") ->  | R140: =IF(G140="compost",GOTO R140,"") ->  | S140: =IF(G140="compost",GOTO S140,"") ->  | T140: =IF(G140="compost",GOTO T140,"") ->  | U140: =IF(G140="compost",GOTO U140,"") ->  | V140: =IF(G140="compost",GOTO V140,"") ->  | W140: =IF(G140="compost",GOTO W140,"") ->  | X140: =IF(G140="maintenance, garden",GOTO X140,IF(G140="Table",GOTO X140,IF(G140="maintenance, project",GOTO X140,""))) ->  | Y140: =IF(G140="Maintenance, garden",GOTO Y140,IF(G140="Table",GOTO Y140,IF(G140="maintenance, project",GOTO Y140,""))) -> 
A141: 2023-09-28 | B141: AM | C141: Hebert | D141: Angel | E141: 5 | F141: PB/DC | G141: plant | H141: carrots, Tender Sweet | I141: M15b | J141: =IF(G141="Harvest",GOTO J141,"") ->  | K141: =IF(G141="Harvest",GOTO K141,"") ->  | L141: =IF(G141="Fertilize",GOTO L141,"") ->  | N141: =IF(G141="fertilize",GOTO N141,"") ->  | O141: plant in wetted rows covered and watered | P141: 2023-10-12 | Q141: =IF(G141="compost",GOTO Q141,"") ->  | R141: =IF(G141="compost",GOTO R141,"") ->  | S141: =IF(G141="compost",GOTO S141,"") ->  | T141: =IF(G141="compost",GOTO T141,"") ->  | U141: =IF(G141="compost",GOTO U141,"") ->  | V141: =IF(G141="compost",GOTO V141,"") ->  | W141: =IF(G141="compost",GOTO W141,"") ->  | X141: =IF(G141="maintenance, garden",GOTO X141,IF(G141="Table",GOTO X141,IF(G141="maintenance, project",GOTO X141,""))) ->  | Y141: =IF(G141="Maintenance, garden",GOTO Y141,IF(G141="Table",GOTO Y141,IF(G141="maintenance, project",GOTO Y141,""))) -> 
A142: 2023-09-28 | B142: AM | C142: Hebert | D142: Darianna | E142: 6 | F142: JT, LV | G142: Harvest | H142: Herbs | I142: Herb beds | L142: =IF(G142="Fertilize",GOTO L142,"") ->  | N142: =IF(G142="fertilize",GOTO N142,"") ->  | O142: parsley, cilantro, purple broccoli | Q142: =IF(G142="compost",GOTO Q142,"") ->  | R142: =IF(G142="compost",GOTO R142,"") ->  | S142: =IF(G142="compost",GOTO S142,"") ->  | T142: =IF(G142="compost",GOTO T142,"") ->  | U142: =IF(G142="compost",GOTO U142,"") ->  | V142: =IF(G142="compost",GOTO V142,"") ->  | W142: =IF(G142="compost",GOTO W142,"") ->  | X142: =IF(G142="maintenance, garden",GOTO X142,IF(G142="Table",GOTO X142,IF(G142="maintenance, project",GOTO X142,""))) ->  | Y142: =IF(G142="Maintenance, garden",GOTO Y142,IF(G142="Table",GOTO Y142,IF(G142="maintenance, project",GOTO Y142,""))) -> 
A143: 2023-09-28 | B143: PM | C143: Hebert | D143: Miyah | E143: 2 | F143: Dc | G143: compost | H143: =IF(A143="","",IF(G143="maintenance, garden","",IF(G143="maintenance, project","",IF(G143="compost","",GOTO I143)))) ->  | I143: =IF(A143="","",IF(G143="compost","",GOTO I143)) ->  | J143: =IF(G143="Harvest",GOTO J143,"") ->  | K143: =IF(G143="Harvest",GOTO K143,"") ->  | L143: =IF(G143="Fertilize",GOTO L143,"") ->  | N143: =IF(G143="fertilize",GOTO N143,"") ->  | O143: =IF(G143="Plant",O143,"") ->  | Q143: 96 | S143: 1 | T143: 140 | U143: 82 | V143: 80 | W143: move #2 to #3 | X143: =IF(G143="maintenance, garden",GOTO X143,IF(G143="Table",GOTO X143,IF(G143="maintenance, project",GOTO X143,""))) ->  | Y143: =IF(G143="Maintenance, garden",GOTO Y143,IF(G143="Table",GOTO Y143,IF(G143="maintenance, project",GOTO Y143,""))) -> 
A144: 2023-09-28 | B144: PM | C144: Hebert | D144: Jeymari | E144: 5 | F144: SK/SA | G144: plant | H144: collards | I144: M14b | J144: =IF(G144="Harvest",GOTO J144,"") ->  | K144: =IF(G144="Harvest",GOTO K144,"") ->  | L144: =IF(G144="Fertilize",GOTO L144,"") ->  | N144: =IF(G144="fertilize",GOTO N144,"") ->  | O144: plant 1/2"deep, 2" apart | P144: 2023-10-12 | Q144: =IF(G144="compost",GOTO Q144,"") ->  | R144: =IF(G144="compost",GOTO R144,"") ->  | S144: =IF(G144="compost",GOTO S144,"") ->  | T144: =IF(G144="compost",GOTO T144,"") ->  | U144: =IF(G144="compost",GOTO U144,"") ->  | V144: =IF(G144="compost",GOTO V144,"") ->  | W144: =IF(G144="compost",GOTO W144,"") ->  | X144: =IF(G144="maintenance, garden",GOTO X144,IF(G144="Table",GOTO X144,IF(G144="maintenance, project",GOTO X144,""))) ->  | Y144: =IF(G144="Maintenance, garden",GOTO Y144,IF(G144="Table",GOTO Y144,IF(G144="maintenance, project",GOTO Y144,""))) -> 
A145: 2023-09-28 | B145: PM | C145: Hebert | D145: Aleck | E145: 6 | F145: JB/JT | G145: plant | H145: herbs | I145: Herb beds | J145: =IF(G145="Harvest",GOTO J145,"") ->  | K145: =IF(G145="Harvest",GOTO K145,"") ->  | L145: =IF(G145="Fertilize",GOTO L145,"") ->  | N145: =IF(G145="fertilize",GOTO N145,"") ->  | O145: planted cilantro & parsley, water in | P145: 2023-10-12 | Q145: =IF(G145="compost",GOTO Q145,"") ->  | R145: =IF(G145="compost",GOTO R145,"") ->  | S145: =IF(G145="compost",GOTO S145,"") ->  | T145: =IF(G145="compost",GOTO T145,"") ->  | U145: =IF(G145="compost",GOTO U145,"") ->  | V145: =IF(G145="compost",GOTO V145,"") ->  | W145: =IF(G145="compost",GOTO W145,"") ->  | X145: =IF(G145="maintenance, garden",GOTO X145,IF(G145="Table",GOTO X145,IF(G145="maintenance, project",GOTO X145,""))) ->  | Y145: =IF(G145="Maintenance, garden",GOTO Y145,IF(G145="Table",GOTO Y145,IF(G145="maintenance, project",GOTO Y145,""))) -> 
A146: 2023-09-28 | B146: PM | C146: Hebert | D146: Ruben | E146: 3 | F146: SH/SA | G146: Harvest | H146: beans, yard long | I146: M16 | J146: 2 | K146: 6 | L146: =IF(G146="Fertilize",GOTO L146,"") ->  | N146: =IF(G146="fertilize",GOTO N146,"") ->  | O146: =IF(G146="Plant",O146,"") ->  | Q146: =IF(G146="compost",GOTO Q146,"") ->  | R146: =IF(G146="compost",GOTO R146,"") ->  | S146: =IF(G146="compost",GOTO S146,"") ->  | T146: =IF(G146="compost",GOTO T146,"") ->  | U146: =IF(G146="compost",GOTO U146,"") ->  | V146: =IF(G146="compost",GOTO V146,"") ->  | W146: =IF(G146="compost",GOTO W146,"") ->  | X146: =IF(G146="maintenance, garden",GOTO X146,IF(G146="Table",GOTO X146,IF(G146="maintenance, project",GOTO X146,""))) ->  | Y146: =IF(G146="Maintenance, garden",GOTO Y146,IF(G146="Table",GOTO Y146,IF(G146="maintenance, project",GOTO Y146,""))) -> 
A147: 2023-09-28 | B147: PM | C147: Hebert | D147: Ruben | E147: 3 | F147: SH/SA | G147: Harvest | H147: turnips, hakurei | I147: M13b | J147: 0 | K147: 9 | L147: =IF(G147="Fertilize",GOTO L147,"") ->  | N147: =IF(G147="fertilize",GOTO N147,"") ->  | O147: =IF(G147="Plant",O147,"") ->  | Q147: =IF(G147="compost",GOTO Q147,"") ->  | R147: =IF(G147="compost",GOTO R147,"") ->  | S147: =IF(G147="compost",GOTO S147,"") ->  | T147: =IF(G147="compost",GOTO T147,"") ->  | U147: =IF(G147="compost",GOTO U147,"") ->  | V147: =IF(G147="compost",GOTO V147,"") ->  | W147: =IF(G147="compost",GOTO W147,"") ->  | X147: =IF(G147="maintenance, garden",GOTO X147,IF(G147="Table",GOTO X147,IF(G147="maintenance, project",GOTO X147,""))) ->  | Y147: =IF(G147="Maintenance, garden",GOTO Y147,IF(G147="Table",GOTO Y147,IF(G147="maintenance, project",GOTO Y147,""))) -> 
A148: 2023-09-28 | B148: PM | C148: Hebert | D148: Sophia | E148: 4 | F148: DC/PM | G148: Harvest | H148: okra | I148: M11 | J148: 0 | K148: 8 | L148: =IF(G148="Fertilize",GOTO L148,"") ->  | N148: =IF(G148="fertilize",GOTO N148,"") ->  | O148: =IF(G148="Plant",O148,"") ->  | Q148: =IF(G148="compost",GOTO Q148,"") ->  | R148: =IF(G148="compost",GOTO R148,"") ->  | S148: =IF(G148="compost",GOTO S148,"") ->  | T148: =IF(G148="compost",GOTO T148,"") ->  | U148: =IF(G148="compost",GOTO U148,"") ->  | V148: =IF(G148="compost",GOTO V148,"") ->  | W148: =IF(G148="compost",GOTO W148,"") ->  | X148: =IF(G148="maintenance, garden",GOTO X148,IF(G148="Table",GOTO X148,IF(G148="maintenance, project",GOTO X148,""))) ->  | Y148: =IF(G148="Maintenance, garden",GOTO Y148,IF(G148="Table",GOTO Y148,IF(G148="maintenance, project",GOTO Y148,""))) -> 
A149: 2023-09-28 | B149: PM | C149: Hebert | D149: Sophia | E149: 4 | F149: DC/PM | G149: plant | H149: onions, multiplying | I149: M15 holes | J149: =IF(G149="Harvest",GOTO J149,"") ->  | K149: =IF(G149="Harvest",GOTO K149,"") ->  | L149: =IF(G149="Fertilize",GOTO L149,"") ->  | N149: =IF(G149="fertilize",GOTO N149,"") ->  | O149: add compost to holes, 6-2-4, plant 1 separated onion in block hole | P149: 2023-10-12 | Q149: =IF(G149="compost",GOTO Q149,"") ->  | R149: =IF(G149="compost",GOTO R149,"") ->  | S149: =IF(G149="compost",GOTO S149,"") ->  | T149: =IF(G149="compost",GOTO T149,"") ->  | U149: =IF(G149="compost",GOTO U149,"") ->  | V149: =IF(G149="compost",GOTO V149,"") ->  | W149: =IF(G149="compost",GOTO W149,"") ->  | X149: =IF(G149="maintenance, garden",GOTO X149,IF(G149="Table",GOTO X149,IF(G149="maintenance, project",GOTO X149,""))) ->  | Y149: =IF(G149="Maintenance, garden",GOTO Y149,IF(G149="Table",GOTO Y149,IF(G149="maintenance, project",GOTO Y149,""))) -> 
A150: 2023-10-03 | C150: volunteers | G150: harvest | H150: okra | I150: M11, O11,12,17 | J150: 1 | K150: 11 | L150: =IF(G150="Fertilize",GOTO L150,"") ->  | N150: =IF(G150="fertilize",GOTO N150,"") ->  | O150: =IF(G150="Plant",O150,"") ->  | Q150: =IF(G150="compost",GOTO Q150,"") ->  | R150: =IF(G150="compost",GOTO R150,"") ->  | S150: =IF(G150="compost",GOTO S150,"") ->  | T150: =IF(G150="compost",GOTO T150,"") ->  | U150: =IF(G150="compost",GOTO U150,"") ->  | V150: =IF(G150="compost",GOTO V150,"") ->  | W150: =IF(G150="compost",GOTO W150,"") ->  | X150: =IF(G150="maintenance, garden",GOTO X150,IF(G150="Table",GOTO X150,IF(G150="maintenance, project",GOTO X150,""))) ->  | Y150: =IF(G150="Maintenance, garden",GOTO Y150,IF(G150="Table",GOTO Y150,IF(G150="maintenance, project",GOTO Y150,""))) -> 
A151: 2023-10-03 | C151: volunteers | G151: harvest | H151: beans, yard long | I151: m16 | J151: 1 | K151: 12 | L151: =IF(G151="Fertilize",GOTO L151,"") ->  | N151: =IF(G151="fertilize",GOTO N151,"") ->  | O151: =IF(G151="Plant",O151,"") ->  | Q151: =IF(G151="compost",GOTO Q151,"") ->  | R151: =IF(G151="compost",GOTO R151,"") ->  | S151: =IF(G151="compost",GOTO S151,"") ->  | T151: =IF(G151="compost",GOTO T151,"") ->  | U151: =IF(G151="compost",GOTO U151,"") ->  | V151: =IF(G151="compost",GOTO V151,"") ->  | W151: =IF(G151="compost",GOTO W151,"") ->  | X151: =IF(G151="maintenance, garden",GOTO X151,IF(G151="Table",GOTO X151,IF(G151="maintenance, project",GOTO X151,""))) ->  | Y151: =IF(G151="Maintenance, garden",GOTO Y151,IF(G151="Table",GOTO Y151,IF(G151="maintenance, project",GOTO Y151,""))) -> 
A152: 2023-10-03 | C152: volunteers | G152: harvest | H152: peppers | I152: M9a,b | J152: 0 | K152: 6 | L152: =IF(G152="Fertilize",GOTO L152,"") ->  | N152: =IF(G152="fertilize",GOTO N152,"") ->  | O152: =IF(G152="Plant",O152,"") ->  | Q152: =IF(G152="compost",GOTO Q152,"") ->  | R152: =IF(G152="compost",GOTO R152,"") ->  | S152: =IF(G152="compost",GOTO S152,"") ->  | T152: =IF(G152="compost",GOTO T152,"") ->  | U152: =IF(G152="compost",GOTO U152,"") ->  | V152: =IF(G152="compost",GOTO V152,"") ->  | W152: =IF(G152="compost",GOTO W152,"") ->  | X152: =IF(G152="maintenance, garden",GOTO X152,IF(G152="Table",GOTO X152,IF(G152="maintenance, project",GOTO X152,""))) ->  | Y152: =IF(G152="Maintenance, garden",GOTO Y152,IF(G152="Table",GOTO Y152,IF(G152="maintenance, project",GOTO Y152,""))) -> 
A153: 2023-10-03 | C153: volunteers | G153: harvest | H153: eggplant | I153: m10 | J153: 1 | K153: 9 | L153: =IF(G153="Fertilize",GOTO L153,"") ->  | N153: =IF(G153="fertilize",GOTO N153,"") ->  | O153: =IF(G153="Plant",O153,"") ->  | Q153: =IF(G153="compost",GOTO Q153,"") ->  | R153: =IF(G153="compost",GOTO R153,"") ->  | S153: =IF(G153="compost",GOTO S153,"") ->  | T153: =IF(G153="compost",GOTO T153,"") ->  | U153: =IF(G153="compost",GOTO U153,"") ->  | V153: =IF(G153="compost",GOTO V153,"") ->  | W153: =IF(G153="compost",GOTO W153,"") ->  | X153: =IF(G153="maintenance, garden",GOTO X153,IF(G153="Table",GOTO X153,IF(G153="maintenance, project",GOTO X153,""))) ->  | Y153: =IF(G153="Maintenance, garden",GOTO Y153,IF(G153="Table",GOTO Y153,IF(G153="maintenance, project",GOTO Y153,""))) -> 
A154: 2023-10-07 | C154: volunteers | G154: harvest | H154: okra | I154: M11 | J154: 0 | K154: 3 | L154: =IF(G154="Fertilize",GOTO L154,"") ->  | N154: =IF(G154="fertilize",GOTO N154,"") ->  | O154: =IF(G154="Plant",H154,"") ->  | Q154: =IF(G154="compost",GOTO Q154,"") ->  | R154: =IF(G154="compost",GOTO R154,"") ->  | S154: =IF(G154="compost",GOTO S154,"") ->  | T154: =IF(G154="compost",GOTO T154,"") ->  | U154: =IF(G154="compost",GOTO U154,"") ->  | V154: =IF(G154="compost",GOTO V154,"") ->  | W154: =IF(G154="compost",GOTO W154,"") ->  | X154: =IF(G154="maintenance, garden",GOTO X154,IF(G154="Table",GOTO X154,IF(G154="maintenance, project",GOTO X154,""))) ->  | Y154: =IF(G154="Maintenance, garden",GOTO Y154,IF(G154="Table",GOTO Y154,IF(G154="maintenance, project",GOTO Y154,""))) -> 
A155: 2023-10-07 | C155: volunteers | G155: harvest | H155: turmips | I155: ? | J155: 1 | K155: 10 | L155: =IF(G155="Fertilize",GOTO L155,"") ->  | N155: =IF(G155="fertilize",GOTO N155,"") ->  | O155: =IF(G155="Plant",H155,"") ->  | Q155: =IF(G155="compost",GOTO Q155,"") ->  | R155: =IF(G155="compost",GOTO R155,"") ->  | S155: =IF(G155="compost",GOTO S155,"") ->  | T155: =IF(G155="compost",GOTO T155,"") ->  | U155: =IF(G155="compost",GOTO U155,"") ->  | V155: =IF(G155="compost",GOTO V155,"") ->  | W155: =IF(G155="compost",GOTO W155,"") ->  | X155: =IF(G155="maintenance, garden",GOTO X155,IF(G155="Table",GOTO X155,IF(G155="maintenance, project",GOTO X155,""))) ->  | Y155: =IF(G155="Maintenance, garden",GOTO Y155,IF(G155="Table",GOTO Y155,IF(G155="maintenance, project",GOTO Y155,""))) -> 
A156: 2023-10-10 | B156: no | C156: records kept | J156: =IF(G156="Harvest",GOTO J156,"") ->  | K156: =IF(G156="Harvest",GOTO K156,"") ->  | L156: =IF(G156="Fertilize",GOTO L156,"") ->  | N156: =IF(G156="fertilize",GOTO N156,"") ->  | O156: =IF(G156="Plant",O156,"") ->  | Q156: =IF(G156="compost",GOTO Q156,"") ->  | R156: =IF(G156="compost",GOTO R156,"") ->  | S156: =IF(G156="compost",GOTO S156,"") ->  | T156: =IF(G156="compost",GOTO T156,"") ->  | U156: =IF(G156="compost",GOTO U156,"") ->  | V156: =IF(G156="compost",GOTO V156,"") ->  | W156: =IF(G156="compost",GOTO W156,"") ->  | X156: =IF(G156="maintenance, garden",GOTO X156,IF(G156="Table",GOTO X156,IF(G156="maintenance, project",GOTO X156,""))) ->  | Y156: =IF(G156="Maintenance, garden",GOTO Y156,IF(G156="Table",GOTO Y156,IF(G156="maintenance, project",GOTO Y156,""))) -> 
A157: 2023-10-12 | B157: no | C157: records kept | J157: =IF(G157="Harvest",GOTO J157,"") ->  | K157: =IF(G157="Harvest",GOTO K157,"") ->  | L157: =IF(G157="Fertilize",GOTO L157,"") ->  | N157: =IF(G157="fertilize",GOTO N157,"") ->  | O157: =IF(G157="Plant",O157,"") ->  | Q157: =IF(G157="compost",GOTO Q157,"") ->  | R157: =IF(G157="compost",GOTO R157,"") ->  | S157: =IF(G157="compost",GOTO S157,"") ->  | T157: =IF(G157="compost",GOTO T157,"") ->  | U157: =IF(G157="compost",GOTO U157,"") ->  | V157: =IF(G157="compost",GOTO V157,"") ->  | W157: =IF(G157="compost",GOTO W157,"") ->  | X157: =IF(G157="maintenance, garden",GOTO X157,IF(G157="Table",GOTO X157,IF(G157="maintenance, project",GOTO X157,""))) ->  | Y157: =IF(G157="Maintenance, garden",GOTO Y157,IF(G157="Table",GOTO Y157,IF(G157="maintenance, project",GOTO Y157,""))) -> 
A158: 2023-10-14 | C158: volunteers | G158: harvest | H158: beans, yard long | I158: M16 | J158: 1 | K158: 7 | L158: =IF(G158="Fertilize",GOTO L158,"") ->  | N158: =IF(G158="fertilize",GOTO N158,"") ->  | O158: =IF(G158="Plant",H158,"") ->  | Q158: =IF(G158="compost",GOTO Q158,"") ->  | R158: =IF(G158="compost",GOTO R158,"") ->  | S158: =IF(G158="compost",GOTO S158,"") ->  | T158: =IF(G158="compost",GOTO T158,"") ->  | U158: =IF(G158="compost",GOTO U158,"") ->  | V158: =IF(G158="compost",GOTO V158,"") ->  | W158: =IF(G158="compost",GOTO W158,"") ->  | X158: =IF(G158="maintenance, garden",GOTO X158,IF(G158="Table",GOTO X158,IF(G158="maintenance, project",GOTO X158,""))) ->  | Y158: =IF(G158="Maintenance, garden",GOTO Y158,IF(G158="Table",GOTO Y158,IF(G158="maintenance, project",GOTO Y158,""))) -> 
A159: 2023-10-14 | C159: volunteers | G159: harvest | H159: eggplant | I159: M10 | J159: 8 | K159: 3 | L159: =IF(G159="Fertilize",GOTO L159,"") ->  | N159: =IF(G159="fertilize",GOTO N159,"") ->  | O159: =IF(G159="Plant",H159,"") ->  | Q159: =IF(G159="compost",GOTO Q159,"") ->  | R159: =IF(G159="compost",GOTO R159,"") ->  | S159: =IF(G159="compost",GOTO S159,"") ->  | T159: =IF(G159="compost",GOTO T159,"") ->  | U159: =IF(G159="compost",GOTO U159,"") ->  | V159: =IF(G159="compost",GOTO V159,"") ->  | W159: =IF(G159="compost",GOTO W159,"") ->  | X159: =IF(G159="maintenance, garden",GOTO X159,IF(G159="Table",GOTO X159,IF(G159="maintenance, project",GOTO X159,""))) ->  | Y159: =IF(G159="Maintenance, garden",GOTO Y159,IF(G159="Table",GOTO Y159,IF(G159="maintenance, project",GOTO Y159,""))) -> 
A160: 2023-10-14 | C160: volunteers | G160: harvest | H160: okra | I160: M11 | J160: 1 | K160: 6 | L160: =IF(G160="Fertilize",GOTO L160,"") ->  | N160: =IF(G160="fertilize",GOTO N160,"") ->  | O160: =IF(G160="Plant",H160,"") ->  | Q160: =IF(G160="compost",GOTO Q160,"") ->  | R160: =IF(G160="compost",GOTO R160,"") ->  | S160: =IF(G160="compost",GOTO S160,"") ->  | T160: =IF(G160="compost",GOTO T160,"") ->  | U160: =IF(G160="compost",GOTO U160,"") ->  | V160: =IF(G160="compost",GOTO V160,"") ->  | W160: =IF(G160="compost",GOTO W160,"") ->  | X160: =IF(G160="maintenance, garden",GOTO X160,IF(G160="Table",GOTO X160,IF(G160="maintenance, project",GOTO X160,""))) ->  | Y160: =IF(G160="Maintenance, garden",GOTO Y160,IF(G160="Table",GOTO Y160,IF(G160="maintenance, project",GOTO Y160,""))) -> 
A161: 2023-10-17 | B161: on | C161: 10/17/23 the class | D161: was on field | E161: trip and | F161: did not | G161: show | J161: =IF(G161="Harvest",GOTO J161,"") ->  | K161: =IF(G161="Harvest",GOTO K161,"") ->  | L161: =IF(G161="Fertilize",GOTO L161,"") ->  | N161: =IF(G161="fertilize",GOTO N161,"") ->  | O161: =IF(G161="Plant",O161,"") ->  | Q161: =IF(G161="compost",GOTO Q161,"") ->  | R161: =IF(G161="compost",GOTO R161,"") ->  | S161: =IF(G161="compost",GOTO S161,"") ->  | T161: =IF(G161="compost",GOTO T161,"") ->  | U161: =IF(G161="compost",GOTO U161,"") ->  | V161: =IF(G161="compost",GOTO V161,"") ->  | W161: =IF(G161="compost",GOTO W161,"") ->  | X161: =IF(G161="maintenance, garden",GOTO X161,IF(G161="Table",GOTO X161,IF(G161="maintenance, project",GOTO X161,""))) ->  | Y161: =IF(G161="Maintenance, garden",GOTO Y161,IF(G161="Table",GOTO Y161,IF(G161="maintenance, project",GOTO Y161,""))) -> 
A162: 2023-10-17 | C162: volunteers | G162: harvest | H162: turnips, hakurei | I162: ? | J162: 1 | K162: 10 | L162: =IF(G162="Fertilize",GOTO L162,"") ->  | N162: =IF(G162="fertilize",GOTO N162,"") ->  | O162: =IF(G162="Plant",H162,"") ->  | Q162: =IF(G162="compost",GOTO Q162,"") ->  | R162: =IF(G162="compost",GOTO R162,"") ->  | S162: =IF(G162="compost",GOTO S162,"") ->  | T162: =IF(G162="compost",GOTO T162,"") ->  | U162: =IF(G162="compost",GOTO U162,"") ->  | V162: =IF(G162="compost",GOTO V162,"") ->  | W162: =IF(G162="compost",GOTO W162,"") ->  | X162: =IF(G162="maintenance, garden",GOTO X162,IF(G162="Table",GOTO X162,IF(G162="maintenance, project",GOTO X162,""))) ->  | Y162: =IF(G162="Maintenance, garden",GOTO Y162,IF(G162="Table",GOTO Y162,IF(G162="maintenance, project",GOTO Y162,""))) -> 
A163: 2023-10-17 | C163: volunteers | G163: harvest | H163: okra | I163: M11 | J163: 0 | K163: 9 | L163: =IF(G163="Fertilize",GOTO L163,"") ->  | N163: =IF(G163="fertilize",GOTO N163,"") ->  | O163: =IF(G163="Plant",H163,"") ->  | Q163: =IF(G163="compost",GOTO Q163,"") ->  | R163: =IF(G163="compost",GOTO R163,"") ->  | S163: =IF(G163="compost",GOTO S163,"") ->  | T163: =IF(G163="compost",GOTO T163,"") ->  | U163: =IF(G163="compost",GOTO U163,"") ->  | V163: =IF(G163="compost",GOTO V163,"") ->  | W163: =IF(G163="compost",GOTO W163,"") ->  | X163: =IF(G163="maintenance, garden",GOTO X163,IF(G163="Table",GOTO X163,IF(G163="maintenance, project",GOTO X163,""))) ->  | Y163: =IF(G163="Maintenance, garden",GOTO Y163,IF(G163="Table",GOTO Y163,IF(G163="maintenance, project",GOTO Y163,""))) -> 
A164: 2023-10-17 | C164: volunteers | G164: harvest | H164: eggplant | I164: m10 | J164: 6 | K164: 5 | L164: =IF(G164="Fertilize",GOTO L164,"") ->  | N164: =IF(G164="fertilize",GOTO N164,"") ->  | O164: =IF(G164="Plant",H164,"") ->  | Q164: =IF(G164="compost",GOTO Q164,"") ->  | R164: =IF(G164="compost",GOTO R164,"") ->  | S164: =IF(G164="compost",GOTO S164,"") ->  | T164: =IF(G164="compost",GOTO T164,"") ->  | U164: =IF(G164="compost",GOTO U164,"") ->  | V164: =IF(G164="compost",GOTO V164,"") ->  | W164: =IF(G164="compost",GOTO W164,"") ->  | X164: =IF(G164="maintenance, garden",GOTO X164,IF(G164="Table",GOTO X164,IF(G164="maintenance, project",GOTO X164,""))) ->  | Y164: =IF(G164="Maintenance, garden",GOTO Y164,IF(G164="Table",GOTO Y164,IF(G164="maintenance, project",GOTO Y164,""))) -> 
A165: 2023-10-17 | C165: volunteers | G165: harvest | H165: beans, yard long | I165: m16 | J165: 1 | K165: 0 | L165: =IF(G165="Fertilize",GOTO L165,"") ->  | N165: =IF(G165="fertilize",GOTO N165,"") ->  | O165: =IF(G165="Plant",H165,"") ->  | Q165: =IF(G165="compost",GOTO Q165,"") ->  | R165: =IF(G165="compost",GOTO R165,"") ->  | S165: =IF(G165="compost",GOTO S165,"") ->  | T165: =IF(G165="compost",GOTO T165,"") ->  | U165: =IF(G165="compost",GOTO U165,"") ->  | V165: =IF(G165="compost",GOTO V165,"") ->  | W165: =IF(G165="compost",GOTO W165,"") ->  | X165: =IF(G165="maintenance, garden",GOTO X165,IF(G165="Table",GOTO X165,IF(G165="maintenance, project",GOTO X165,""))) ->  | Y165: =IF(G165="Maintenance, garden",GOTO Y165,IF(G165="Table",GOTO Y165,IF(G165="maintenance, project",GOTO Y165,""))) -> 
A166: 2023-10-19 | B166: AM | C166: Hebert/Bollig | D166: Cameron | E166: 1 | F166: HO | G166: compost | H166: =IF(A166="","",IF(G166="maintenance, garden","",IF(G166="maintenance, project","",IF(G166="compost","",GOTO I166)))) ->  | I166: =IF(A166="","",IF(G166="compost","",GOTO I166)) ->  | J166: =IF(G166="Harvest",GOTO J166,"") ->  | K166: =IF(G166="Harvest",GOTO K166,"") ->  | L166: =IF(G166="Fertilize",GOTO L166,"") ->  | M166: =IF(G166="Fertilize",A166+14,"") ->  | N166: =IF(G166="fertilize",GOTO N166,"") ->  | O166: =IF(G166="Plant",O166,"") ->  | Q166: 80 | S166: 0.5 | T166: 106 | U166: 78 | V166: 68 | W166: cut green stuff | X166: =IF(G166="maintenance, garden",GOTO X166,IF(G166="Table",GOTO X166,IF(G166="maintenance, project",GOTO X166,""))) ->  | Y166: =IF(G166="Maintenance, garden",GOTO Y166,IF(G166="Table",GOTO Y166,IF(G166="maintenance, project",GOTO Y166,""))) -> 
A167: 2023-10-19 | B167: AM | C167: Hebert/Bollig | D167: Tre'Shawn | E167: 4 | F167: SH | G167: harvest | H167: beans, yard long | I167: M3 | J167: 0 | K167: 4 | L167: =IF(G167="Fertilize",GOTO L167,"") ->  | N167: =IF(G167="fertilize",GOTO N167,"") ->  | O167: =IF(G167="Plant",O167,"") ->  | Q167: =IF(G167="compost",GOTO Q167,"") ->  | R167: =IF(G167="compost",GOTO R167,"") ->  | S167: =IF(G167="compost",GOTO S167,"") ->  | T167: =IF(G167="compost",GOTO T167,"") ->  | U167: =IF(G167="compost",GOTO U167,"") ->  | V167: =IF(G167="compost",GOTO V167,"") ->  | W167: =IF(G167="compost",GOTO W167,"") ->  | X167: =IF(G167="maintenance, garden",GOTO X167,IF(G167="Table",GOTO X167,IF(G167="maintenance, project",GOTO X167,""))) ->  | Y167: =IF(G167="Maintenance, garden",GOTO Y167,IF(G167="Table",GOTO Y167,IF(G167="maintenance, project",GOTO Y167,""))) -> 
A168: 2023-10-19 | B168: AM | C168: Hebert/Bollig | D168: Lyana | E168: 5 | F168: EV | G168: plant | H168: turnips, hakurei | I168: M13 | J168: =IF(G168="Harvest",GOTO J168,"") ->  | K168: =IF(G168="Harvest",GOTO K168,"") ->  | L168: =IF(G168="Fertilize",GOTO L168,"") ->  | N168: =IF(G168="fertilize",GOTO N168,"") ->  | O168: =IF(G168="Plant",H168,"") -> turnips, hakurei | P168: 2023-11-02 | Q168: =IF(G168="compost",GOTO Q168,"") ->  | R168: =IF(G168="compost",GOTO R168,"") ->  | S168: =IF(G168="compost",GOTO S168,"") ->  | T168: =IF(G168="compost",GOTO T168,"") ->  | U168: =IF(G168="compost",GOTO U168,"") ->  | V168: =IF(G168="compost",GOTO V168,"") ->  | W168: =IF(G168="compost",GOTO W168,"") ->  | X168: =IF(G168="maintenance, garden",GOTO X168,IF(G168="Table",GOTO X168,IF(G168="maintenance, project",GOTO X168,""))) ->  | Y168: =IF(G168="Maintenance, garden",GOTO Y168,IF(G168="Table",GOTO Y168,IF(G168="maintenance, project",GOTO Y168,""))) -> 
A169: 2023-10-19 | B169: AM | C169: Hebert/Bollig | D169: Daniella | E169: 3 | F169: SA/AM | G169: plant | H169: turnips, hakurei | I169: m11b | J169: =IF(G169="Harvest",GOTO J169,"") ->  | K169: =IF(G169="Harvest",GOTO K169,"") ->  | L169: =IF(G169="Fertilize",GOTO L169,"") ->  | N169: =IF(G169="fertilize",GOTO N169,"") ->  | O169: turnips, hakurei | P169: 2023-11-02 | Q169: =IF(G169="compost",GOTO Q169,"") ->  | R169: =IF(G169="compost",GOTO R169,"") ->  | S169: =IF(G169="compost",GOTO S169,"") ->  | T169: =IF(G169="compost",GOTO T169,"") ->  | U169: =IF(G169="compost",GOTO U169,"") ->  | V169: =IF(G169="compost",GOTO V169,"") ->  | W169: =IF(G169="compost",GOTO W169,"") ->  | X169: =IF(G169="maintenance, garden",GOTO X169,IF(G169="Table",GOTO X169,IF(G169="maintenance, project",GOTO X169,""))) ->  | Y169: =IF(G169="Maintenance, garden",GOTO Y169,IF(G169="Table",GOTO Y169,IF(G169="maintenance, project",GOTO Y169,""))) -> 
A170: 2023-10-19 | B170: AM | C170: Hebert/Bollig | D170: Richard | E170: 2 | F170: DC/MW | G170: harvest | H170: onions, multiplying | I170: main | J170: 9 | K170: 9 | L170: =IF(G170="Fertilize",GOTO L170,"") ->  | N170: =IF(G170="fertilize",GOTO N170,"") ->  | Q170: =IF(G170="compost",GOTO Q170,"") ->  | R170: =IF(G170="compost",GOTO R170,"") ->  | S170: =IF(G170="compost",GOTO S170,"") ->  | T170: =IF(G170="compost",GOTO T170,"") ->  | U170: =IF(G170="compost",GOTO U170,"") ->  | V170: =IF(G170="compost",GOTO V170,"") ->  | W170: =IF(G170="compost",GOTO W170,"") ->  | X170: =IF(G170="maintenance, garden",GOTO X170,IF(G170="Table",GOTO X170,IF(G170="maintenance, project",GOTO X170,""))) ->  | Y170: =IF(G170="Maintenance, garden",GOTO Y170,IF(G170="Table",GOTO Y170,IF(G170="maintenance, project",GOTO Y170,""))) -> 
A171: 2023-10-19 | B171: AM | C171: Hebert/Bollig | D171: Richard | E171: 2 | F171: DC/MW | G171: harvest | H171: eggplant | I171: M10 | J171: 12 | K171: 8 | L171: =IF(G171="Fertilize",GOTO L171,"") ->  | N171: =IF(G171="fertilize",GOTO N171,"") ->  | Q171: =IF(G171="compost",GOTO Q171,"") ->  | R171: =IF(G171="compost",GOTO R171,"") ->  | S171: =IF(G171="compost",GOTO S171,"") ->  | T171: =IF(G171="compost",GOTO T171,"") ->  | U171: =IF(G171="compost",GOTO U171,"") ->  | V171: =IF(G171="compost",GOTO V171,"") ->  | W171: =IF(G171="compost",GOTO W171,"") ->  | X171: =IF(G171="maintenance, garden",GOTO X171,IF(G171="Table",GOTO X171,IF(G171="maintenance, project",GOTO X171,""))) ->  | Y171: =IF(G171="Maintenance, garden",GOTO Y171,IF(G171="Table",GOTO Y171,IF(G171="maintenance, project",GOTO Y171,""))) -> 
A172: 2023-10-19 | B172: PM | C172: Hebert/Bollig | D172: Xavier | E172: 1 | F172: AM | G172: compost | H172: =IF(A172="","",IF(G172="maintenance, garden","",IF(G172="maintenance, project","",IF(G172="compost","",GOTO I172)))) ->  | I172: =IF(A172="","",IF(G172="compost","",GOTO I172)) ->  | J172: =IF(G172="Harvest",GOTO J172,"") ->  | K172: =IF(G172="Harvest",GOTO K172,"") ->  | L172: =IF(G172="Fertilize",GOTO L172,"") ->  | N172: =IF(G172="fertilize",GOTO N172,"") ->  | Q172: 90 | S172: 0 | T172: 97 | U172: 88 | V172: 69 | W172: compost tea, water herbs | X172: =IF(G172="maintenance, garden",GOTO X172,IF(G172="Table",GOTO X172,IF(G172="maintenance, project",GOTO X172,""))) ->  | Y172: =IF(G172="Maintenance, garden",GOTO Y172,IF(G172="Table",GOTO Y172,IF(G172="maintenance, project",GOTO Y172,""))) -> 
A173: 2023-10-19 | B173: PM | C173: Hebert/Bollig | D173: Delan | E173: 2 | F173: D | G173: plant | H173: Radish, French Breakfast | I173: m11a | J173: =IF(G173="Harvest",GOTO J173,"") ->  | K173: =IF(G173="Harvest",GOTO K173,"") ->  | L173: =IF(G173="Fertilize",GOTO L173,"") ->  | N173: =IF(G173="fertilize",GOTO N173,"") ->  | O173: Radish, French Breakfast | P173: 2023-11-02 | Q173: =IF(G173="compost",GOTO Q173,"") ->  | R173: =IF(G173="compost",GOTO R173,"") ->  | S173: =IF(G173="compost",GOTO S173,"") ->  | T173: =IF(G173="compost",GOTO T173,"") ->  | U173: =IF(G173="compost",GOTO U173,"") ->  | V173: =IF(G173="compost",GOTO V173,"") ->  | W173: =IF(G173="compost",GOTO W173,"") ->  | X173: =IF(G173="maintenance, garden",GOTO X173,IF(G173="Table",GOTO X173,IF(G173="maintenance, project",GOTO X173,""))) ->  | Y173: =IF(G173="Maintenance, garden",GOTO Y173,IF(G173="Table",GOTO Y173,IF(G173="maintenance, project",GOTO Y173,""))) -> 
A174: 2023-10-19 | B174: PM | C174: Hebert/Bollig | D174: ? | E174: 3 | F174: SH/SA | G174: plant | H174: spinach | I174: O16 | J174: =IF(G174="Harvest",GOTO J174,"") ->  | K174: =IF(G174="Harvest",GOTO K174,"") ->  | L174: =IF(G174="Fertilize",GOTO L174,"") ->  | N174: =IF(G174="fertilize",GOTO N174,"") ->  | O174: spinach | P174: 2023-11-02 | Q174: =IF(G174="compost",GOTO Q174,"") ->  | R174: =IF(G174="compost",GOTO R174,"") ->  | S174: =IF(G174="compost",GOTO S174,"") ->  | T174: =IF(G174="compost",GOTO T174,"") ->  | U174: =IF(G174="compost",GOTO U174,"") ->  | V174: =IF(G174="compost",GOTO V174,"") ->  | W174: =IF(G174="compost",GOTO W174,"") ->  | X174: =IF(G174="maintenance, garden",GOTO X174,IF(G174="Table",GOTO X174,IF(G174="maintenance, project",GOTO X174,""))) ->  | Y174: =IF(G174="Maintenance, garden",GOTO Y174,IF(G174="Table",GOTO Y174,IF(G174="maintenance, project",GOTO Y174,""))) -> 
A175: 2023-10-19 | B175: PM | C175: Hebert/Bollig | D175: Sophia | E175: 4 | F175: EV | G175: plant | H175: kale | I175: M14a/b | J175: =IF(G175="Harvest",GOTO J175,"") ->  | K175: =IF(G175="Harvest",GOTO K175,"") ->  | L175: =IF(G175="Fertilize",GOTO L175,"") ->  | N175: =IF(G175="fertilize",GOTO N175,"") ->  | O175: kale | P175: 2023-11-02 | Q175: =IF(G175="compost",GOTO Q175,"") ->  | R175: =IF(G175="compost",GOTO R175,"") ->  | S175: =IF(G175="compost",GOTO S175,"") ->  | T175: =IF(G175="compost",GOTO T175,"") ->  | U175: =IF(G175="compost",GOTO U175,"") ->  | V175: =IF(G175="compost",GOTO V175,"") ->  | W175: =IF(G175="compost",GOTO W175,"") ->  | X175: =IF(G175="maintenance, garden",GOTO X175,IF(G175="Table",GOTO X175,IF(G175="maintenance, project",GOTO X175,""))) ->  | Y175: =IF(G175="Maintenance, garden",GOTO Y175,IF(G175="Table",GOTO Y175,IF(G175="maintenance, project",GOTO Y175,""))) -> 
A176: 2023-10-19 | B176: PM | C176: Hebert/Bollig | D176: Jon | E176: 5 | F176: DC | G176: harvest | H176: onions, multiplying | I176: main | J176: 4 | K176: 2 | L176: =IF(G176="Fertilize",GOTO L176,"") ->  | N176: =IF(G176="fertilize",GOTO N176,"") ->  | Q176: =IF(G176="compost",GOTO Q176,"") ->  | R176: =IF(G176="compost",GOTO R176,"") ->  | S176: =IF(G176="compost",GOTO S176,"") ->  | T176: =IF(G176="compost",GOTO T176,"") ->  | U176: =IF(G176="compost",GOTO U176,"") ->  | V176: =IF(G176="compost",GOTO V176,"") ->  | W176: =IF(G176="compost",GOTO W176,"") ->  | X176: =IF(G176="maintenance, garden",GOTO X176,IF(G176="Table",GOTO X176,IF(G176="maintenance, project",GOTO X176,""))) ->  | Y176: =IF(G176="Maintenance, garden",GOTO Y176,IF(G176="Table",GOTO Y176,IF(G176="maintenance, project",GOTO Y176,""))) -> 
A177: 2023-10-24 | B177: am | C177: Argueta | D177: Jordan | E177: 1 | F177: EV/DL | G177: harvest | H177: potatoes, sweet | I177: O2 | J177: =86/2 -> 43 | K177: =9/2 -> 5 | L177: =IF(G177="Fertilize",GOTO L177,"") ->  | N177: =IF(G177="fertilize",GOTO N177,"") ->  | Q177: =IF(G177="compost",GOTO Q177,"") ->  | R177: =IF(G177="compost",GOTO R177,"") ->  | S177: =IF(G177="compost",GOTO S177,"") ->  | T177: =IF(G177="compost",GOTO T177,"") ->  | U177: =IF(G177="compost",GOTO U177,"") ->  | V177: =IF(G177="compost",GOTO V177,"") ->  | W177: =IF(G177="compost",GOTO W177,"") ->  | X177: =IF(G177="maintenance, garden",GOTO X177,IF(G177="Table",GOTO X177,IF(G177="maintenance, project",GOTO X177,""))) ->  | Y177: =IF(G177="Maintenance, garden",GOTO Y177,IF(G177="Table",GOTO Y177,IF(G177="maintenance, project",GOTO Y177,""))) -> 
A178: 2023-10-24 | B178: am | C178: Argueta | D178: Andrea | E178: 2 | F178: AM | G178: harvest | H178: potatoes, sweet | I178: O2 | J178: 43 | K178: 4 | L178: =IF(G178="Fertilize",GOTO L178,"") ->  | N178: =IF(G178="fertilize",GOTO N178,"") ->  | Q178: =IF(G178="compost",GOTO Q178,"") ->  | R178: =IF(G178="compost",GOTO R178,"") ->  | S178: =IF(G178="compost",GOTO S178,"") ->  | T178: =IF(G178="compost",GOTO T178,"") ->  | U178: =IF(G178="compost",GOTO U178,"") ->  | V178: =IF(G178="compost",GOTO V178,"") ->  | W178: =IF(G178="compost",GOTO W178,"") ->  | X178: =IF(G178="maintenance, garden",GOTO X178,IF(G178="Table",GOTO X178,IF(G178="maintenance, project",GOTO X178,""))) ->  | Y178: =IF(G178="Maintenance, garden",GOTO Y178,IF(G178="Table",GOTO Y178,IF(G178="maintenance, project",GOTO Y178,""))) -> 
A179: 2023-10-24 | B179: am | C179: Argueta | D179: Suri | E179: 3 | F179: DC | G179: harvest | H179: eggplant | I179: M10 | J179: 3 | K179: 6 | L179: =IF(G179="Fertilize",GOTO L179,"") ->  | N179: =IF(G179="fertilize",GOTO N179,"") ->  | Q179: =IF(G179="compost",GOTO Q179,"") ->  | R179: =IF(G179="compost",GOTO R179,"") ->  | S179: =IF(G179="compost",GOTO S179,"") ->  | T179: =IF(G179="compost",GOTO T179,"") ->  | U179: =IF(G179="compost",GOTO U179,"") ->  | V179: =IF(G179="compost",GOTO V179,"") ->  | W179: =IF(G179="compost",GOTO W179,"") ->  | X179: =IF(G179="maintenance, garden",GOTO X179,IF(G179="Table",GOTO X179,IF(G179="maintenance, project",GOTO X179,""))) ->  | Y179: =IF(G179="Maintenance, garden",GOTO Y179,IF(G179="Table",GOTO Y179,IF(G179="maintenance, project",GOTO Y179,""))) -> 
A180: 2023-10-24 | B180: am | C180: Argueta | D180: Suri | E180: 3 | F180: DC | G180: harvest | H180: garlic | I180: M1 | J180: 1 | K180: 0 | L180: =IF(G180="Fertilize",GOTO L180,"") ->  | N180: =IF(G180="fertilize",GOTO N180,"") ->  | Q180: =IF(G180="compost",GOTO Q180,"") ->  | R180: =IF(G180="compost",GOTO R180,"") ->  | S180: =IF(G180="compost",GOTO S180,"") ->  | T180: =IF(G180="compost",GOTO T180,"") ->  | U180: =IF(G180="compost",GOTO U180,"") ->  | V180: =IF(G180="compost",GOTO V180,"") ->  | W180: =IF(G180="compost",GOTO W180,"") ->  | X180: =IF(G180="maintenance, garden",GOTO X180,IF(G180="Table",GOTO X180,IF(G180="maintenance, project",GOTO X180,""))) ->  | Y180: =IF(G180="Maintenance, garden",GOTO Y180,IF(G180="Table",GOTO Y180,IF(G180="maintenance, project",GOTO Y180,""))) -> 
A181: 2023-10-24 | B181: am | C181: Argueta | D181: victoria | E181: 4 | F181: LV | G181: class recorder | J181: =IF(G181="Harvest",GOTO J181,"") ->  | K181: =IF(G181="Harvest",GOTO K181,"") ->  | L181: =IF(G181="Fertilize",GOTO L181,"") ->  | N181: =IF(G181="fertilize",GOTO N181,"") ->  | Q181: =IF(G181="compost",GOTO Q181,"") ->  | R181: =IF(G181="compost",GOTO R181,"") ->  | S181: =IF(G181="compost",GOTO S181,"") ->  | T181: =IF(G181="compost",GOTO T181,"") ->  | U181: =IF(G181="compost",GOTO U181,"") ->  | V181: =IF(G181="compost",GOTO V181,"") ->  | W181: =IF(G181="compost",GOTO W181,"") ->  | X181: recorded team activities | Y181: asked questions e.g. "what is your task"
A182: 2023-10-24 | B182: am | C182: Argueta | D182: ? | E182: 5 | F182: D/HO | G182: compost | H182: =IF(A182="","",IF(G182="maintenance, garden","",IF(G182="maintenance, project","",IF(G182="compost","",GOTO I182)))) ->  | I182: =IF(A182="","",IF(G182="compost","",GOTO I182)) ->  | J182: =IF(G182="Harvest",GOTO J182,"") ->  | K182: =IF(G182="Harvest",GOTO K182,"") ->  | L182: =IF(G182="Fertilize",GOTO L182,"") ->  | N182: =IF(G182="fertilize",GOTO N182,"") ->  | Q182: 83 | S182: 0.1 | T182: 110 | U182: 80 | V182: 70 | X182: =IF(G182="maintenance, garden",GOTO X182,IF(G182="Table",GOTO X182,IF(G182="maintenance, project",GOTO X182,""))) ->  | Y182: =IF(G182="Maintenance, garden",GOTO Y182,IF(G182="Table",GOTO Y182,IF(G182="maintenance, project",GOTO Y182,""))) -> 
A183: 2023-10-26 | B183: AM | C183: lobez | D183: Cameron | E183: 1 | F183: SH/MW | G183: harvest | H183: potatoes, sweet | I183: O2 | J183: 24 | K183: 2 | L183: =IF(G183="Fertilize",GOTO L183,"") ->  | N183: =IF(G183="fertilize",GOTO N183,"") ->  | Q183: =IF(G183="compost",GOTO Q183,"") ->  | R183: =IF(G183="compost",GOTO R183,"") ->  | S183: =IF(G183="compost",GOTO S183,"") ->  | T183: =IF(G183="compost",GOTO T183,"") ->  | U183: =IF(G183="compost",GOTO U183,"") ->  | V183: =IF(G183="compost",GOTO V183,"") ->  | W183: =IF(G183="compost",GOTO W183,"") ->  | X183: =IF(G183="maintenance, garden",GOTO X183,IF(G183="Table",GOTO X183,IF(G183="maintenance, project",GOTO X183,""))) ->  | Y183: =IF(G183="Maintenance, garden",GOTO Y183,IF(G183="Table",GOTO Y183,IF(G183="maintenance, project",GOTO Y183,""))) -> 
A184: 2023-10-26 | B184: AM | C184: lobez | D184: Addison | E184: 5 | F184: JT/DC | G184: harvest | H184: potatoes, sweet | I184: O2 | J184: 24 | K184: 2 | L184: =IF(G184="Fertilize",GOTO L184,"") ->  | N184: =IF(G184="fertilize",GOTO N184,"") ->  | Q184: =IF(G184="compost",GOTO Q184,"") ->  | R184: =IF(G184="compost",GOTO R184,"") ->  | S184: =IF(G184="compost",GOTO S184,"") ->  | T184: =IF(G184="compost",GOTO T184,"") ->  | U184: =IF(G184="compost",GOTO U184,"") ->  | V184: =IF(G184="compost",GOTO V184,"") ->  | W184: =IF(G184="compost",GOTO W184,"") ->  | X184: =IF(G184="maintenance, garden",GOTO X184,IF(G184="Table",GOTO X184,IF(G184="maintenance, project",GOTO X184,""))) ->  | Y184: =IF(G184="Maintenance, garden",GOTO Y184,IF(G184="Table",GOTO Y184,IF(G184="maintenance, project",GOTO Y184,""))) -> 
A185: 2023-10-26 | B185: AM | C185: lobez | D185: Jacob | E185: 3 | F185: SA/EV | G185: harvest | H185: potatoes, sweet | I185: O2 | J185: 24 | K185: 0 | L185: =IF(G185="Fertilize",GOTO L185,"") ->  | N185: =IF(G185="fertilize",GOTO N185,"") ->  | Q185: =IF(G185="compost",GOTO Q185,"") ->  | R185: =IF(G185="compost",GOTO R185,"") ->  | S185: =IF(G185="compost",GOTO S185,"") ->  | T185: =IF(G185="compost",GOTO T185,"") ->  | U185: =IF(G185="compost",GOTO U185,"") ->  | V185: =IF(G185="compost",GOTO V185,"") ->  | W185: =IF(G185="compost",GOTO W185,"") ->  | X185: =IF(G185="maintenance, garden",GOTO X185,IF(G185="Table",GOTO X185,IF(G185="maintenance, project",GOTO X185,""))) ->  | Y185: =IF(G185="Maintenance, garden",GOTO Y185,IF(G185="Table",GOTO Y185,IF(G185="maintenance, project",GOTO Y185,""))) -> 
A186: 2023-10-26 | B186: AM | C186: Lopez | D186: Emily | E186: 4 | F186: PB | G186: harvest | H186: eggplant | I186: M10 | J186: 2 | K186: 2 | L186: =IF(G186="Fertilize",GOTO L186,"") ->  | N186: =IF(G186="fertilize",GOTO N186,"") ->  | Q186: =IF(G186="compost",GOTO Q186,"") ->  | R186: =IF(G186="compost",GOTO R186,"") ->  | S186: =IF(G186="compost",GOTO S186,"") ->  | T186: =IF(G186="compost",GOTO T186,"") ->  | U186: =IF(G186="compost",GOTO U186,"") ->  | V186: =IF(G186="compost",GOTO V186,"") ->  | W186: =IF(G186="compost",GOTO W186,"") ->  | X186: =IF(G186="maintenance, garden",GOTO X186,IF(G186="Table",GOTO X186,IF(G186="maintenance, project",GOTO X186,""))) ->  | Y186: =IF(G186="Maintenance, garden",GOTO Y186,IF(G186="Table",GOTO Y186,IF(G186="maintenance, project",GOTO Y186,""))) -> 
A187: 2023-10-26 | B187: AM | C187: Lopez | D187: Emima | E187: 6 | F187: SK | G187: compost | H187: =IF(A187="","",IF(G187="maintenance, garden","",IF(G187="maintenance, project","",IF(G187="compost","",GOTO I187)))) ->  | I187: =IF(A187="","",IF(G187="compost","",GOTO I187)) ->  | J187: =IF(G187="Harvest",GOTO J187,"") ->  | K187: =IF(G187="Harvest",GOTO K187,"") ->  | L187: =IF(G187="Fertilize",GOTO L187,"") ->  | N187: =IF(G187="fertilize",GOTO N187,"") ->  | Q187: 82 | S187: 2.2 | T187: 111 | U187: 100 | V187: 79 | W187: clear okra, cut up for compost | X187: =IF(G187="maintenance, garden",GOTO X187,IF(G187="Table",GOTO X187,IF(G187="maintenance, project",GOTO X187,""))) ->  | Y187: =IF(G187="Maintenance, garden",GOTO Y187,IF(G187="Table",GOTO Y187,IF(G187="maintenance, project",GOTO Y187,""))) -> 
A188: 2023-10-26 | B188: AM | C188: Lopez | E188: 2 | F188: D/JB | G188: harvest | H188: onions, multiplying | I188: M6 | J188: 4 | K188: 7 | L188: =IF(G188="Fertilize",GOTO L188,"") ->  | N188: =IF(G188="fertilize",GOTO N188,"") ->  | Q188: =IF(G188="compost",GOTO Q188,"") ->  | R188: =IF(G188="compost",GOTO R188,"") ->  | S188: =IF(G188="compost",GOTO S188,"") ->  | T188: =IF(G188="compost",GOTO T188,"") ->  | U188: =IF(G188="compost",GOTO U188,"") ->  | V188: =IF(G188="compost",GOTO V188,"") ->  | W188: =IF(G188="compost",GOTO W188,"") ->  | X188: =IF(G188="maintenance, garden",GOTO X188,IF(G188="Table",GOTO X188,IF(G188="maintenance, project",GOTO X188,""))) ->  | Y188: =IF(G188="Maintenance, garden",GOTO Y188,IF(G188="Table",GOTO Y188,IF(G188="maintenance, project",GOTO Y188,""))) -> 
A189: 2023-10-26 | B189: PM | C189: Lopez | E189: 2023-01-06 | J189: =IF(G189="Harvest",GOTO J189,"") ->  | K189: =IF(G189="Harvest",GOTO K189,"") ->  | L189: =IF(G189="Fertilize",GOTO L189,"") ->  | N189: =IF(G189="fertilize",GOTO N189,"") ->  | O189: Rained out, lesson on soils | Q189: =IF(G189="compost",GOTO Q189,"") ->  | R189: =IF(G189="compost",GOTO R189,"") ->  | S189: =IF(G189="compost",GOTO S189,"") ->  | T189: =IF(G189="compost",GOTO T189,"") ->  | U189: =IF(G189="compost",GOTO U189,"") ->  | V189: =IF(G189="compost",GOTO V189,"") ->  | W189: =IF(G189="compost",GOTO W189,"") ->  | X189: =IF(G189="maintenance, garden",GOTO X189,IF(G189="Table",GOTO X189,IF(G189="maintenance, project",GOTO X189,""))) ->  | Y189: =IF(G189="Maintenance, garden",GOTO Y189,IF(G189="Table",GOTO Y189,IF(G189="maintenance, project",GOTO Y189,""))) -> 
A190: 2023-10-28 | C190: volunteers | G190: harvest | H190: potatoes, sweet | I190: O2 | J190: 15 | K190: 7 | L190: =IF(G190="Fertilize",GOTO L190,"") ->  | N190: =IF(G190="fertilize",GOTO N190,"") ->  | O190: =IF(G190="Plant",H190,"") ->  | Q190: =IF(G190="compost",GOTO Q190,"") ->  | R190: =IF(G190="compost",GOTO R190,"") ->  | S190: =IF(G190="compost",GOTO S190,"") ->  | T190: =IF(G190="compost",GOTO T190,"") ->  | U190: =IF(G190="compost",GOTO U190,"") ->  | V190: =IF(G190="compost",GOTO V190,"") ->  | W190: =IF(G190="compost",GOTO W190,"") ->  | X190: =IF(G190="maintenance, garden",GOTO X190,IF(G190="Table",GOTO X190,IF(G190="maintenance, project",GOTO X190,""))) ->  | Y190: =IF(G190="Maintenance, garden",GOTO Y190,IF(G190="Table",GOTO Y190,IF(G190="maintenance, project",GOTO Y190,""))) -> 
A191: 2023-10-28 | C191: volunteers | G191: maintenance, garden | H191: potatoes, sweet | I191: O2 | J191: =IF(G191="Harvest",GOTO J191,"") ->  | K191: =IF(G191="Harvest",GOTO K191,"") ->  | L191: =IF(G191="Fertilize",GOTO L191,"") ->  | N191: =IF(G191="fertilize",GOTO N191,"") ->  | Q191: =IF(G191="compost",GOTO Q191,"") ->  | R191: =IF(G191="compost",GOTO R191,"") ->  | S191: =IF(G191="compost",GOTO S191,"") ->  | T191: =IF(G191="compost",GOTO T191,"") ->  | U191: =IF(G191="compost",GOTO U191,"") ->  | V191: =IF(G191="compost",GOTO V191,"") ->  | W191: =IF(G191="compost",GOTO W191,"") ->  | X191: remove vines from fence | Y191: use for compost
A192: 2023-10-31 | B192: PM | C192: Argueta /Mendez | F192: EV/DL | G192: harvest | H192: potatoes, sweet | I192: A2,3,4 | J192: 86 | K192: 9 | L192: =IF(G192="Fertilize",GOTO L192,"") ->  | N192: =IF(G192="fertilize",GOTO N192,"") ->  | Q192: =IF(G192="compost",GOTO Q192,"") ->  | R192: =IF(G192="compost",GOTO R192,"") ->  | S192: =IF(G192="compost",GOTO S192,"") ->  | T192: =IF(G192="compost",GOTO T192,"") ->  | U192: =IF(G192="compost",GOTO U192,"") ->  | V192: =IF(G192="compost",GOTO V192,"") ->  | W192: =IF(G192="compost",GOTO W192,"") ->  | X192: =IF(G192="maintenance, garden",GOTO X192,IF(G192="Table",GOTO X192,IF(G192="maintenance, project",GOTO X192,""))) ->  | Y192: =IF(G192="Maintenance, garden",GOTO Y192,IF(G192="Table",GOTO Y192,IF(G192="maintenance, project",GOTO Y192,""))) -> 
A193: 2023-10-31 | B193: PM | C193: Argueta /Mendez | D193: volunteers | G193: harvest | H193: eggplant | I193: M10 | J193: 1 | K193: 2 | L193: =IF(G193="Fertilize",GOTO L193,"") ->  | N193: =IF(G193="fertilize",GOTO N193,"") ->  | Q193: =IF(G193="compost",GOTO Q193,"") ->  | R193: =IF(G193="compost",GOTO R193,"") ->  | S193: =IF(G193="compost",GOTO S193,"") ->  | T193: =IF(G193="compost",GOTO T193,"") ->  | U193: =IF(G193="compost",GOTO U193,"") ->  | V193: =IF(G193="compost",GOTO V193,"") ->  | W193: =IF(G193="compost",GOTO W193,"") ->  | X193: =IF(G193="maintenance, garden",GOTO X193,IF(G193="Table",GOTO X193,IF(G193="maintenance, project",GOTO X193,""))) ->  | Y193: =IF(G193="Maintenance, garden",GOTO Y193,IF(G193="Table",GOTO Y193,IF(G193="maintenance, project",GOTO Y193,""))) -> 
A194: 2023-10-31 | B194: PM | C194: Argueta /Mendez | D194: volunteers | G194: harvest | H194: turnips, hakurei | I194: m13,15 | J194: 2 | K194: 11 | L194: =IF(G194="Fertilize",GOTO L194,"") ->  | N194: =IF(G194="fertilize",GOTO N194,"") ->  | Q194: =IF(G194="compost",GOTO Q194,"") ->  | R194: =IF(G194="compost",GOTO R194,"") ->  | S194: =IF(G194="compost",GOTO S194,"") ->  | T194: =IF(G194="compost",GOTO T194,"") ->  | U194: =IF(G194="compost",GOTO U194,"") ->  | V194: =IF(G194="compost",GOTO V194,"") ->  | W194: =IF(G194="compost",GOTO W194,"") ->  | X194: =IF(G194="maintenance, garden",GOTO X194,IF(G194="Table",GOTO X194,IF(G194="maintenance, project",GOTO X194,""))) ->  | Y194: =IF(G194="Maintenance, garden",GOTO Y194,IF(G194="Table",GOTO Y194,IF(G194="maintenance, project",GOTO Y194,""))) -> 
A195: 2023-10-31 | B195: PM | C195: Argueta /Mendez | D195: volunteers | G195: harvest | H195: onions, multiplying | I195: main | J195: 3 | K195: 9 | L195: =IF(G195="Fertilize",GOTO L195,"") ->  | N195: =IF(G195="fertilize",GOTO N195,"") ->  | Q195: =IF(G195="compost",GOTO Q195,"") ->  | R195: =IF(G195="compost",GOTO R195,"") ->  | S195: =IF(G195="compost",GOTO S195,"") ->  | T195: =IF(G195="compost",GOTO T195,"") ->  | U195: =IF(G195="compost",GOTO U195,"") ->  | V195: =IF(G195="compost",GOTO V195,"") ->  | W195: =IF(G195="compost",GOTO W195,"") ->  | X195: =IF(G195="maintenance, garden",GOTO X195,IF(G195="Table",GOTO X195,IF(G195="maintenance, project",GOTO X195,""))) ->  | Y195: =IF(G195="Maintenance, garden",GOTO Y195,IF(G195="Table",GOTO Y195,IF(G195="maintenance, project",GOTO Y195,""))) -> 
A196: 2023-11-02 | B196: AM | C196: Hebert/Bollig | D196: Kayle | E196: 4 | F196: SH/PM | G196: Harvest | H196: potatoes, sweet | I196: A5,6,7 | J196: =83/3 -> 28 | K196: 0 | L196: =IF(G196="Fertilize",GOTO L196,"") ->  | N196: =IF(G196="fertilize",GOTO N196,"") ->  | Q196: =IF(G196="compost",GOTO Q196,"") ->  | R196: =IF(G196="compost",GOTO R196,"") ->  | S196: =IF(G196="compost",GOTO S196,"") ->  | T196: =IF(G196="compost",GOTO T196,"") ->  | U196: =IF(G196="compost",GOTO U196,"") ->  | V196: =IF(G196="compost",GOTO V196,"") ->  | W196: =IF(G196="compost",GOTO W196,"") ->  | X196: =IF(G196="maintenance, garden",GOTO X196,IF(G196="Table",GOTO X196,IF(G196="maintenance, project",GOTO X196,""))) ->  | Y196: =IF(G196="Maintenance, garden",GOTO Y196,IF(G196="Table",GOTO Y196,IF(G196="maintenance, project",GOTO Y196,""))) -> 
A197: 2023-11-02 | B197: AM | C197: Hebert/Bollig | D197: Jovan | E197: 3 | F197: SA/AM | G197: Harvest | H197: potatoes, sweet | I197: A5,6,7 | J197: 28 | K197: 0 | L197: =IF(G197="Fertilize",GOTO L197,"") ->  | N197: =IF(G197="fertilize",GOTO N197,"") ->  | Q197: =IF(G197="compost",GOTO Q197,"") ->  | R197: =IF(G197="compost",GOTO R197,"") ->  | S197: =IF(G197="compost",GOTO S197,"") ->  | T197: =IF(G197="compost",GOTO T197,"") ->  | U197: =IF(G197="compost",GOTO U197,"") ->  | V197: =IF(G197="compost",GOTO V197,"") ->  | W197: =IF(G197="compost",GOTO W197,"") ->  | X197: =IF(G197="maintenance, garden",GOTO X197,IF(G197="Table",GOTO X197,IF(G197="maintenance, project",GOTO X197,""))) ->  | Y197: =IF(G197="Maintenance, garden",GOTO Y197,IF(G197="Table",GOTO Y197,IF(G197="maintenance, project",GOTO Y197,""))) -> 
A198: 2023-11-02 | B198: AM | C198: Hebert/Bollig | E198: 1 | F198: SK/DL | G198: Harvest | H198: potatoes, sweet | I198: A5,6,7 | J198: 28 | K198: 0 | L198: =IF(G198="Fertilize",GOTO L198,"") ->  | M198: =IF(G198="Fertilize",A198+14,"") ->  | N198: =IF(G198="fertilize",GOTO N198,"") ->  | Q198: =IF(G198="compost",GOTO Q198,"") ->  | R198: =IF(G198="compost",GOTO R198,"") ->  | S198: =IF(G198="compost",GOTO S198,"") ->  | T198: =IF(G198="compost",GOTO T198,"") ->  | U198: =IF(G198="compost",GOTO U198,"") ->  | V198: =IF(G198="compost",GOTO V198,"") ->  | W198: =IF(G198="compost",GOTO W198,"") ->  | X198: =IF(G198="maintenance, garden",GOTO X198,IF(G198="Table",GOTO X198,IF(G198="maintenance, project",GOTO X198,""))) ->  | Y198: =IF(G198="Maintenance, garden",GOTO Y198,IF(G198="Table",GOTO Y198,IF(G198="maintenance, project",GOTO Y198,""))) -> 
A199: 2023-11-02 | B199: AM | C199: Hebert/Bollig | D199: Tanner | E199: 5 | F199: PB | G199: Plant / Table | H199: sorrel | I199: Herb beds | J199: =IF(G199="Harvest",GOTO J199,"") ->  | K199: =IF(G199="Harvest",GOTO K199,"") ->  | L199: =IF(G199="Fertilize",GOTO L199,"") ->  | N199: =IF(G199="fertilize",GOTO N199,"") ->  | O199: sorrel | P199: =IF(G199="Plant", A199+14,"") ->  | Q199: =IF(G199="compost",GOTO Q199,"") ->  | R199: =IF(G199="compost",GOTO R199,"") ->  | S199: =IF(G199="compost",GOTO S199,"") ->  | T199: =IF(G199="compost",GOTO T199,"") ->  | U199: =IF(G199="compost",GOTO U199,"") ->  | V199: =IF(G199="compost",GOTO V199,"") ->  | W199: =IF(G199="compost",GOTO W199,"") ->  | X199: transplant extra borage into individual pots | Y199: =IF(G199="Maintenance, garden",GOTO Y199,IF(G199="Table",GOTO Y199,IF(G199="maintenance, project",GOTO Y199,""))) -> 
A200: 2023-11-02 | B200: AM | C200: Hebert/Bollig | D200: Bella | E200: 2 | F200: Diana | G200: plant | H200: Kohlrabi | I200: M9,11 holes | J200: =IF(G200="Harvest",GOTO J200,"") ->  | K200: =IF(G200="Harvest",GOTO K200,"") ->  | L200: =IF(G200="Fertilize",GOTO L200,"") ->  | N200: =IF(G200="fertilize",GOTO N200,"") ->  | O200: =IF(G200="Plant",H200,"") -> Kohlrabi | P200: 2023-11-16 | Q200: =IF(G200="compost",GOTO Q200,"") ->  | R200: =IF(G200="compost",GOTO R200,"") ->  | S200: =IF(G200="compost",GOTO S200,"") ->  | T200: =IF(G200="compost",GOTO T200,"") ->  | U200: =IF(G200="compost",GOTO U200,"") ->  | V200: =IF(G200="compost",GOTO V200,"") ->  | W200: =IF(G200="compost",GOTO W200,"") ->  | X200: =IF(G200="maintenance, garden",GOTO X200,IF(G200="Table",GOTO X200,IF(G200="maintenance, project",GOTO X200,""))) ->  | Y200: =IF(G200="Maintenance, garden",GOTO Y200,IF(G200="Table",GOTO Y200,IF(G200="maintenance, project",GOTO Y200,""))) -> 
... 1017 more rows

Sheet Experiments
A1: =NOW() -> 2024-03-09T20:56:33.950
A3: Task | B3: (Multiple Items)
A6: date | B6: location | C6: notes3 | D6: action
A7: 2023-08-17 | B7: M5a/b | C7: added compost as mulch | D7: removed old tomato plants and added compost
C8: added compost as mulch Total
B9: M14a/b | C9: cut plants off, no digging (no dig garden) | D9: removed some squash plants and added compost as mulch
C10: cut plants off, no digging (no dig garden) Total
A11: 2023-08-24 | B11: shed | D11: replaced shed clock
C12: Total
A13: 2023-08-29 | B13: shed | C13: getting setup for this years" program | D13: cleaned up shed and removed excess materials
C14: getting setup for this years" program Total
A15: 2023-09-07 | B15: Main, Annex | C15: visit stations to get acquainted | D15: started classes with orientation
C16: visit stations to get acquainted Total
A17: 2023-09-12 | B17: arbor trees along athletic field | C17: cut out and replaced a section of pipe | D17: repaired leak in waslewski maple tree irrigation
C18: cut out and replaced a section of pipe Total
B19: around compost area | C19: raised pavers with sand | D19: leveled pavers around compost bins
C20: raised pavers with sand Total
A21: 2023-09-14 | B21: Main, Annex | C21: visit stations to get acquainted | D21: started classes with orientation
C22: visit stations to get acquainted Total
A23: 2023-09-26 | B23: main | D23: added compost to beds for planting Thursday
C24: Total
A25: 2023-10-24 | C25: asked questions e.g. "what is your task" | D25: recorded team activities
C26: asked questions e.g. "what is your task" Total
A27: 2023-10-28 | B27: O2 | C27: use for compost | D27: remove vines from fence
C28: use for compost Total
A29: 2023-11-02 | B29: Herb beds | D29: transplant extra borage into individual pots
C30: Total
B31: M1 | D31: mulch bed
C32: Total
A33: 2023-11-04 | B33: Annex | C33: cleared out roots and weeds | D33: Repaired beds
C34: cleared out roots and weeds Total
A35: 2023-11-09 | B35: M11 | C35: cut up pieces and bag for mulching | D35: cut eggplant off and remove
C36: cut up pieces and bag for mulching Total
B37: m2 | C37: peel skins let innards further dry | D37: remove luffa seeds
C38: peel skins let innards further dry Total
A39: 2023-11-11 | B39: M6 | C39: transplanted beets, and spinach | D39: cut luffa, left hanging to dry,
C40: transplanted beets, and spinach Total
A41: 2023-11-14 | B41: M1
C42: Total
A43: 2023-12-02 | D43: weed and hang luffa to dry
C44: Total
A45: 2023-12-05 | B45: m2 | D45: harvest luffa and remove vines
C46: Total
A47: 2023-12-07 | B47: m2 | C47: remove vines | D47: gather luffa
C48: remove vines Total
A49: 2023-12-14 | B49: compost bins | C49: making small pieces for rapid composting | D49: smash pumpkins for compost
C50: making small pieces for rapid composting Total
B51: M18, shed | C51: at source and post cutting into take home pieces | D51: clean up after sugar cane activity
C52: at source and post cutting into take home pieces Total
A53: 2024-01-04 | B53: table | C53: clean dry luffa, dispose of seed | D53: gather sorrel
C54: clean dry luffa, dispose of seed Total
A55: Grand Total

Sheet Garden maintenance
A1: =NOW() -> 2024-03-09T20:56:33.950 | B1: Garden Maintenance
A3: Task | B3: (Multiple Items)
A6: date | B6: location | C6: action | D6: notes3
A7: 2023-08-01 | B7: outside East parking lot | C7: reconnected electric lines | D7: vandalism lines - lines were pulled apart
C8: reconnected electric lines Total
A9: 8/1/2023 Total
A10: 2023-08-17 | B10: M5a/b | C10: removed old tomato plants and added compost | D10: added compost as mulch
C11: removed old tomato plants and added compost Total
B12: M14a/b | C12: removed some squash plants and added compost as mulch | D12: cut plants off, no digging (no dig garden)
C13: removed some squash plants and added compost as mulch Total
A14: 8/17/2023 Total
A15: 2023-08-24 | B15: shed | C15: replaced shed clock
C16: replaced shed clock Total
A17: 8/24/2023 Total
A18: 2023-08-29 | B18: shed | C18: cleaned up shed and removed excess materials | D18: getting setup for this years" program
C19: cleaned up shed and removed excess materials Total
A20: 8/29/2023 Total
A21: 2023-09-07 | B21: Main, Annex | C21: started classes with orientation | D21: visit stations to get acquainted
C22: started classes with orientation Total
A23: 9/7/2023 Total
A24: 2023-09-12 | B24: arbor trees along athletic field | C24: repaired leak in waslewski maple tree irrigation | D24: cut out and replaced a section of pipe
C25: repaired leak in waslewski maple tree irrigation Total
B26: around compost area | C26: leveled pavers around compost bins | D26: raised pavers with sand
C27: leveled pavers around compost bins Total
A28: 9/12/2023 Total
A29: 2023-09-14 | B29: Main, Annex | C29: started classes with orientation | D29: visit stations to get acquainted
C30: started classes with orientation Total
A31: 9/14/2023 Total
A32: 2023-09-26 | B32: main | C32: added compost to beds for planting Thursday
C33: added compost to beds for planting Thursday Total
A34: 9/26/2023 Total
A35: 2023-10-24 | C35: recorded team activities | D35: asked questions e.g. "what is your task"
C36: recorded team activities Total
A37: 10/24/2023 Total
A38: 2023-10-28 | B38: O2 | C38: remove vines from fence | D38: use for compost
C39: remove vines from fence Total
A40: 10/28/2023 Total
A41: 2023-11-02 | B41: Herb beds | C41: transplant extra borage into individual pots
C42: transplant extra borage into individual pots Total
B43: M1 | C43: mulch bed
C44: mulch bed Total
A45: 11/2/2023 Total
A46: 2023-11-04 | B46: Annex | C46: Repaired beds | D46: cleared out roots and weeds
C47: Repaired beds Total
A48: 11/4/2023 Total
A49: 2023-11-09 | B49: M11 | C49: cut eggplant off and remove | D49: cut up pieces and bag for mulching
C50: cut eggplant off and remove Total
B51: m2 | C51: remove luffa seeds | D51: peel skins let innards further dry
C52: remove luffa seeds Total
A53: 11/9/2023 Total
A54: 2023-11-11 | B54: M6 | C54: cut luffa, left hanging to dry, | D54: transplanted beets, and spinach
C55: cut luffa, left hanging to dry, Total
A56: 11/11/2023 Total
A57: 2023-12-02 | C57: weed and hang luffa to dry
C58: weed and hang luffa to dry Total
A59: 12/2/2023 Total
A60: 2023-12-05 | B60: m2 | C60: harvest luffa and remove vines
C61: harvest luffa and remove vines Total
A62: 12/5/2023 Total
A63: 2023-12-07 | B63: m2 | C63: gather luffa | D63: remove vines
C64: gather luffa Total
A65: 12/7/2023 Total
A66: 2023-12-14 | B66: compost bins | C66: smash pumpkins for compost | D66: making small pieces for rapid composting
C67: smash pumpkins for compost Total
B68: M18, shed | C68: clean up after sugar cane activity | D68: at source and post cutting into take home pieces
C69: clean up after sugar cane activity Total
A70: 12/14/2023 Total
A71: 2024-01-04 | B71: table | C71: gather sorrel | D71: clean dry luffa, dispose of seed
C72: gather sorrel Total
A73: 1/4/2024 Total
A74: Grand Total

Sheet Project Maintenance
A1: =NOW() -> 2024-03-09T20:56:33.950 | B1: Project Activites Report (upkeep / maintenance / unplanned and new projects
A3: Task | B3: maintenance, project
A6: date | B6: location | C6: action | D6: notes3
A7: 2023-08-03 | B7: main shed area | C7: fill herb bed with soil, add humates | D7: still need to be topped off with compost
A8: 2023-08-05 | B8: Main, Annex | C8: treated benches, wood work areas with wood preservative | D8: Thompson's - benches, Echo - work areas
A9: 2023-08-08 | B9: arbor trees along athletic field | C9: install landscape timbers to protect trees | D9: 4 X 4 timbers + mulch
A10: 2023-08-10 | B10: arbor trees along athletic field | C10: install landscape timbers to protect trees | D10: 4 X 4 timbers + mulch
A11: 2023-08-12 | B11: arbor trees along athletic field | C11: install landscape timbers to protect trees | D11: finished 6 trees
A12: 2023-08-15 | B12: arbor trees along athletic field | C12: installed mushroom water sprinklers on all | D12: mulched all trees
A13: 2023-08-22 | B13: compost bins | C13: replacing broken boards and adding new wire | D13: dismantle and rebuild
A14: 2023-08-24 | B14: compost bins | C14: replacing broken boards and adding new wire | D14: dismantle and rebuild
A15: 2023-08-29 | B15: arbor trees along athletic field | C15: completed securing timbers in place around trees | D15: One tree did not have holes to secure landscaping
B16: 3 tier bed | C16: Installed new herb bed partially disassembling single bed 3 tier herb | D16: removed waste and cleaned up area
B17: compost bins | C17: project upgrade compost bins completed | D17: final touchup completed
A18: 2023-08-31 | B18: 3 tier bed | C18: removed old bed | D18: set pavers in footprint of old bed
A19: 2023-09-02 | B19: arbor trees along athletic field | C19: finished anchoring landscape timbers | D19: also around the front of compost bins
A20: 2023-09-26 | B20: orchard shed | C20: finished replacing middle door to shed with blank plywood | D20: fixed vandalized door
A21: 2023-12-12 | B21: Annex | C21: Installed Tulip bed | D21: provided and installed 3'X16'X10" bed for lower grade tulip bed
A22: 2023-12-14 | B22: Annex | C22: filled bed with soil | D22: put down cardboard, soil, and humates to establish bed
A23: 2023-12-16 | B23: orchard | C23: repair shed@swift tower | D23: repaired split in back and side of shed
A24: 2024-01-06 | B24: Annex | C24: tulip bed partitions | D24: divide bed into 6 sections
A25: Grand Total

Sheet weed control
A1: =NOW() -> 2024-03-09T20:56:33.950 | B1: Weed Control
A3: Task | B3: (Multiple Items)
A6: date | B6: location | C6: notes3 | D6: action
A7: 2023-08-17 | B7: M5a/b | C7: added compost as mulch | D7: removed old tomato plants and added compost
C8: added compost as mulch Total
B9: M14a/b | C9: cut plants off, no digging (no dig garden) | D9: removed some squash plants and added compost as mulch
C10: cut plants off, no digging (no dig garden) Total
A11: 8/17/2023 Total
A12: 2023-08-24 | B12: shed | D12: replaced shed clock
C13: Total
A14: 8/24/2023 Total
A15: 2023-08-29 | B15: shed | C15: getting setup for this years" program | D15: cleaned up shed and removed excess materials
C16: getting setup for this years" program Total
A17: 8/29/2023 Total
A18: 2023-09-07 | B18: Main, Annex | C18: visit stations to get acquainted | D18: started classes with orientation
C19: visit stations to get acquainted Total
A20: 9/7/2023 Total
A21: 2023-09-12 | B21: arbor trees along athletic field | C21: cut out and replaced a section of pipe | D21: repaired leak in waslewski maple tree irrigation
C22: cut out and replaced a section of pipe Total
B23: around compost area | C23: raised pavers with sand | D23: leveled pavers around compost bins
C24: raised pavers with sand Total
A25: 9/12/2023 Total
A26: 2023-09-14 | B26: Main, Annex | C26: visit stations to get acquainted | D26: started classes with orientation
C27: visit stations to get acquainted Total
A28: 9/14/2023 Total
A29: 2023-09-21
C30: Total
A31: 9/21/2023 Total
A32: 2023-09-26 | B32: main | D32: added compost to beds for planting Thursday
C33: Total
A34: 9/26/2023 Total
A35: 2023-10-10
C36: Total
A37: 10/10/2023 Total
A38: 2023-10-12
C39: Total
A40: 10/12/2023 Total
A41: 2023-10-17
C42: Total
A43: 10/17/2023 Total
A44: 2023-10-24 | C44: asked questions e.g. "what is your task" | D44: recorded team activities
C45: asked questions e.g. "what is your task" Total
A46: 10/24/2023 Total
A47: 2023-10-26
C48: Total
A49: 10/26/2023 Total
A50: 2023-10-28 | B50: O2 | C50: use for compost | D50: remove vines from fence
C51: use for compost Total
A52: 10/28/2023 Total
A53: 2023-11-02 | B53: Herb beds | D53: transplant extra borage into individual pots
C54: Total
B55: M1 | D55: mulch bed
C56: Total
A57: 11/2/2023 Total
A58: 2023-11-04 | B58: Annex | C58: cleared out roots and weeds | D58: Repaired beds
C59: cleared out roots and weeds Total
A60: 11/4/2023 Total
A61: 2023-11-07
C62: Total
A63: 11/7/2023 Total
A64: 2023-11-09 | B64: M11 | C64: cut up pieces and bag for mulching | D64: cut eggplant off and remove
C65: cut up pieces and bag for mulching Total
B66: m2 | C66: peel skins let innards further dry | D66: remove luffa seeds
C67: peel skins let innards further dry Total
A68: 11/9/2023 Total
A69: 2023-11-11 | B69: M6 | C69: transplanted beets, and spinach | D69: cut luffa, left hanging to dry,
C70: transplanted beets, and spinach Total
A71: 11/11/2023 Total
A72: 2023-11-14 | B72: M1
C73: Total
A74: 11/14/2023 Total
A75: 2023-12-02 | D75: weed and hang luffa to dry
C76: Total
A77: 12/2/2023 Total
A78: 2023-12-05 | B78: m2 | D78: harvest luffa and remove vines
C79: Total
A80: 12/5/2023 Total
A81: 2023-12-07 | B81: m2 | C81: remove vines | D81: gather luffa
C82: remove vines Total
A83: 12/7/2023 Total
A84: 2023-12-14 | B84: compost bins | C84: making small pieces for rapid composting | D84: smash pumpkins for compost
C85: making small pieces for rapid composting Total
B86: M18, shed | C86: at source and post cutting into take home pieces | D86: clean up after sugar cane activity
C87: at source and post cutting into take home pieces Total
A88: 12/14/2023 Total
A89: 2024-01-04 | B89: table | C89: clean dry luffa, dispose of seed | D89: gather sorrel
C90: clean dry luffa, dispose of seed Total
A91: 1/4/2024 Total
A92: Grand Total

Sheet Planting data
A1: =NOW() -> 2024-03-09T20:56:33.950 | B1: Plant
A3: Task | B3: (Multiple Items)
A6: date | B6: Produce | C6: location | D6: apply fert
A7: 2023-08-17 | B7: carrots, danver | C7: M13a | D7: 2023-08-31
B8: turnips, hakurei | C8: M13b | D8: 2023-08-31
A9: 8/17/2023 Total
A10: 2023-08-19 | B10: herbs | C10: 3 tier bed | D10: 2023-09-02
A11: 8/19/2023 Total
A12: 2023-09-21 | B12: carrots, danver | C12: M13a | D12: 2023-10-05
B13: lettuce | C13: M7b | D13: 2023-10-05
B14: onions, multiplying | C14: M5,9 | D14: 2023-10-05
B15: peas, sugar snap | C15: M7a,b | D15: 2023-10-05
B16: turnips, hakurei | C16: M13b | D16: 2023-10-05
B17: tomatoes,thyme, oregano | C17: Herb beds | D17: 2023-10-05
A18: 9/21/2023 Total
A19: 2023-09-28 | B19: beets | C19: M6b | D19: 2023-10-12
B20: collards | C20: M14b | D20: 2023-10-12
B21: onions, multiplying | C21: M6 holes | D21: 2023-10-12
C22: M15 holes | D22: 2023-10-12
B23: herbs | C23: Herb beds | D23: 2023-10-12
B24: carrots, Tender Sweet | C24: M15b | D24: 2023-10-12
A25: 9/28/2023 Total
A26: 2023-10-10
A27: 10/10/2023 Total
A28: 2023-10-12
A29: 10/12/2023 Total
A30: 2023-10-17
A31: 10/17/2023 Total
A32: 2023-10-19 | B32: kale | C32: M14a/b | D32: 2023-11-02
B33: spinach | C33: O16 | D33: 2023-11-02
B34: Radish, French Breakfast | C34: m11a | D34: 2023-11-02
B35: turnips, hakurei | C35: M13 | D35: 2023-11-02
C36: m11b | D36: 2023-11-02
A37: 10/19/2023 Total
A38: 2023-10-24
A39: 10/24/2023 Total
A40: 2023-10-26
A41: 10/26/2023 Total
A42: 2023-11-02 | B42: broccoli | C42: M5 | D42: 2023-11-16
B43: Kohlrabi | C43: M9,11 holes | D43: 2023-11-16
B44: sorrel | C44: Herb beds
B45: cabbage, Savoy | C45: M16b | D45: 2023-11-16
A46: 11/2/2023 Total
A47: 2023-11-07
A48: 11/7/2023 Total
A49: 2023-11-09 | B49: lettuce | C49: M11 holes | D49: 2023-11-23
B50: Radish, French Breakfast | C50: A2,3,4 | D50: 2023-11-23
A51: 11/9/2023 Total
A52: Grand Total

Sheet Fertilizing Data
A1: =NOW() -> 2024-03-09T20:56:33.950 | B1: Fertilize
A3: Task | B3: (Multiple Items)
A6: date | B6: fert used | C6: location | D6: Next Application
A7: 2023-08-17 | C7: M5a/b
C8: M14a/b
B9: Total
A10: 8/17/2023 Total
A11: 2023-08-24 | C11: shed
B12: Total
A13: 8/24/2023 Total
A14: 2023-08-29 | C14: shed
B15: Total
A16: 8/29/2023 Total
A17: 2023-09-07 | C17: Main, Annex
B18: Total
A19: 9/7/2023 Total
A20: 2023-09-12 | C20: arbor trees along athletic field
C21: around compost area
B22: Total
A23: 9/12/2023 Total
A24: 2023-09-14 | C24: Main, Annex
B25: Total
A26: 9/14/2023 Total
A27: 2023-09-26 | C27: main
B28: Total
B29: max bloom | C29: M9a,b | D29: ??
B30: max bloom Total
A31: 9/26/2023 Total
A32: 2023-10-10
B33: Total
A34: 10/10/2023 Total
A35: 2023-10-12
B36: Total
A37: 10/12/2023 Total
A38: 2023-10-17
B39: Total
A40: 10/17/2023 Total
A41: 2023-10-24
B42: Total
A43: 10/24/2023 Total
A44: 2023-10-26
B45: Total
A46: 10/26/2023 Total
A47: 2023-10-28 | C47: O2
B48: Total
A49: 10/28/2023 Total
A50: 2023-11-02 | C50: Herb beds
C51: M1
B52: Total
A53: 11/2/2023 Total
A54: 2023-11-04 | C54: Annex
B55: Total
A56: 11/4/2023 Total
A57: 2023-11-07
B58: Total
A59: 11/7/2023 Total
A60: 2023-11-09 | C60: M11
C61: m2
B62: Total
A63: 11/9/2023 Total
A64: 2023-11-11 | C64: M6
B65: Total
A66: 11/11/2023 Total
A67: 2023-12-02
B68: Total
A69: 12/2/2023 Total
A70: 2023-12-05 | C70: m2
B71: Total
A72: 12/5/2023 Total
A73: 2023-12-07 | C73: m2
B74: Total
A75: 12/7/2023 Total
A76: 2023-12-14 | C76: compost bins
C77: M18, shed
B78: Total
A79: 12/14/2023 Total
A80: 2024-01-04 | C80: table
B81: Total
A82: 1/4/2024 Total
A83: Grand Total

Sheet harvest calculator
A1: =NOW() -> 2024-03-09T20:56:33.950 | C1: Harvest
A3: date | B3: (All)
B5: Data | D5: Total | E5: total
A6: Produce | B6: Sum of lbs | C6: Sum of oz | D6: lbs | E6: Oz
A7: arugula | B7: 0 | C7: 12 | D7: =IF(B7<0,"",(B7+(INT(C7/16)))) -> 0 | E7: =IF(C7=0,"",((16*(C7/16-(INT(C7/16)))))) -> 12
A8: beans, yard long | B8: 39 | C8: 144 | D8: =IF(B8<0,"",(B8+(INT(C8/16)))) -> 48 | E8: =IF(C8=0,"",(16*(C8/16-(INT(C8/16))))) -> 0
A9: beets | B9: 2 | C9: 10 | D9: 2 | E9: =IF(C9=0,"",(16*(C9/16-(INT(C9/16))))) -> 10
A10: broccoli | B10: 29 | C10: 75 | D10: 33 | E10: =IF(C10=0,"",(16*(C10/16-(INT(C10/16))))) -> 11
A11: carrots | B11: 3 | C11: 14 | D11: 3 | E11: =IF(C11=0,"",(16*(C11/16-(INT(C11/16))))) -> 14
A12: carrots, danver | B12: 4 | C12: 35 | D12: 6 | E12: =IF(C12=0,"",(16*(C12/16-(INT(C12/16))))) -> 3
A13: cauliflower | B13: 1 | C13: 8 | D13: 1 | E13: 8
A14: collards | B14: 5 | C14: 20 | D14: 6 | E14: 4
A15: cucumbers | B15: 15 | C15: 65 | D15: 19 | E15: 1
A16: eggplant | B16: 74 | C16: 120 | D16: 81 | E16: 8
A17: grapes | B17: 57 | C17: 76 | D17: 61 | E17: 12
A18: kale | B18: 8 | C18: 33 | D18: 10 | E18: 1
A19: Kohlrabi | B19: 0 | C19: 0 | D19: 0
A20: lettuce | B20: 13 | C20: 57 | D20: 16 | E20: 9
A21: okra | B21: 45 | C21: 178 | D21: 56 | E21: 2
A22: onions | B22: 0 | C22: 6 | D22: 0 | E22: 6
A23: onions, multiplying | B23: 55 | C23: 113 | D23: 62 | E23: 1
A24: Peanuts | B24: 0 | C24: 4 | D24: 0 | E24: 4
A25: peas, sugar snap | B25: 0 | C25: 28 | D25: 1 | E25: 12
A26: peppers | B26: 0 | C26: 10 | D26: 0 | E26: 10
A27: sorrel | B27: 0 | C27: 0 | D27: 0
A28: spinach | B28: 1 | C28: 29 | D28: 2 | E28: 13
A29: squash | B29: 2 | C29: 23 | D29: 3 | E29: 7
A30: tomatoes | B30: 0 | C30: 9 | D30: 0 | E30: 9
A31: squash, summer | B31: 0 | C31: 18 | D31: 1 | E31: 2
A32: Mizuna | B32: 9 | C32: 48 | D32: 12 | E32: 0
A33: Radish, French Breakfast | B33: 21 | C33: 45 | D33: 23 | E33: 13
A34: peppers, serrano | B34: 2 | C34: 44 | D34: 4 | E34: 12
A35: turnips, hakurei | B35: 29 | C35: 145 | D35: 38 | E35: 1
A36: herbs | B36: 0 | C36: 0 | D36: 0
A37: pear | B37: 0 | C37: 4 | D37: 0 | E37: 4
A38: peppers, jalopena | B38: 0 | C38: 1 | D38: 0 | E38: 1
A39: tomatoes,thyme, oregano | B39: 0 | C39: 0 | D39: 0
A40: carrots, Tender Sweet | B40: 0 | C40: 0 | D40: 0
A41: turmips | B41: 1 | C41: 10 | D41: 1 | E41: 10
A42: potatoes, sweet | B42: 472 | C42: 74.5 | D42: 476 | E42: 10.5
A43: garlic | B43: 1 | C43: 0 | D43: 1
A44: cabbage, Savoy | B44: 0 | C44: 0 | D44: 0
A45: arugala | B45: 0 | C45: 4 | D45: 0 | E45: 4
A46: rosemary | B46: 0 | C46: 0 | D46: 0
A47: kale, curly | B47: 1 | C47: 10 | D47: 1 | E47: 10
A48: Mint marigold, mexican | B48: 0 | C48: 0 | D48: 0
A49: onion, multiplying | B49: 10 | C49: 33 | D49: 12 | E49: 1
A50: sugar cane | B50: 73 | C50: 33 | D50: 75 | E50: 1
A51: oregano/luffa | B51: 0 | C51: 0 | D51: 0
A52: sorrel/luffa | B52: 0 | C52: 0 | D52: 0
A53: bok choy | B53: 2 | C53: 9 | D53: 2 | E53: 9
A54: broccoli, leaves | B54: 0 | C54: 10 | D54: 0 | E54: 10
A55: kale, purple stem | B55: 0 | C55: 7 | D55: 0 | E55: 7
A56: sorrel,cilanto | B56: 0 | C56: 0 | D56: 0
A57: Luffa | B57: 0 | C57: 0 | D57: 0
A58: Grand Total | B58: 974 | C58: 1564.5 | D58: 1071 | E58: 12.5
D59: 0
D60: 0
D61: 0
D62: =IF(B62<0,"",(B62+(INT(C62/16)))) -> 0 | E62: =IF(C62=0,"",(16*(C62/16-(INT(C62/16))))) -> 
D63: 0
D64: 0
D65: 0
D66: 0
D67: 0
D68: 0
D69: 0

Sheet projects to date
A1: 1 | C1: Install landscape timbers around arbor day trees | D1: done | E1: 2023-08-25
A2: =A1+1 -> 2 | C2: Install a second irrigation head in Annex garden to improve coverage
A3: 3 | C3: Treat with wood preservative all wood structures such as work benches, and outdoor classroom. | D3: done | E3: 2023-08-04
A4: 4 | C4: Replace wire retention screening in the compost bins | D4: done | E4: 2023-09-14
A5: 5 | C5: Repair / paint signage around the school
A6: 6 | C6: Weed, mulch and install landscaping timbers around arbor day trees along athletic field | D6: done | E6: 2023-08-25
A7: 7 | C7: Install border around Jo Sanders outdoor classroom and fill with wood chips to keep feet clean
A8: 8 | C8: Replace / modify middle door to Orchard shed (needed due to vandalism) | D8: done | E8: 2023-09-26
A9: 9 | C9: Install water station behind herb bed to make watering easier and less of a hinderance for passers-by
A10: 10 | C10: modify irrigation to herb bed along school wall facing outward away from outlet
A11: 11 | C11: upgrade irrigation in Orchard to include long bed along fence
A12: 12 | C12: apply roof tar sealant to orchard shed
A13: 13 | C13: level pavers around compost area and herb bed | D13: done | E13: 2023-09-21
A14: 14
A15: 15

Sheet Projects 22 - 23 (hidden)
A1: Category | B1: Project Specifics | C1: Goals Achieved | E1: What Next | I1: Notes
B2: Yearly produce #s | C2: (Aug21-May22) | E2: (Aug 22 - May 23)
A3: Unexpected Projects | E3: 2022-2023 plan
A4: Water Issues | B4: Orchard irrigation was non existent due to construction (dtc) | C4: a temporarily automated irrigation fix in-place (Mar 2022) but needs permanent setup once construction complete | E4: Once school construction is complete need to have irrigation re-connected to shed irrigation controller. School is supposed to be complete by start of 22-23, so sometime during fall try to get irrigation re-established The Orchard irrigation has been modified with new wiring to the Orchard and connected to the controller in the main garden shed ports 1-3 (April 13, 2023). | I4: Electric line was dug along sidewalk to module sidewalk and parking lot sidewalk to the big rock then under the fence into the soccer field and over to the orchard control area.
B5: Irrigation to Athletic field trees disrupted (again dtc) | C5: repaired March-April 2022 | E5: Irrigation to athletic field trees has been repaired and in working condition. | I5: issues reside with lawn care breaking off sprinkler heads when mowing.
B6: No water to Annex due to construction | C6: need to get school involved | E6: Need to get school to repair outside area irrigation (controller & water line.) After discussion with school maintenance, we connected the annex sprinkler (only) to the controller in the main garden shed. | I6: a line was buried between the red shed and under the sidewalk and annex wall connecting to the sprinkler valve just inside the annex wall area.
B7: No water to West side Arbor Day trees - lost chinkapin Oak | C7: need to get school involved | E7: school repaired beginning of March 2023.
B8: Major water leak in main garden | C8: repaired April 2022 | E8: done
B9: installed irrigation to beds 9-12 | C9: completed 3/16/23 | E9: done and controlled by irrigation center - main garden controller.
A10: Projects
A11: Orchard Shed | B11: finish flooring | C11: completed Aug 2021 | E11: done
B12: second solar light needed inside shed | C12: completed Mar 2022 | E12: done
B13: windows in shed doors vandalized | C13: repaired thank you Kristi & Bruce | E13: done
A15: Orchard area | B15: move beds due to increased boundary shading | C15: installed oval metal raised bed, 1 tier cinderblock raised bed,& 1 tier wood raised bed each with irrigation | E15: completed and in use
B16: remove dead citrus trees and replace | C16: done and new trees added include; Washington Navel Improved Meyer Lemon Hamlen orange Henderson Red Ruby Grapefruit | E16: done
B17: O-2 bed irrigation upgrade | C17: reconfigured spray heads and temporarily tapped into irrigation | E17: better but still needs tweaking - need better coverage control (Still needs attention).
E18: need additional irrigation to new citrus trees (grapefruit, orange trees, and lemon tree)
A20: Main gardens | B20: raised beds upgrade | C20: converted 3 wood N/S raised beds in middle of main garden to 3 - 2 tier E/W raised cinderblock beds with water outlets | E20: done, completd raised bed upgrade M9, M10
B21: pathway upgrades | C21: continuing to add pavers as opportunities present themselves | E21: this will continue until the wet areas in the main garden are covered with pavers - so ongoing
B22: remove dead citrus and replace | C22: done / new citrus improved Meyer Lemon Mandarin orange | E22: lost several of the newly planted citrus trees due to this years freeze (grapefruit, myer lemon, hamblen orange).
E23: coat benches and outdoor wood furniture with preservative
A24: Annex gardens | B24: maintain raised beds | C24: Bed A-1 restored Annex classroom furniture | E24: beds in this area need to be constructed of wood for safety reasons so this is an ongoing yearly project. Beds A5,6 repaired. Class room benches need repairing with new lumber | I24: Annex classroom benches need repair/replacement in some cases. They also need to be coated with preservative.
A26: Campus | B26: maintain school marque | C26: Maintained routinely | E26: Should the growers maintain this area, and the front beds as well?? We will continue to weed and replant the marque.
B27: butterfly beds | C27: destroyed by construction ? | E27: This bed area is gone, there is some replacement with outside the main garden flower areas - we have started a new pollinator bed in Annex and outside the main garden, waiting on school construction to replace pollinator beds that were next to modules
B28: front beds | C28: lawn service has taken over | E28: we are no longer involved in this area
B29: signage maintenance | C29: No activity this year. | E29: If we get time we will continue to try to get this done
A31: Garden Programs | B31: microlife promotion | C31: Great organization and execution of this promotion, Thank you Eric; distribution from Opperman home. | E31: done. Any thoughts or comments? We moved over 10,000 lbs of fertilizer contributing ~$2k for operations
B32: Arbor Day Tree (purchase, plant,and irrigate) | C32: Judy - executed a well organized program, Gudrun procured the tree. | E32: Do we wish to keep this activity going? It is nice and also fun to see the grads come back and open the capsule but there is a problem with maintaining the trees. We are pushed to keep them mulched, watering can be an issue, fencing around the trees can look pretty shabby. This activity is being retired. Planting areas inside the exercise area are ravaged by the students and lawn crew alike. Watering is problematic as there is frequent damage to the irrigation heads by students and lawn crew. Planting areas outside the exercise area are fully utilized.
A35: Trial Activities | B35: Crop leads | E35: I thought this worked well this last year. Are there more volunteers to participate in overseeing particular crops? We have a lot of things we do that require additional support. For instance the need to do pruning of the fruit trees and trees along the Orchard perimeter. A lot is being done in this area not to mention spraying for grass/weed control and liquid fertilizer. We could spread some of this out to prevent burn out of all leads.
B36: Sydney | C36: yard long beans, sugar snap peas, dill
B37: Anne, Denise | C37: pollinator beds
B38: Judy | C38: herbs
B39: Eric | C39: tomatoes, tomatillos, peppers, eggplant
B40: Denton | C40: grapes, citrus
B41: Phyllis | C41: carrots, flowers
B42: Hal | C42: potatoes, arbor day trees
B43: Backup responsibility holders | E43: Backup ….. Eric has takien on the tasks of the treasury and Kristi / MarySue have taken on the mowing and edge trimming of the Orchard area. I think I can say that both efforts are very greatly appreciated. Now the question is do we support this idea of Backup holders or should we be looking for another way to support these functions when someone needs to take a break? | I43: We need to formalize this approach so that we can spread out the work load.
B44: President, VP | C44: Lisa Marucci,Eric V.
B45: Treasurer | C45: Eric,(Hal)
B46: Secretary | C46: Kristi,??
B47: operations coordinator | C47: Denton,??
B48: student activity coordinator | C48: Gudrun, (Judy??)
B49: Orchard area grounds care | C49: Kristi, MarySue
B50: mulch and compost TEA | C50: Hal
